{"text_format":"1","workbook":"xlsx","n_sheets":4,"sheets":["SnvUc","F1_Mart_2021","X","Dersler"],"not_rendered":{"charts":0,"images":27,"macros":1,"external_links":1,"defined_names":4,"comments":1,"pivot_tables":0},"unopened":[],"bounds":{"document_bytes":16777216,"sheet_cells":100000,"rows_first":2000,"rows_last":500,"rows_between":2000,"halvings":0,"cell_chars":16384,"cell_head_chars":4096},"cells_cut":0,"cells_raw":0,"read":"whole","date_system":"1900"}

{"sheet":"SnvUc","index":0,"n_rows":52,"n_cols":29,"rows_kept":52,"cut":false,"hidden":true,"merged":[[48,19,50,20],[48,21,50,27],[51,1,53,2],[51,3,53,8],[51,10,53,11],[51,12,53,17],[51,19,53,20],[51,21,53,27],[44,0,44,13],[45,0,45,13],[45,15,45,18],[47,0,47,2],[47,3,47,8],[48,0,53,0],[48,1,50,2],[48,3,50,8],[48,9,53,9],[48,10,50,11],[48,12,50,17],[48,18,53,18],[41,1,41,18],[41,19,41,21],[43,0,43,3],[43,4,43,7],[43,8,43,10],[43,11,43,22],[39,1,39,14],[39,15,39,18],[39,19,39,21],[39,22,39,27],[40,1,40,14],[40,15,40,18],[40,19,40,21],[40,22,40,27],[37,1,37,14],[37,15,37,18],[37,19,37,21],[37,22,37,27],[38,1,38,14],[38,15,38,18],[38,19,38,21],[38,22,38,27],[35,1,35,14],[35,15,35,18],[35,19,35,21],[35,22,35,27],[36,1,36,14],[36,15,36,18],[36,19,36,21],[36,22,36,27],[30,1,30,18],[30,19,30,21],[32,3,32,24],[34,1,34,14],[34,15,34,18],[34,19,34,21],[34,22,34,27],[28,1,28,14],[28,15,28,18],[28,19,28,21],[28,22,28,27],[29,1,29,14],[29,15,29,18],[29,19,29,21],[29,22,29,27],[26,1,26,14],[26,15,26,18],[26,19,26,21],[26,22,26,27],[27,1,27,14],[27,15,27,18],[27,19,27,21],[27,22,27,27],[24,1,24,14],[24,15,24,18],[24,19,24,21],[24,22,24,27],[25,1,25,14],[25,15,25,18],[25,19,25,21],[25,22,25,27],[22,1,22,14],[22,15,22,18],[22,19,22,21],[22,22,22,27],[23,1,23,14],[23,15,23,18],[23,19,23,21],[23,22,23,27],[20,1,20,14],[20,15,20,18],[20,19,20,21],[20,22,20,27],[21,1,21,14],[21,15,21,18],[21,19,21,21],[21,22,21,27],[18,1,18,14],[18,15,18,18],[18,19,18,21],[18,22,18,27],[19,1,19,14],[19,15,19,18],[19,19,19,21],[19,22,19,27],[16,1,16,14],[16,15,16,18],[16,19,16,21],[16,22,16,27],[17,1,17,14],[17,15,17,18],[17,19,17,21],[17,22,17,27],[14,1,14,14],[14,15,14,18],[14,19,14,21],[14,22,14,27],[15,1,15,14],[15,15,15,18],[15,19,15,21],[15,22,15,27],[8,25,8,26],[9,3,9,24],[9,25,9,26],[0,5,0,22],[1,5,1,22],[2,5,2,22],[4,0,6,0],[4,1,4,6],[4,7,4,14],[4,15,6,15],[4,16,4,22],[11,0,13,0],[11,1,13,14],[11,15,13,18],[11,19,13,21],[11,22,13,27],[4,23,4,27],[5,1,5,6],[5,7,5,14],[5,16,6,22],[5,23,6,27],[6,1,6,6],[6,7,6,14]]}
[null,null,null,null,null,"BURSA TEKNİK ÜNİVERSİTESİ"]
[null,null,null,null,null,"ORMAN FAKÜLTESİ"]
[null,null,null,null,null,"SINAV ÜCRETİ BİLDİRİM FORMU"]
[]
["ÖĞRETİM ELEMANININ","Bölümü",null,null,null,null,null,"Orman Mühendisliği",null,null,null,null,null,null,null,"SINAVIN","Öğretim Yılı",null,null,null,null,null,null,"2019 - 2020"]
[null,"Adı ve Soyadı  (Ünvan ile)",null,null,null,null,null,"Prof. Dr. ",null,null,null,null,null,null,null,null,"Yarıyılı",null,null,null,null,null,null,"BAHAR"]
[null,"TC Kimlik Numarası"]
[]
[]
[null,null,null,"ÖRGÜN ÖĞRETİM"]
[]
["SIRA NO","DERSİN ADI",null,null,null,null,null,null,null,null,null,null,null,null,null,"SINAVA GİREN ÖĞRENCİ SAYISI",null,null,null,"ÜCRETE ESAS BİRİM SAYI",null,null,"SINAV TARİHİ"]
[]
[]
[1,"Dendrometri",null,null,null,null,null,null,null,null,null,null,null,null,null,84,null,null,null,{"$f":"IF(P15=\"\",\"\",IF(AND(P15>0,P15<=50),1,IF(AND(P15>50,P15<=100),2,IF(AND(P15>100,P15<=150),3,IF(AND(P15>150,P15<=200),4,IF(AND(P15>200,P15<=250),5,IF(AND(P15>250,P15<=300),6,AC15)))))))","v":2},null,null,"2020-06-18",null,null,null,null,null,{"$f":"IF(AND(P15>300,P15<=350),7,IF(AND(P15>350,P15<=400),8,IF(AND(P15>400,P15<=450),9,IF(AND(P15>450),10))))","v":false}]
[2,"Sektör Eğitimi",null,null,null,null,null,null,null,null,null,null,null,null,null,2,null,null,null,{"$f":"IF(P16=\"\",\"\",IF(AND(P16>0,P16<=50),1,IF(AND(P16>50,P16<=100),2,IF(AND(P16>100,P16<=150),3,IF(AND(P16>150,P16<=200),4,IF(AND(P16>200,P16<=250),5,IF(AND(P16>250,P16<=300),6,AC16)))))))","v":1},null,null,"2020-06-15",null,null,null,null,null,false]
[3,"Hasılat",null,null,null,null,null,null,null,null,null,null,null,null,null,55,null,null,null,2,null,null,"2020-06-18",null,null,null,null,null,false]
[4,"Uzmanlık Alan Dersi ",null,null,null,null,null,null,null,null,null,null,null,null,null,2,null,null,null,null,null,null,null,null,null,null,null,null,false]
[5,"Uzmanlık Alan Dersi",null,null,null,null,null,null,null,null,null,null,null,null,null,2,null,null,null,{"$f":"IF(P19=\"\",\"\",IF(AND(P19>0,P19<=50),1,IF(AND(P19>50,P19<=100),2,IF(AND(P19>100,P19<=150),3,IF(AND(P19>150,P19<=200),4,IF(AND(P19>200,P19<=250),5,IF(AND(P19>250,P19<=300),6,AC19)))))))","v":1},null,null,"2020-06-13",null,null,null,null,null,false]
[6,"Danışmanlık",null,null,null,null,null,null,null,null,null,null,null,null,null,4,null,null,null,{"$f":"IF(P20=\"\",\"\",IF(AND(P20>0,P20<=50),1,IF(AND(P20>50,P20<=100),2,IF(AND(P20>100,P20<=150),3,IF(AND(P20>150,P20<=200),4,IF(AND(P20>200,P20<=250),5,IF(AND(P20>250,P20<=300),6,AC20)))))))","v":1},null,null,"2020-06-13",null,null,null,null,null,false]
[7,"Biyokütle",null,null,null,null,null,null,null,null,null,null,null,null,null,4,null,null,null,{"$f":"IF(P21=\"\",\"\",IF(AND(P21>0,P21<=50),1,IF(AND(P21>50,P21<=100),2,IF(AND(P21>100,P21<=150),3,IF(AND(P21>150,P21<=200),4,IF(AND(P21>200,P21<=250),5,IF(AND(P21>250,P21<=300),6,AC21)))))))","v":1},null,null,"2020-06-13",null,null,null,null,null,false]
[8,"Ormancılıkta İstatistik Uygulamaları",null,null,null,null,null,null,null,null,null,null,null,null,null,12,null,null,null,null,null,null,null,null,null,null,null,null,false]
[9,null,null,null,null,null,null,null,null,null,null,null,null,null,null,null,null,null,null,null,null,null,null,null,null,null,null,null,false]
[10,null,null,null,null,null,null,null,null,null,null,null,null,null,null,null,null,null,null,null,null,null,null,null,null,null,null,null,false]
[11,null,null,null,null,null,null,null,null,null,null,null,null,null,null,null,null,null,null,null,null,null,null,null,null,null,null,null,false]
[12,null,null,null,null,null,null,null,null,null,null,null,null,null,null,null,null,null,null,"",null,null,null,null,null,null,null,null,false]
[13,null,null,null,null,null,null,null,null,null,null,null,null,null,null,null,null,null,null,"",null,null,null,null,null,null,null,null,false]
[14,null,null,null,null,null,null,null,null,null,null,null,null,null,null,null,null,null,null,"",null,null,null,null,null,null,null,null,false]
[15,null,null,null,null,null,null,null,null,null,null,null,null,null,null,null,null,null,null,""]
[16,null,null,null,null,null,null,null,null,null,null,null,null,null,null,null,null,null,null,"",null,null,null,null,null,null,null,null,false]
[null,"TOPLAM",null,null,null,null,null,null,null,null,null,null,null,null,null,null,null,null,null,{"$f":"SUM(T15:V30)","v":8}]
[]
[null,null,null,"İKİNCİ ÖĞRETİM"]
[]
[1,null,null,null,null,null,null,null,null,null,null,null,null,null,null,null,null,null,null,{"$f":"IF(P35=\"\",\"\",IF(AND(P35>0,P35<=50),1,IF(AND(P35>50,P35<=100),2,IF(AND(P35>100,P35<=150),3,IF(AND(P35>150,P35<=200),4,IF(AND(P35>200,P35<=250),5,IF(AND(P35>250,P35<=300),6,AC35)))))))","v":""},null,null,null,null,null,null,null,null,{"$f":"IF(AND(P35>300,P35<=350),7,IF(AND(P35>350,P35<=400),8,IF(AND(P35>400,P35<=450),9,IF(AND(P35>450),10))))","v":false}]
[2,null,null,null,null,null,null,null,null,null,null,null,null,null,null,null,null,null,null,{"$f":"IF(P36=\"\",\"\",IF(AND(P36>0,P36<=50),1,IF(AND(P36>50,P36<=100),2,IF(AND(P36>100,P36<=150),3,IF(AND(P36>150,P36<=200),4,IF(AND(P36>200,P36<=250),5,IF(AND(P36>250,P36<=300),6,AC36)))))))","v":""},null,null,null,null,null,null,null,null,false]
[3,null,null,null,null,null,null,null,null,null,null,null,null,null,null,null,null,null,null,"",null,null,null,null,null,null,null,null,false]
[4,null,null,null,null,null,null,null,null,null,null,null,null,null,null,null,null,null,null,"",null,null,null,null,null,null,null,null,false]
[5,null,null,null,null,null,null,null,null,null,null,null,null,null,null,null,null,null,null,"",null,null,null,null,null,null,null,null,false]
[6,null,null,null,null,null,null,null,null,null,null,null,null,null,null,null,null,null,null,""]
[7,null,null,null,null,null,null,null,null,null,null,null,null,null,null,null,null,null,null,"",null,null,null,null,null,null,null,null,false]
[null,"TOPLAM",null,null,null,null,null,null,null,null,null,null,null,null,null,null,null,null,null,{"$f":"SUM(T35:V41)","v":0}]
[]
[{"$f":"X5","v":"2019 - 2020"},null,null,null,"ÖĞRETİM YILI",null,null,null,{"$f":"X6","v":"BAHAR"},null,null,"YARIYILINDA YAPILAN DÖNEM SONU SINAVLARINDA"]
["ÖRGÜN ÖĞRETİMDEKİ ÜCRETE ESAS BİRİM SAYI",null,null,null,null,null,null,null,null,null,null,null,null,null,{"$f":"T31","v":8},";"]
["İKİNCİ ÖĞRETİMDEKİ ÜCRETE ESAS BİRİM SAYI",null,null,null,null,null,null,null,null,null,null,null,null,null,{"$f":"T42","v":0},"OLMUŞTUR."]
[]
["TARİH",null,null,{"$f":"TODAY()","v":"2022-01-12"}]
["ÖĞR. ELEMANININ","İmzası",null,null,null,null,null,null,null,"BÖLÜM BŞK.NIN","İmzası",null,null,null,null,null,null,null,"BİRİM YETKİLİSİNİN","İmzası"]
[]
[]
[null,"Adı ve Soyadı",null,{"$f":"H6","v":"Prof. Dr. "},null,null,null,null,null,null,"Adı ve Soyadı",null,"Prof. Dr. Ebubekir GÜNDOĞDU",null,null,null,null,null,null,"Adı ve Soyadı",null,"Prof. Dr. Temel SARIYILDIZ"]

{"sheet":"F1_Mart_2021","index":1,"n_rows":217,"n_cols":1079,"rows_kept":217,"cut":false,"hidden":false,"merged":[[0,77,0,78],[0,80,0,81],[1,5,1,8],[1,9,1,11],[1,12,1,24],[1,25,1,29],[1,30,1,42],[1,50,1,51],[1,52,1,56],[1,58,1,59],[1,60,1,62],[1,63,1,65],[1,66,1,68],[0,3,0,69],[0,70,0,72],[0,74,0,76],[2,58,3,62],[2,63,3,67],[3,5,3,6],[3,7,3,9],[3,10,3,11],[3,12,3,28],[3,44,3,50],[3,51,3,56],[2,5,2,6],[2,7,2,9],[2,10,2,14],[2,15,2,28],[2,29,3,31],[2,32,3,42],[6,16,6,17],[6,18,6,19],[6,20,6,21],[6,22,6,23],[6,24,6,25],[7,16,7,17],[7,18,7,19],[2,44,2,50],[2,51,2,56],[7,40,7,41],[7,42,7,43],[7,44,7,45],[7,46,7,47],[7,24,7,25],[7,26,7,27],[7,28,7,29],[7,30,7,31],[4,30,4,56],[6,26,6,27],[6,28,6,29],[6,30,6,31],[6,32,6,33],[6,34,6,35],[6,36,6,37],[5,4,8,4],[5,5,5,9],[5,10,8,10],[5,11,8,12],[5,13,5,15],[6,5,7,5],[6,6,8,9],[6,13,8,13],[6,14,8,14],[6,15,8,15],[6,82,6,83],[6,84,6,85],[6,62,6,63],[6,64,6,65],[6,66,6,67],[6,68,6,69],[6,70,6,71],[6,72,6,73],[7,20,7,21],[7,22,7,23],[6,50,6,51],[6,52,6,53],[6,54,6,55],[6,56,6,57],[6,58,6,59],[6,60,6,61],[6,38,6,39],[6,40,6,41],[6,42,6,43],[6,44,6,45],[6,46,6,47],[6,48,6,49],[7,36,7,37],[7,38,7,39],[7,50,7,51],[7,52,7,53],[7,54,7,55],[7,56,7,57],[7,58,7,59],[6,74,6,75],[6,76,6,77],[6,78,6,79],[6,80,6,81],[7,84,7,85],[7,91,7,94],[7,106,7,109],[9,6,9,9],[9,11,9,12],[10,6,10,9],[10,11,10,12],[11,6,11,9],[11,11,11,12],[7,72,7,73],[7,74,7,75],[7,76,7,77],[7,78,7,79],[7,80,7,81],[7,82,7,83],[7,60,7,61],[7,62,7,63],[7,64,7,65],[7,32,7,33],[7,34,7,35],[7,66,7,67],[7,68,7,69],[7,70,7,71],[7,48,7,49],[9,3,24,3],[28,11,28,12],[28,13,28,15],[18,6,18,9],[18,11,18,12],[19,6,19,9],[19,11,19,12],[20,6,20,9],[20,11,20,12],[15,6,15,9],[15,11,15,12],[16,6,16,9],[16,11,16,12],[17,6,17,9],[17,11,17,12],[12,6,12,9],[12,11,12,12],[13,6,13,9],[13,11,13,12],[14,6,14,9],[14,11,14,12],[24,6,24,9],[24,11,24,12],[26,11,26,12],[21,6,21,9],[21,11,21,12],[22,6,22,9],[22,11,22,12],[23,6,23,9],[23,11,23,12],[26,16,26,29],[26,30,26,43],[25,6,25,12],[28,16,28,29],[28,30,28,43],[28,44,28,57],[28,58,28,71],[28,72,28,85],[79,11,79,12],[80,6,80,9],[80,11,80,12],[81,6,81,9],[81,11,81,12],[26,6,28,10],[74,6,74,85],[26,44,26,57],[26,58,26,71],[26,72,26,85],[27,11,27,12],[27,13,27,15],[27,16,27,29],[27,30,27,43],[27,44,27,57],[27,58,27,71],[27,72,27,85],[26,13,26,15],[83,16,83,29],[83,30,83,43],[83,44,83,57],[82,3,82,12],[75,3,81,3],[75,6,75,9],[75,11,75,12],[76,6,76,9],[76,11,76,12],[77,6,77,9],[77,11,77,12],[78,6,78,9],[78,11,78,12],[79,6,79,9],[85,44,85,57],[85,58,85,71],[85,72,85,85],[87,6,87,7],[87,8,87,9],[87,10,87,11],[87,12,87,13],[87,14,87,15],[83,3,85,10],[85,11,85,12],[85,13,85,15],[85,16,85,29],[85,30,85,43],[83,58,83,71],[83,72,83,85],[84,11,84,12],[84,13,84,15],[84,16,84,29],[84,30,84,43],[84,44,84,57],[84,58,84,71],[84,72,84,85],[83,11,83,12],[83,13,83,15],[132,36,132,58],[132,59,132,79],[132,80,133,81],[133,3,133,33],[133,35,147,35],[133,36,133,37],[133,57,133,58],[133,78,133,79],[134,3,134,5],[134,10,134,11],[134,81,135,81],[135,3,135,5],[135,10,135,11],[135,13,135,15],[135,17,135,20],[135,22,135,26],[135,28,135,32],[134,17,134,20],[134,22,134,26],[134,28,134,32],[134,36,135,36],[134,58,135,58],[134,79,135,79],[136,36,137,36],[136,58,137,58],[136,79,137,79],[136,81,137,81],[137,3,137,5],[137,10,137,11],[137,13,137,15],[137,17,137,20],[137,22,137,26],[137,28,137,32],[136,3,136,5],[136,10,136,11],[136,13,136,15],[136,17,136,20],[136,22,136,26],[136,28,136,32],[138,36,139,36],[138,58,139,58],[138,79,139,79],[138,81,139,81],[139,3,139,5],[139,10,139,11],[139,13,139,15],[139,17,139,20],[139,22,139,26],[139,28,139,32],[138,3,138,5],[138,10,138,11],[138,13,138,15],[138,17,138,20],[138,22,138,26],[138,28,138,32],[140,36,141,36],[140,58,141,58],[140,79,141,79],[140,81,141,81],[141,3,141,5],[141,10,141,11],[141,13,141,15],[141,17,141,20],[141,22,141,26],[141,28,141,32],[140,3,140,5],[140,10,140,11],[140,13,140,15],[140,17,140,20],[140,22,140,26],[140,28,140,32],[142,36,143,36],[142,58,143,58],[142,79,143,79],[142,81,143,81],[143,3,143,5],[143,10,143,11],[143,13,143,15],[143,17,143,20],[143,22,143,26],[143,28,143,32],[142,3,142,5],[142,10,142,11],[142,13,142,15],[142,17,142,20],[142,22,142,26],[142,28,142,32],[144,81,145,81],[145,3,145,5],[145,10,145,11],[145,13,145,15],[145,17,145,20],[145,22,145,26],[145,28,145,32],[144,3,144,5],[144,10,144,11],[144,13,144,15],[144,17,144,20],[144,22,144,26],[144,28,144,32],[144,36,145,36],[144,58,145,58],[144,79,145,79],[146,45,147,45],[146,46,147,46],[146,47,147,47],[146,48,147,48],[146,36,147,37],[146,38,147,38],[146,39,147,39],[146,40,147,40],[146,41,147,41],[146,42,147,42],[146,17,146,20],[146,22,146,26],[146,28,146,32],[146,72,147,72],[146,61,147,61],[146,62,147,62],[146,63,147,63],[146,64,147,64],[146,65,147,65],[146,57,147,57],[146,58,147,58],[146,59,147,59],[146,60,147,60],[146,66,147,66],[146,55,147,55],[146,56,147,56],[146,49,147,49],[146,50,147,50],[146,51,147,51],[146,52,147,52],[146,53,147,53],[146,54,147,54],[146,43,147,43],[146,44,147,44],[148,17,148,20],[148,22,148,26],[148,28,148,32],[146,79,147,79],[147,3,147,5],[147,10,147,11],[147,13,147,15],[147,17,147,20],[147,22,147,26],[147,28,147,32],[146,73,147,73],[146,74,147,74],[146,75,147,75],[146,76,147,76],[146,77,147,77],[146,78,147,78],[146,67,147,67],[146,68,147,68],[146,69,147,69],[146,70,147,70],[146,71,147,71],[146,3,146,5],[146,10,146,11],[146,13,146,15],[86,3,86,85],[182,62,182,66],[169,10,169,11],[169,13,169,16],[169,17,169,21],[169,22,169,26],[181,6,181,11],[181,58,181,71],[150,3,150,5],[150,10,150,11],[150,13,150,15],[150,17,150,20],[150,22,150,26],[150,28,150,32],[148,77,149,81],[149,3,149,5],[149,10,149,11],[149,13,149,15],[149,17,149,20],[149,22,149,26],[149,28,149,32],[148,3,148,5],[148,10,148,11],[148,13,148,15]]}
[null,null,null,"ÖĞRETİM ELEMANI AYLIK EK DERS BİLDİRİMİ",null,null,null,null,null,null,null,null,null,null,null,null,null,null,null,null,null,null,null,null,null,null,null,null,null,null,null,null,null,null,null,null,null,null,null,null,null,null,null,null,null,null,null,null,null,null,null,null,null,null,null,null,null,null,null,null,null,null,null,null,null,null,null,null,null,null,{"$f":"BI2/4","v":505.5},null,null,null,{"$f":"ROUND(BS1,1)","v":505.5},null,null,{"$f":"IF(BS1=BW1,29,28)","v":29},null,null,{"$f":"IF(BA2=\"ŞUBAT\",BZ1,(LOOKUP(BA2,A10:A21,B10:B21)))","v":31},null,null,15,0,null,null,null,null,null,null,null,null,null,null,null,{"$f":"UPPER(TEXT(BG3-1,\"aaaaaaaa\"))","v":"ARALIK"},{"$f":"UPPER(TEXT(BG3,\"aaaaaaaaaa\"))","v":"OCAK"},{"$f":"UPPER(TEXT(BG3+31,\"aaaaaaaaaaa\"))","v":"ŞUBAT"}]
[{"$f":"DATE(BL3,3,1)","v":"2022-03-01"},null,null,{"$f":"AS2&\" - \"&AU2","v":"2021 - 2022"},null,"ÖĞRETİM ELEMANI'NIN",null,null,null," ADI SOYADI",null,null,null,null,null,null,null,null,null,null,null,null,null,null,null,"TC Kimlik No:",null,null,null,null,null,null,null,null,null,null,null,null,null,null,null,null,null,null,{"$f":"VALUE(TEXT(BG3,\"YYYY\"))-1","v":2021},null,{"$f":"TEXT(BG3,\"YYYY\")","v":"2022"},null,null,{"$f":"VALUE(TEXT(BG3,\"YYYY\"))+1","v":2023},"AY",null,{"$f":"UPPER(TEXT(BG3,\"aaaaaaaa\"))","v":"OCAK"},null,null,null,null,{"$f":"MONTH(BG3)","v":1},"YIL",null,{"$f":"BL3","v":2022},null,null,{"$f":"TEXT(BG3,\"YYYY\")-1","v":"1905-07-13"},null,null,{"$f":"TEXT(BG3,\"YYYY\")+1","v":"1905-07-15"},null,null,null,null,null,"GÜZ",null,{"$f":"TEXT(AOM5,\"GGG\")","v":"Cmt"},{"$f":"WEEKDAY(AOM5,2)","v":6},{"$f":"IF(BX2>5,BX2-5,BX2)","v":1},null,null,null,null,null,null,20,20,null,null,null,null,null,null,null,null,null,{"$f":"DATE(YEAR(BG3),MONTH(BG3),IF(WEEKDAY(DATE(YEAR( BG3),MONTH(BG3),1),2)>1,9-WEEKDAY(DATE(YEAR(BG3),MONTH(BG3),1),2),1))","v":"2022-01-03"},null,{"$f":"VLOOKUP(CS1,A10:B21,2)","v":31},{"$f":"VLOOKUP(CT1,A10:B21,2)","v":31},{"$f":"VLOOKUP(CU1,A10:B21,2)","v":28},null,null,null,null,null,null,null,null,null,null,null,null,null,null,null,null,null,null,null,null,null,null,null,null,null,null,null,null,null,null,null,null,null,null,null,null,null,null,null,null,null,null,null,null,null,null,null,null,null,null,null,null,null,null,null,null,null,null,null,null,null,null,null,null,null,null,null,null,null,null,null,null,null,null,null,null,null,null,null,null,null,null,null,null,null,null,null,null,null,null,null,null,null,null,null,null,null,null,null,null,null,null,null,null,null,null,null,null,null,null,null,null,null,null,null,null,null,null,null,null,null,null,null,null,null,null,null,null,null,null,null,null,null,null,null,null,null,null,null,null,null,null,null,null,null,null,null,null,null,null,null,null,null,null,null,null,null,null,null,null,null,null,null,null,null,null,null,null,null,null,null,null,null,null,null,null,null,null,null,null,null,null,null,null,null,null,null,null,null,null,null,null,null,null,null,null,null,null,null,null,null,null,null,null,null,null,null,null,null,null,null,null,null,null,null,null,null,null,null,null,null,null,null,null,null,null,null,null,null,null,null,null,null,null,null,null,null,null,null,null,null,null,null,null,null,null,null,null,null,null,null,null,null,null,null,null,null,null,null,null,null,null,null,null,null,null,null,null,null,null,null,null,null,null,null,null,null,null,null,null,null,null,null,null,null,null,null,null,null,null,null,null,null,null,null,null,null,null,null,null,null,null,null,null,null,null,null,null,null,null,null,null,null,null,null,null,null,null,null,null,null,null,null,null,null,null,null,null,null,null,null,null,null,null,null,null,null,null,null,null,null,null,null,null,null,null,null,null,null,null,null,null,null,null,null,null,null,null,null,null,null,null,null,null,null,null,null,null,null,null,null,null,null,null,null,null,null,null,null,null,null,null,null,null,null,null,null,null,null,null,null,null,null,null,null,null,null,null,null,null,null,null,null,null,null,null,null,null,null,null,null,null,null,null,null,null,null,null,null,null,null,null,null,null,null,null,null,null,null,null,null,null,null,null,null,null,null,null,null,null,null,null,null,null,null,null,null,null,null,null,null,null,null,null,null,null,null,null,null,null,null,null,null,null,null,null,null,null,null,null,null,null,null,null,null,null,null,null,null,null,null,null,null,null,null,null,null,null,null,null,null,null,null,null,null,null,null,null,null,null,null,null,null,null,null,null,null,null,null,null,null,null,null,null,null,null,null,null,null,null,null,null,null,null,null,null,null,null,null,null,null,null,null,null,null,null,null,null,null,null,null,null,null,null,null,null,null,null,null,null,null,null,null,null,null,null,null,null,null,null,null,null,null,null,null,null,null,null,null,null,null,null,null,null,null,null,null,null,null,null,null,null,null,null,null,null,null,null,null,null,null,null,null,null,null,null,null,null,null,null,null,null,null,null,null,null,null,null,null,null,null,null,null,null,null,null,null,null,null,null,null,null,null,null,null,null,null,null,null,null,null,null,null,null,null,null,null,null,null,null,null,null,null,null,null,null,null,null,null,null,null,null,null,null,null,null,null,null,null,null,null,null,null,null,null,null,null,null,null,null,null,null,null,null,null,null,null,null,null,null,null,null,null,null,null,null,null,null,null,null,null,null,null,null,null,null,null,null,null,null,null,null,null,null,null,null,null,null,null,null,null,null,null,null,null,null,null,null,null,null,null,null,null,null,null,null,null,null,null,null,null,null,null,null,null,null,null,null,null,null,null,null,null,null,null,null,null,null,null,null,null,null,null,null,null,null,null,null,null,null,null,null,null,null,null,null,null,null,null,null,null,null,null,null,null,null,null,null,null,null,null,null,null,null,null,null,null,null,null,null,null,null,null,null,null,null,null,null,null,null,null,null,null,null,null,null,null,null,null,null,null,null,null,null,null,null,null,null,null,null,null,null,null,null,null,null,null,null,null,null,null,null,null,null,null,null,null,null,null,null,null,null,null,null,null,null,null,null,null,null,null,null,null,null,null,null,null,null,null,null,null,null,null,null,null,null,null,null,null,null,null,null,null,null,null,null,null,null,null,null,null,null,null,null,null,null,null,null,null,null,null,null,null,null,null,null,null,null,null,null,null,null,null,null,null,null,null,null,null,null,null,null,null,null,null,null,null,null,null,null,null,null,null,null,null,null,null,null,null,null,null,null,null,null,null,null,null,null,null,null,null,null,null,null,null,null,null,null,null,null,null,null,null,null,null,null,null,null,null,null,null,null,null,null,null,null,null,null,null,null,null,null,null,null,null,null,null,null,{"$f":"AOL3-1","v":2021}]
[{"$f":"A2-1","v":"2022-02-28"},null,null,{"$f":"AU2&\" - \"&AX2","v":"2022 - 2023"},null,"ÜNVANI:",null,"Dr. Öğr. Üyesi",null,null,"FAKÜLTE/YO/MYO :",null,null,null,null,"Orman F.",null,null,null,null,null,null,null,null,null,null,null,null,null,"İmza",null,null,"(e-imzalıdır)",null,null,null,null,null,null,null,null,null,null,null,"ÖĞRETİM YILI",null,null,null,null,null,null,"2021 - 2022",null,null,null,null,null,null,"2022-01-01",null,null,null,null,2022,null,null,null,null,null,null,null,null,"BAHAR",null,null,null,null,null,null,null,null,null,null,27,27,null,null,null,null,null,null,null,null,null,{"$f":"DAY(CQ2)","v":3},null,{"$f":"UPPER(TEXT(BG3-1,\"aa\"))","v":"12"},{"$f":"UPPER(TEXT(BG3,\"aa\"))","v":"01"},{"$f":"UPPER(TEXT(BG3+31,\"aa\"))","v":"02"},null,null,null,null,null,null,null,null,null,null,null,null,null,null,null,null,null,null,null,null,null,null,null,null,null,null,null,null,null,null,null,null,null,null,null,null,null,null,null,null,null,null,null,null,null,null,null,null,null,null,null,null,null,null,null,null,null,null,null,null,null,null,null,null,null,null,null,null,null,null,null,null,null,null,null,null,null,null,null,null,null,null,null,null,null,null,null,null,null,null,null,null,null,null,null,null,null,null,null,null,null,null,null,null,null,null,null,null,null,null,null,null,null,null,null,null,null,null,null,null,null,null,null,null,null,null,null,null,null,null,null,null,null,null,null,null,null,null,null,null,null,null,null,null,null,null,null,null,null,null,null,null,null,null,null,null,null,null,null,null,null,null,null,null,null,null,null,null,null,null,null,null,null,null,null,null,null,null,null,null,null,null,null,null,null,null,null,null,null,null,null,null,null,null,null,null,null,null,null,null,null,null,null,null,null,null,null,null,null,null,null,null,null,null,null,null,null,null,null,null,null,null,null,null,null,null,null,null,null,null,null,null,null,null,null,null,null,null,null,null,null,null,null,null,null,null,null,null,null,null,null,null,null,null,null,null,null,null,null,null,null,null,null,null,null,null,null,null,null,null,null,null,null,null,null,null,null,null,null,null,null,null,null,null,null,null,null,null,null,null,null,null,null,null,null,null,null,null,null,null,null,null,null,null,null,null,null,null,null,null,null,null,null,null,null,null,null,null,null,null,null,null,null,null,null,null,null,null,null,null,null,null,null,null,null,null,null,null,null,null,null,null,null,null,null,null,null,null,null,null,null,null,null,null,null,null,null,null,null,null,null,null,null,null,null,null,null,null,null,null,null,null,null,null,null,null,null,null,null,null,null,null,null,null,null,null,null,null,null,null,null,null,null,null,null,null,null,null,null,null,null,null,null,null,null,null,null,null,null,null,null,null,null,null,null,null,null,null,null,null,null,null,null,null,null,null,null,null,null,null,null,null,null,null,null,null,null,null,null,null,null,null,null,null,null,null,null,null,null,null,null,null,null,null,null,null,null,null,null,null,null,null,null,null,null,null,null,null,null,null,null,null,null,null,null,null,null,null,null,null,null,null,null,null,null,null,null,null,null,null,null,null,null,null,null,null,null,null,null,null,null,null,null,null,null,null,null,null,null,null,null,null,null,null,null,null,null,null,null,null,null,null,null,null,null,null,null,null,null,null,null,null,null,null,null,null,null,null,null,null,null,null,null,null,null,null,null,null,null,null,null,null,null,null,null,null,null,null,null,null,null,null,null,null,null,null,null,null,null,null,null,null,null,null,null,null,null,null,null,null,null,null,null,null,null,null,null,null,null,null,null,null,null,null,null,null,null,null,null,null,null,null,null,null,null,null,null,null,null,null,null,null,null,null,null,null,null,null,null,null,null,null,null,null,null,null,null,null,null,null,null,null,null,null,null,null,null,null,null,null,null,null,null,null,null,null,null,null,null,null,null,null,null,null,null,null,null,null,null,null,null,null,null,null,null,null,null,null,null,null,null,null,null,null,null,null,null,null,null,null,null,null,null,null,null,null,null,null,null,null,null,null,null,null,null,null,null,null,null,null,null,null,null,null,null,null,null,null,null,null,null,null,null,null,null,null,null,null,null,null,null,null,null,null,null,null,null,null,null,null,null,null,null,null,null,null,null,null,null,null,null,null,null,null,null,null,null,null,null,null,null,null,null,null,null,null,null,null,null,null,null,null,null,null,null,null,null,null,null,null,null,null,null,null,null,null,null,null,null,null,null,null,null,null,null,null,null,null,null,null,null,null,null,null,null,null,null,null,null,null,null,null,null,null,null,null,null,null,null,null,null,null,null,null,null,null,null,null,null,null,null,null,null,null,null,null,null,null,null,null,null,null,null,null,null,null,null,null,null,null,null,null,null,null,null,null,null,null,null,null,null,null,null,null,null,null,null,null,null,null,null,null,null,null,null,null,null,null,null,null,null,null,null,null,null,null,null,null,null,null,null,null,null,null,null,null,null,null,null,null,null,null,null,null,null,null,null,null,null,null,null,null,null,null,null,null,null,null,null,null,null,null,null,null,null,null,null,null,null,null,null,null,null,null,null,null,null,null,null,null,null,null,null,null,null,null,null,null,null,null,null,null,null,null,null,null,null,null,null,null,null,null,null,null,null,null,null,null,null,null,null,null,null,null,null,null,null,null,null,null,null,null,null,null,null,null,null,null,{"$f":"VALUE(TEXT(AOL5,\"YYYY\"))","v":2022}]
[{"$f":"DAY(A3)","v":28},null,null,null,null,"İDARİ GÖREVİ:",null,"Yok",null,null,"BÖLÜMÜ :",null,"Orman Mühendisliği",null,null,null,null,null,null,null,null,null,null,null,null,null,null,null,null,null,null,null,null,null,null,null,null,null,null,null,null,null,null,null,"YARI YILI",null,null,null,null,null,null,"GÜZ",null,null,null,null,null,null,null,null,null,null,null,null,null,null,null,null,null,null,null,null,"YAZ",null,null,null,null,null,null,null,null,null,null,35,"1900-02-04",null,null,null,null,null,null,null,null,null,null,null,null,null,null,null,null,null,null,null,null,null,null,null,null,null,null,null,null,null,null,null,null,null,null,null,null,null,null,null,null,null,null,null,null,null,null,null,null,null,null,null,null,null,null,null,null,null,null,null,null,null,null,null,null,null,null,null,null,null,null,null,null,null,null,null,null,null,null,null,null,null,null,null,null,null,null,null,null,null,null,null,null,null,null,null,null,null,null,null,null,null,null,null,null,null,null,null,null,null,null,null,null,null,null,null,null,null,null,null,null,null,null,null,null,null,null,null,null,null,null,null,null,null,null,null,null,null,null,null,null,null,null,null,null,null,null,null,null,null,null,null,null,null,null,null,null,null,null,null,null,null,null,null,null,null,null,null,null,null,null,null,null,null,null,null,null,null,null,null,null,null,null,null,null,null,null,null,null,null,null,null,null,null,null,null,null,null,null,null,null,null,null,null,null,null,null,null,null,null,null,null,null,null,null,null,null,null,null,null,null,null,null,null,null,null,null,null,null,null,null,null,null,null,null,null,null,null,null,null,null,null,null,null,null,null,null,null,null,null,null,null,null,null,null,null,null,null,null,null,null,null,null,null,null,null,null,null,null,null,null,null,null,null,null,null,null,null,null,null,null,null,null,null,null,null,null,null,null,null,null,null,null,null,null,null,null,null,null,null,null,null,null,null,null,null,null,null,null,null,null,null,null,null,null,null,null,null,null,null,null,null,null,null,null,null,null,null,null,null,null,null,null,null,null,null,null,null,null,null,null,null,null,null,null,null,null,null,null,null,null,null,null,null,null,null,null,null,null,null,null,null,null,null,null,null,null,null,null,null,null,null,null,null,null,null,null,null,null,null,null,null,null,null,null,null,null,null,null,null,null,null,null,null,null,null,null,null,null,null,null,null,null,null,null,null,null,null,null,null,null,null,null,null,null,null,null,null,null,null,null,null,null,null,null,null,null,null,null,null,null,null,null,null,null,null,null,null,null,null,null,null,null,null,null,null,null,null,null,null,null,null,null,null,null,null,null,null,null,null,null,null,null,null,null,null,null,null,null,null,null,null,null,null,null,null,null,null,null,null,null,null,null,null,null,null,null,null,null,null,null,null,null,null,null,null,null,null,null,null,null,null,null,null,null,null,null,null,null,null,null,null,null,null,null,null,null,null,null,null,null,null,null,null,null,null,null,null,null,null,null,null,null,null,null,null,null,null,null,null,null,null,null,null,null,null,null,null,null,null,null,null,null,null,null,null,null,null,null,null,null,null,null,null,null,null,null,null,null,null,null,null,null,null,null,null,null,null,null,null,null,null,null,null,null,null,null,null,null,null,null,null,null,null,null,null,null,null,null,null,null,null,null,null,null,null,null,null,null,null,null,null,null,null,null,null,null,null,null,null,null,null,null,null,null,null,null,null,null,null,null,null,null,null,null,null,null,null,null,null,null,null,null,null,null,null,null,null,null,null,null,null,null,null,null,null,null,null,null,null,null,null,null,null,null,null,null,null,null,null,null,null,null,null,null,null,null,null,null,null,null,null,null,null,null,null,null,null,null,null,null,null,null,null,null,null,null,null,null,null,null,null,null,null,null,null,null,null,null,null,null,null,null,null,null,null,null,null,null,null,null,null,null,null,null,null,null,null,null,null,null,null,null,null,null,null,null,null,null,null,null,null,null,null,null,null,null,null,null,null,null,null,null,null,null,null,null,null,null,null,null,null,null,null,null,null,null,null,null,null,null,null,null,null,null,null,null,null,null,null,null,null,null,null,null,null,null,null,null,null,null,null,null,null,null,null,null,null,null,null,null,null,null,null,null,null,null,null,null,null,null,null,null,null,null,null,null,null,null,null,null,null,null,null,null,null,null,null,null,null,null,null,null,null,null,null,null,null,null,null,null,null,null,null,null,null,null,null,null,null,null,null,null,null,null,null,null,null,null,null,null,null,null,null,null,null,null,null,null,null,null,null,null,null,null,null,null,null,null,null,null,null,null,null,null,null,null,null,null,null,null,null,null,null,null,null,null,null,null,null,null,null,null,null,null,null,null,null,null,null,null,null,null,null,null,null,null,null,null,null,null,null,null,null,null,null,null,null,null,null,null,null,null,null,null,null,null,null,null,null,null,null,null,null,null,null,null,null,null,null,null,null,null,null,null,null,null,null,null,null,null,null,null,null,null,null,null,null,null,null,null,null,null,null,null,null,null,null,null,null,null,null,null,null,null,null,null,null,null,null,null,null,null,{"$f":"AOL3+1","v":2023},{"$f":"MONTH(BG3)","v":1}]
[null,null,null,null,null,null,null,null,null,null,null,{"$f":"VLOOKUP(H3,A45:B49,2)","v":10},null,null,{"$f":"IF(AND(H4=\"Yok\",L5>10),-L5,-VLOOKUP(H4,A32:B39,2)*L5)","v":-10},{"$f":"IF(P26-O5>20,20,P26-O5)","v":20},{"$f":"IF($BX$2=1,1,\"\")","v":""},10,{"$f":"IF($BX$2=2,1,\"\")","v":""},null,{"$f":"IF($BX$2=3,1,\"\")","v":""},null,{"$f":"IF($BX$2=4,1,\"\")","v":""},null,{"$f":"IF($BX$2=5,1,\"\")","v":""},null,{"$f":"IF($BX$2=6,1,\"\")","v":1},null,{"$f":"IF($BY$2=7,1,\"\")","v":""},null,"GÜNLÜK DERS DAĞILIMI",null,null,null,null,null,null,null,null,null,null,null,null,null,null,null,null,null,null,null,null,null,null,null,null,null,null,null,null,null,null,null,null,null,null,null,null,null,null,null,null,null,{"$f":"IF(BU6=1,5,4)","v":4},null,null,null,null,null,null,null,null,null,null,null,null,-10,-10,0,0,-10,null,null,null,null,null,null,null,null,null,null,null,null,null,null,null,null,null,null,null,null,null,null,null,null,null,null,null,null,null,null,null,null,null,null,null,null,null,null,null,null,null,null,null,null,null,null,null,null,null,null,null,null,null,null,null,null,null,null,null,null,null,null,null,null,null,null,null,null,null,null,null,null,null,null,null,null,null,null,null,null,null,null,null,null,null,null,null,null,null,null,null,null,null,null,null,null,null,null,null,null,null,null,null,null,null,null,null,null,null,null,null,null,null,null,null,null,null,null,null,null,null,null,null,null,null,null,null,null,null,null,null,null,null,null,null,null,null,null,null,null,null,null,null,null,null,null,null,null,null,null,null,null,null,null,null,null,null,null,null,null,null,null,null,null,null,null,null,null,null,null,null,null,null,null,null,null,null,null,null,null,null,null,null,null,null,null,null,null,null,null,null,null,null,null,null,null,null,null,null,null,null,null,null,null,null,null,null,null,null,null,null,null,null,null,null,null,null,null,null,null,null,null,null,null,null,null,null,null,null,null,null,null,null,null,null,null,null,null,null,null,null,null,null,null,null,null,null,null,null,null,null,null,null,null,null,null,null,null,null,null,null,null,null,null,null,null,null,null,null,null,null,null,null,null,null,null,null,null,null,null,null,null,null,null,null,null,null,null,null,null,null,null,null,null,null,null,null,null,null,null,null,null,null,null,null,null,null,null,null,null,null,null,null,null,null,null,null,null,null,null,null,null,null,null,null,null,null,null,null,null,null,null,null,null,null,null,null,null,null,null,null,null,null,null,null,null,null,null,null,null,null,null,null,null,null,null,null,null,null,null,null,null,null,null,null,null,null,null,null,null,null,null,null,null,null,null,null,null,null,null,null,null,null,null,null,null,null,null,null,null,null,null,null,null,null,null,null,null,null,null,null,null,null,null,null,null,null,null,null,null,null,null,null,null,null,null,null,null,null,null,null,null,null,null,null,null,null,null,null,null,null,null,null,null,null,null,null,null,null,null,null,null,null,null,null,null,null,null,null,null,null,null,null,null,null,null,null,null,null,null,null,null,null,null,null,null,null,null,null,null,null,null,null,null,null,null,null,null,null,null,null,null,null,null,null,null,null,null,null,null,null,null,null,null,null,null,null,null,null,null,null,null,null,null,null,null,null,null,null,null,null,null,null,null,null,null,null,null,null,null,null,null,null,null,null,null,null,null,null,null,null,null,null,null,null,null,null,null,null,null,null,null,null,null,null,null,null,null,null,null,null,null,null,null,null,null,null,null,null,null,null,null,null,null,null,null,null,null,null,null,null,null,null,null,null,null,null,null,null,null,null,null,null,null,null,null,null,null,null,null,null,null,null,null,null,null,null,null,null,null,null,null,null,null,null,null,null,null,null,null,null,null,null,null,null,null,null,null,null,null,null,null,null,null,null,null,null,null,null,null,null,null,null,null,null,null,null,null,null,null,null,null,null,null,null,null,null,null,null,null,null,null,null,null,null,null,null,null,null,null,null,null,null,null,null,null,null,null,null,null,null,null,null,null,null,null,null,null,null,null,null,null,null,null,null,null,null,null,null,null,null,null,null,null,null,null,null,null,null,null,null,null,null,null,null,null,null,null,null,null,null,null,null,null,null,null,null,null,null,null,null,null,null,null,null,null,null,null,null,null,null,null,null,null,null,null,null,null,null,null,null,null,null,null,null,null,null,null,null,null,null,null,null,null,null,null,null,null,null,null,null,null,null,null,null,null,null,null,null,null,null,null,null,null,null,null,null,null,null,null,null,null,null,null,null,null,null,null,null,null,null,null,null,null,null,null,null,null,null,null,null,null,null,null,null,null,null,null,null,null,null,null,null,null,null,null,null,null,null,null,null,null,null,null,null,null,null,null,null,null,null,null,null,null,null,null,null,null,null,null,null,null,null,null,null,null,null,null,null,null,null,null,null,null,null,null,null,null,null,null,null,null,null,null,null,null,null,null,null,null,null,null,null,null,null,null,null,null,null,null,null,null,null,null,null,null,null,null,null,null,null,null,null,null,null,null,null,null,null,null,null,null,null,null,null,null,null,null,null,null,null,null,null,null,null,null,null,null,null,null,null,null,null,null,null,null,null,null,null,null,null,null,null,null,null,null,null,null,null,null,null,null,null,null,null,null,null,null,null,null,null,null,null,null,null,null,null,null,null,null,null,null,null,null,null,null,null,null,null,null,null,null,null,null,null,null,null,null,null,null,null,null,null,null,null,null,null,{"$f":"TODAY()","v":"2022-01-12"},{"$f":"DATE(BL3,AOM4,1)","v":"2022-01-01"}]
[null,null,null,null,"SIRA NO","ÖĞRETİM ÇALIŞMASI'NIN",null,null,null,null,"ÖĞRENCİ SAYISI","FAKÜLTE\nENSTİTÜ\nYO\nMYO",null,"OKUTULAN DERS",null,null,{"$f":"IF(AND(VALUE($CT$3)=1,Q7>=4),0,1)","v":1},{"$f":"IF(AND(VALUE($CT$3)=1,Q7>=4),0,1)","v":1},{"$f":"IF(AND(VALUE($CT$3)=1,S7>=5),0,1)","v":1},{"$f":"IF(AND(VALUE($CT$3)=1,S7>=5),0,1)","v":1},{"$f":"IF(AND(VALUE($CT$3)=1,U7>5),0,1)","v":1},{"$f":"IF(AND(VALUE($CT$3)=1,U7>5),0,1)","v":1},{"$f":"IF(AND(VALUE($CT$3)=1,W7>6),0,IF(AND(VALUE($CT$3)=1,W7=1),0,1))","v":1},{"$f":"IF(AND(VALUE($CT$3)=1,W7>6),0,IF(AND(VALUE($CT$3)=1,W7=1),0,1))","v":1},{"$f":"IF(AND(VALUE($CT$3)=1,Y7>7),0,IF(AND(VALUE($CT$3)=1,Y7=1),0,1))","v":1},{"$f":"IF(AND(VALUE($CT$3)=1,Y7>7),0,IF(AND(VALUE($CT$3)=1,Y7=1),0,1))","v":1},1,1,1,1,1,1,1,1,1,1,1,1,1,1,1,1,1,1,1,1,1,1,1,1,1,1,1,1,1,1,1,1,1,1,1,1,1,1,1,1,1,1,{"$f":"IF(BQ7<>\"\",1,0)","v":1},{"$f":"IF(BQ7<>\"\",1,0)","v":1},{"$f":"IF(BS7<>\"\",1,0)","v":1},{"$f":"IF(BS7<>\"\",1,0)","v":1},{"$f":"IF(AND(BF2=2,BU7>27),0,IF(AND(BU7<>\"\",BU7>5),1,0))","v":0},{"$f":"IF(AND(BF2=2,BU7>27),0,IF(AND(BU7<>\"\",BU7>5),1,0))","v":0},{"$f":"IF(AND(BW7<>\"\",BW7>6),1,0)","v":0},{"$f":"IF(AND(BW7<>\"\",BW7>6),1,0)","v":0},{"$f":"IF(AND(BY7<>\"\",BY7>7),1,0)","v":0},{"$f":"IF(AND(BY7<>\"\",BY7>7),1,0)","v":0},{"$f":"IF(OR(AND(CA7<>\"\",CA7>8),CA7<3),1,0)","v":0},{"$f":"IF(OR(AND(CA7<>\"\",CA7>8),CA7<3),1,0)","v":0},{"$f":"IF(OR(AND(CC7<>\"\",CC7>8,CB6>0),CC7<3),1,0)","v":0},{"$f":"IF(OR(AND(CC7<>\"\",CC7>8,CB6>0),CC7<3),1,0)","v":0},{"$f":"IF(AND(CE7<>\"\",CD6<>0),1,0)","v":0},{"$f":"IF(AND(CE7<>\"\",CE6<>0),1,0)","v":0},{"$f":"IF(AND(CG7<>\"\",CF6<>0),1,0)","v":0},{"$f":"IF(AND(CG7<>\"\",CG6<>0),1,0)","v":0},null,null,null,null,null,null,null,null,null,{"$f":"IF(Gün=CR7,1,IF($CT$3=1,\"\",IF(AND(CS6>1,CS6<>\"\"),CS6-1,$CS$2)))","v":27},28,29,30,31,1,31]
[null,null,null,null,null,"KODU","ADI",null,null,null,null,null,null,"TEORİK","DİĞER FAALİYETLER","DERS YÜKÜ",{"$f":"IF(Gün=Q8,1,IF(AND(CT3=1,BX2>5),$CQ$3,IF($BX$2<4,$CS$2+2-$BX$2,9-MOD($BX$2,9))))","v":3},null,{"$f":"IF(Gün=S8,1,IF(Q7<>\"\",Q7+1,IF($BX$2<4,$CS$2+2-$BX$2,9-MOD($BX$2,9))))","v":4},null,{"$f":"IF(Gün=U8,1,IF(S7<>\"\",S7+1,IF(VALUE($CS$3)=12,\"\",IF(S7<>\"\",S7+1,IF($BX$2<4,$CS$2+2-$BX$2,MOD($BX$2,9))))))","v":5},null,{"$f":"IF(AND(Gün=W8,VALUE($CS$3)=12),1,IF(U7<>\"\",U7+1,\"\"))","v":6},null,{"$f":"IF(AND(Gün=Y8,VALUE($CS$3)=12),1,IF(W7<>\"\",W7+1,\"\"))","v":7},null,{"$f":"IF(AND(Gün=AA8,VALUE($CS$3))=12,1,IF(Y7<>\"\",Y7+1,\"\"))","v":8},null,{"$f":"IF(AND(Gün=AC8,VALUE($CS$3))=12,1,IF(AA7<>\"\",AA7+1,\"\"))","v":9},null,{"$f":"IF(AC7<>\"\",AC7+1,\"\")","v":10},null,{"$f":"IF(AE7<>\"\",AE7+1,\"\")","v":11},null,{"$f":"IF(AG7<>\"\",AG7+1,\"\")","v":12},null,{"$f":"IF(AI7<>\"\",AI7+1,\"\")","v":13},null,{"$f":"IF(AK7<>\"\",AK7+1,\"\")","v":14},null,{"$f":"IF(AM7<>\"\",AM7+1,\"\")","v":15},null,{"$f":"IF(AO7<>\"\",AO7+1,\"\")","v":16},null,{"$f":"IF(AQ7<>\"\",AQ7+1,\"\")","v":17},null,{"$f":"IF(AS7<>\"\",AS7+1,\"\")","v":18},null,{"$f":"IF(AU7<>\"\",AU7+1,\"\")","v":19},null,{"$f":"IF(AW7<>\"\",AW7+1,\"\")","v":20},null,{"$f":"IF(AY7<>\"\",AY7+1,\"\")","v":21},null,{"$f":"IF(BA7<>\"\",BA7+1,\"\")","v":22},null,{"$f":"IF(BC7<>\"\",BC7+1,\"\")","v":23},null,{"$f":"IF(BE7<>\"\",BE7+1,\"\")","v":24},null,{"$f":"IF(BG7<>\"\",BG7+1,\"\")","v":25},null,{"$f":"IF(BI7<>\"\",BI7+1,\"\")","v":26},null,{"$f":"IF(BK7=CT2,1,IF(BK7=\"\",\"\",IF(BK7+1<=$CC$1,BK7+1,\"\")))","v":27},null,{"$f":"IF(BM7=CT2,1,IF(BM7=\"\",\"\",IF(BM7+1<=$CC$1,BM7+1,\"\")))","v":28},null,{"$f":"IF(BO7=1,\"\",IF(BO7=CT2,1,IF(BO7=\"\",\"\",IF(BO7+1<=$CC$1,BO7+1,\"\"))))","v":29},null,{"$f":"IF(BQ7=1,\"\",IF(BQ7=CT2,1,IF(BQ7=\"\",\"\",IF(BQ7+1<=$CC$1,BQ7+1,\"\"))))","v":30},null,{"$f":"IF(AND(VALUE(CT3)=12,BS7=31),\"\",IF(BS7=\"\",\"\",IF(BS7=CT2-2,\"\",IF(BS7=1,\"\",IF(BS7+1=CC1,\"\",IF(BS7=$CT$2,\"\",IF(BS7=$CT$2,1,IF(BS7=\"\",\"\",IF(BS7+1<=$CC$1,BS7+1,\"\")))))))))","v":""},null,{"$f":"IF(AND(VALUE(CT3)=12,BU7=31),\"\",IF(BU7=$CT$2,1,IF(BU7=\"\",\"\",IF(BU7+1<=$CC$1,BU7+1,\"\"))))","v":""},null,{"$f":"IF(AND(VALUE(CT3)=12,BW7=31),\"\",IF(BW7=$CT$2,1,IF(BW7=\"\",\"\",IF(BW7+1<=$CC$1,BW7+1,\"\"))))","v":""},null,{"$f":"IF(AND(VALUE(CT3)=12,BY7=31),\"\",IF(BY7=$CT$2,1,IF(BY7=\"\",\"\",IF(BY7+1<=$CC$1,BY7+1,\"\"))))","v":""},null,{"$f":"IF(AND(VALUE(CT3)=12,CA7=31),\"\",IF(CA7=$CT$2,1,IF(CA7=\"\",\"\",IF(CA7+1<=$CC$1,CA7+1,\"\"))))","v":""},null,{"$f":"IF(AND(VALUE(CV3)=12,CC7=31),\"\",IF(CC7=$CT$2,1,IF(CC7=\"\",\"\",IF(CC7+1<=$CC$1,CC7+1,\"\"))))","v":""},null,{"$f":"IF(AND(VALUE(CX3)=12,CE7=31),\"\",IF(CE7=$CT$2,1,IF(CE7=\"\",\"\",IF(CE7+1<=$CC$1,CE7+1,\"\"))))","v":""},null,null,"OCAK",null,null,null,null,null,null,"OCAK","Pzt","Sal","Çar","Per","Cum","Cmt","Paz",null,null,null,null,null,null,null,null,null,null,null,null,null,null,null,null,null,null,null,null,null,null,null,null,null,null,null,null,null,null,133,134,135,136,137,138,139,140,141,142,143,144,145,146,147,148,149,150,151,152,153,154,155,156,157,158,159,160,161,162,163,164,165,166,167,168,169,170,171,172,173,174,175,176,177,178,179,180,181,182,183,184,185,186,187,188,189,190,191,192,193,194,195,196,197,198,199,200,201]
[null,null,null,null,null,null,null,null,null,null,null,null,null,null,null,null,"Pzt",null,"Sal",null,"Çar",null,"Per",null,"Cum",null,"Cmt",null,"Paz",null,"Pzt",null,"Sal",null,"Çar",null,"Per",null,"Cum",null,"Cmt",null,"Paz",null,"Pzt",null,"Sal",null,"Çar",null,"Per",null,"Cum",null,"Cmt",null,"Paz",null,"Pzt",null,"Sal",null,"Çar",null,"Per",null,"Cum",null,"Cmt",null,"Paz",null,"Pzt",null,"Sal",null,"Çar",null,"Per",null,"Cum",null,"Cmt",null,"Paz",null,null,null,null,null,null,"ARALIK",null,null,null,1,2,3,4,5,6,7,null,null,null,null,"OCAK"]
[null,null,null,null,null,null,null,null,null,null,null,null,null,null,null,null,"T","D","T","D","T","D","T","D","T","D","T","D","T","D","T","D","T","D","T","D","T","D","T","D","T","D","T","D","T","D","T","D","T","D","T","D","T","D","T","D","T","D","T","D","T","D","T","D","T","D","T","D","T","D","T","D","T","D","T","D","T","D","T","D","T","D","T","D","T","D",null,null,null,null,null,null,null,null,null,null,null,null,"T","D",null,null,null,null,null,null,null,null,null,null,null,null,null,"T","D",null,null,null,null,null,null,null,null,null,null,null,null,null,null,null,1,null,0,17,30,null,null,null,null,null,null,null,null,null,null,null,0,31,44,null,null,null,null,null,null,null,null,null,null,null,0,45,58,null,null,null,null,null,null,null,null,null,null,null,0,59,72,null,null,null,null,null,null,null,null,null,null,null,0]
["AĞUSTOS",31,1,"I. ÖĞRETİM",1,"ORM543","Ders-4",null,null,null,5,"Lisansüstü Eğitim Ens.",null,3,0,{"$f":"IF(OR(N10<>\"\",O10<>\"\"),SUM(N10:O10),0)","v":3},null,null,null,null,null,null,null,null,3,null,null,null,null,null,null,null,null,null,null,null,null,null,3,null,null,null,null,null,null,null,null,null,null,null,null,null,null,null,null,null,null,null,null,null,null,null,null,null,null,null,null,null,null,null,null,null,null,null,null,null,null,null,null,null,null,null,null,null,null,null,null,null,null,null,null,null,{"$f":"IF(ISNUMBER(BY10),BY10*BY$6,0)","v":0},0,0,0,0,0,{"$f":"IF(CK10+CM10+CO10+CQ10+CS10>0,ABS(CI10-(CK10+CM10+CO10+CQ10+CS10)),0)","v":0},{"$f":"IF(CL10+CN10+CP10+CR10+CT10>0,ABS(CJ10-(CL10+CN10+CP10+CR10+CT10)),0)","v":0},null,null,null,{"$f":"Q10*Q6","v":0},0,0,0,0,0,0,0,3,0,{"$f":"IF(CZ10+DB10+DD10+DF10+DH10>0,ABS(CX10-(CZ10+DB10+DD10+DF10+DH10)),0)","v":3},{"$f":"IF(DA10+DC10+DE10+DG10+DI10>0,ABS(CY10-(DA10+DC10+DE10+DG10+DI10)),0)","v":0},null,null,null,{"$f":"Q10*MOD($Q$6+1,2)","v":0},{"$f":"R10*MOD($R$6+1,2)","v":0},{"$f":"S10*MOD($S$6+1,2)","v":0},{"$f":"T10*MOD($T$6+1,2)","v":0},{"$f":"U10*MOD($U$6+1,2)","v":0},{"$f":"V10*MOD($V$6+1,2)","v":0},{"$f":"W10*MOD($W$6+1,2)","v":0},{"$f":"X10*MOD($X$6+1,2)","v":0},{"$f":"Y10*MOD($Y$6+1,2)","v":0},{"$f":"Z10*MOD($Z$6+1,2)","v":0},{"$f":"SUM(DO10,DQ10,DS10,DU10,DW10)","v":0},{"$f":"SUM(DP10,DR10,DT10,DV10,DX10)","v":0},0,0,0,0,0,0,0,0,3,0,0,0,0,0,null,null,null,null,null,null,null,null,null,null,null,null,3,null,null,null,null,null,2,1,null,null,null,null,null,null,null,null,null,null,null,null,null,null,null,null,2,1,null,null,null,null,null,null,null,null,null,null,null,null,null,null,null,null,null,null,null,null,null,null,null,null,null,null,null,null,null,null,null,null,null,null,null,null,null,null,null,null,null,null,null,null,null,null,null,null,null,null,null,null,null,null,null,null,null,null,null,null,null,null,null,null,null,null,null,null,null,null,null,null,null,null,null,null,null,null,null,null,null,null,null,1,1,1,1,1,1,1,1,1,1,null,null,null,null,null,null,null,null,null,null,null,null,null,null,null,null,null,null,null,null,null,null,null,null,null,null,null,null,null,null,null,null,null,null,null,null,null,null,null,null,null,null,null,null,null,null,null,null,null,null,null,null,null,null,null,null,null,null,null,null,null,null,null,null,null,null,null,null,null,null,null,null,null,null,null,null,null,null,null,null,null,null,null,null,null,null,null,null,null,null,null,null,null,null,null,null,null,null,null,null,null,null,null,null,null,null,null,null,null,null,null,null,null,null,null,null,null,null,null,null,null,null,null,null,null,null,null,null,null,null,null,null,null,null,null,null,null,null,null,null,null,null,null,null,null,null,null,null,null,null,null,null,null,null,null,null,null,null,null,null,null,null,null,null,null,null,null,null,null,null,null,null,null,null,null,null,null,null,null,null,null,null,null,null,null,null,null,null,null,null,null,null,null,null,null,null,null,null,null,null,null,null,null,null,null,null,null,null,null,null,null,null,null,null,null,null,null,null,null,null,null,null,null,null,null,null,null,null,null,null,null,null,null,null,null,null,null,null,null,null,null,null,null,null,null,null,1,1,1,1,1,1,1,1,1,1,null,null,null,null,null,null,null,null,null,null,null,null,null,null,null,null,null,null,null,null,null,null,null,null,null,null,null,null,null,null,null,null,null,null,null,null,null,null,null,null,null,null,null,null,null,null,null,null,null,null,null,null,null,null,null,null,null,null,null,null,null,null,null,null,null,null,null,null,null,null,null,null,null,null,null,null,null,null,null,null,null,null,null,null,null,null,null,null,null,null,null,null,null,null,null,null,null,null,null,null,null,null,null,null,null,null,null,null,null,null,null,null,null,null,null,null,null,null,null,null,null,null,null,null,null,null,null,null,null,null,null,null,null,null,null,null,null,null,null,null,null,null,null,null,null,null,null,null,null,null,null,null,null,null,null,null,null,null,null,null,null,null,null,null,null,null,null,null,null,null,null,null,null,null,null,null,null,null,null,null,null,null,null,null,null,null,null,null,null,null,null,null,null,null,null,null,null,null,null,null,null,null,null,null,null,null,null,null,null,null,null,null,null,null,null,null,null,null,null,null,null,null,null,null,null,null,null,null,null,null,null,null,null,null,null,null,null,null,null,null,null,null,null,null,null,null,1,1,1,1,1,1,1,1,1,1,null,null,null,null,null,null,null,null,null,null,null,null,null,null,null,null,null,null,null,null,null,null,null,null,null,null,null,null,null,null,null,null,null,null,null,null,null,null,null,null,null,null,null,null,null,null,null,null,null,null,null,null,null,null,null,null,null,null,null,null,null,null,null,null,null,null,null,null,null,null,null,null,null,null,null,null,null,null,null,null,null,null,null,null,null,null,null,null,null,null,null,null,null,null,null,null,null,null,null,null,null,null,null,null,null,null,null,null,null,null,null,null,null,null,null,null,null,null,null,null,null,null,null,null,null,null,null,null,null,null,null,null,null,null,null,null,null,null,null,null,null,null,null,null,null,null,null,null,null,null,null,null,null,null,null,null,null,null,null,null,null,null,null,null,null,null,null,null,null,null,null,null,null,null,null,null,null,null,null,null,null,null,null,null,null,null,null,null,null,null,null,null,null,null,null,null,null,null,null,null,null,null,null,null,null,null,null,null,null,null,null,null,null,null,null,null,null,null,null,null,null,null,null,null,null,null,null,null,null,null,null,null,null,null,null,null,null,null,null,null,null,null,null,null,null,null,1,1,1,1,1,1,1,1,1,1,null,null,null,null,null,null,null,null,null,null,null,null,null,null,null,null,null,null,null,null,null,null,null,null,null,null,null,null,null,null,null,null,null,null,null,5]
["ARALIK",31,{"$f":"IF(L11=\"\",\"\",IF(L11=L10,C10,C10+1))","v":1},null,2,"ORM535","Ders-5",null,null,null,8,"Lisansüstü Eğitim Ens.",null,3,0,3,null,null,null,null,null,null,null,null,3,null,null,null,null,null,null,null,null,null,null,null,null,null,3,null,null,null,null,null,null,null,null,null,null,null,null,null,null,null,null,null,null,null,null,null,null,null,null,null,null,null,null,null,null,null,null,null,null,null,null,null,null,null,null,null,null,null,null,null,null,null,null,null,null,null,null,null,0,0,0,0,0,0,{"$f":"IF(CK11+CM11+CO11+CQ11+CS11>0,ABS(CI11-(CK11+CM11+CO11+CQ11+CS11)),0)","v":0},0,null,null,null,{"$f":"Q11*Q6","v":0},0,0,0,0,0,0,0,3,0,{"$f":"IF(CZ11+DB11+DD11+DF11+DH11>0,ABS(CX11-(CZ11+DB11+DD11+DF11+DH11)),0)","v":3},0,null,null,null,0,0,0,0,0,0,0,0,0,0,{"$f":"SUM(DO11,DQ11,DS11,DU11,DW11)","v":0},0,0,0,0,0,0,0,0,0,3,0,0,0,0,0,null,null,null,null,null,null,null,null,null,null,null,null,3,null,null,null,null,null,null,null,null,null,null,null,null,null,5,null,null,null,null,null,5,null,null,null,null,null,null,null,null,null,null,null,null,null,null,null,null,null,null,null,null,null,null,null,null,null,null,null,null,null,null,null,null,null,null,null,null,null,null,null,null,null,null,null,null,null,null,null,null,null,null,null,null,null,null,null,null,null,null,null,null,null,null,null,null,null,null,null,null,null,null,null,null,null,null,null,null,null,null,null,null,null,null,null,null,null,null,null,null,null,null,null,null,null,null,null,null,null,null,null,null,null,null,null,null,3,3,3,3,3,3,3,3,3,3,null,null,null,null,null,null,null,null,null,null,null,null,null,null,null,null,null,null,null,null,null,null,null,null,null,null,null,null,null,null,null,null,null,null,null,null,null,null,null,null,null,null,null,null,null,null,null,null,null,null,null,null,null,null,null,null,null,null,null,null,null,null,null,null,null,null,null,null,null,null,null,null,null,null,null,null,null,null,null,null,null,null,null,null,null,null,null,null,null,null,null,null,null,null,null,null,null,null,null,null,null,null,null,null,null,null,null,null,null,null,null,null,null,null,null,null,null,null,null,null,null,null,null,null,null,null,null,null,null,null,null,null,null,null,null,null,null,null,null,null,null,null,null,null,null,null,null,null,null,null,null,null,null,null,null,null,null,null,null,null,null,null,null,null,null,null,null,null,null,null,null,null,null,null,null,null,null,null,null,null,null,null,null,null,null,null,null,null,null,null,null,null,null,null,null,null,null,null,null,null,null,null,null,null,null,null,null,null,null,null,null,null,null,null,null,null,null,null,null,null,null,null,null,null,null,null,null,null,null,null,null,null,null,null,null,null,null,null,null,null,null,null,null,null,null,null,3,3,3,3,3,3,3,3,3,3,null,null,null,null,null,null,null,null,null,null,null,null,null,null,null,null,null,null,null,null,null,null,null,null,null,null,null,null,null,null,null,null,null,null,null,null,null,null,null,null,null,null,null,null,null,null,null,null,null,null,null,null,null,null,null,null,null,null,null,null,null,null,null,null,null,null,null,null,null,null,null,null,null,null,null,null,null,null,null,null,null,null,null,null,null,null,null,null,null,null,null,null,null,null,null,null,null,null,null,null,null,null,null,null,null,null,null,null,null,null,null,null,null,null,null,null,null,null,null,null,null,null,null,null,null,null,null,null,null,null,null,null,null,null,null,null,null,null,null,null,null,null,null,null,null,null,null,null,null,null,null,null,null,null,null,null,null,null,null,null,null,null,null,null,null,null,null,null,null,null,null,null,null,null,null,null,null,null,null,null,null,null,null,null,null,null,null,null,null,null,null,null,null,null,null,null,null,null,null,null,null,null,null,null,null,null,null,null,null,null,null,null,null,null,null,null,null,null,null,null,null,null,null,null,null,null,null,null,null,null,null,null,null,null,null,null,null,null,null,null,null,null,null,null,null,null,3,3,3,3,3,3,3,3,3,3,null,null,null,null,null,null,null,null,null,null,null,null,null,null,null,null,null,null,null,null,null,null,null,null,null,null,null,null,null,null,null,null,null,null,null,null,null,null,null,null,null,null,null,null,null,null,null,null,null,null,null,null,null,null,null,null,null,null,null,null,null,null,null,null,null,null,null,null,null,null,null,null,null,null,null,null,null,null,null,null,null,null,null,null,null,null,null,null,null,null,null,null,null,null,null,null,null,null,null,null,null,null,null,null,null,null,null,null,null,null,null,null,null,null,null,null,null,null,null,null,null,null,null,null,null,null,null,null,null,null,null,null,null,null,null,null,null,null,null,null,null,null,null,null,null,null,null,null,null,null,null,null,null,null,null,null,null,null,null,null,null,null,null,null,null,null,null,null,null,null,null,null,null,null,null,null,null,null,null,null,null,null,null,null,null,null,null,null,null,null,null,null,null,null,null,null,null,null,null,null,null,null,null,null,null,null,null,null,null,null,null,null,null,null,null,null,null,null,null,null,null,null,null,null,null,null,null,null,null,null,null,null,null,null,null,null,null,null,null,null,null,null,null,null,null,null,3,3,3,3,3,3,3,3,3,3,null,null,null,null,null,null,null,null,null,null,null,null,null,null,null,null,null,null,null,5]
["EKİM",31,{"$f":"IF(L12=\"\",\"\",IF(L12=L11,C11,C11+1))","v":1},null,3,"ORM800","Uzmanlık Alan Dersi ",null,null,null,2,"Lisansüstü Eğitim Ens.",null,4,0,{"$f":"IF(OR(N12<>\"\",O12<>\"\"),SUM(N12:O12),0)","v":4},4,null,null,null,null,null,null,null,null,null,null,null,null,null,4,null,null,null,null,null,null,null,null,null,null,null,null,null,4,null,null,null,null,null,null,null,null,null,null,null,null,null,4,null,null,null,null,null,null,null,null,null,null,null,null,null,4,null,null,null,null,null,null,null,null,null,null,null,null,null,null,null,null,null,null,null,0,0,0,0,0,0,0,0,null,null,null,{"$f":"Q12*Q6","v":4},0,0,0,0,0,0,0,0,0,4,0,null,null,null,0,0,0,0,0,0,0,0,0,0,0,0,4,0,0,0,0,0,0,0,0,0,0,0,0,0,null,null,null,null,4,null,null,null,null,null,null,null,null,null,null,null,null,null,null,null,null,null,null,null,3,null,null,null,null,null,null,null,null,null,3,null,null,null,null,null,null,null,null,null,null,null,null,null,null,null,null,null,null,null,null,null,null,null,null,null,null,null,null,null,null,null,null,null,null,null,null,null,null,null,null,null,null,null,null,null,null,null,null,null,null,null,null,null,null,null,null,null,null,null,null,null,null,null,null,null,null,null,null,null,null,null,null,null,null,null,null,null,null,null,null,null,null,null,null,null,null,null,null,null,null,null,null,null,null,null,null,null,null,null,null,null,null,null,null,null,null,null,null,null,null,null,null,null,null,null,null,null,null,1,1,1,1,1,1,1,1,1,1,null,null,null,null,null,null,null,null,null,null,null,null,null,null,null,null,null,null,null,null,null,null,null,null,null,null,null,null,null,null,null,null,null,null,null,null,null,null,null,null,null,null,null,null,null,null,null,null,null,null,null,null,null,null,null,null,null,null,null,null,null,null,null,null,null,null,null,null,null,null,null,null,null,null,null,null,null,null,null,null,null,null,null,null,null,null,null,null,null,null,null,null,null,null,null,null,null,null,null,null,null,null,null,null,null,null,null,null,null,null,null,null,null,null,null,null,null,null,null,null,null,null,null,null,null,null,null,null,null,null,null,null,null,null,null,null,null,null,null,null,null,null,null,null,null,null,null,null,null,null,null,null,null,null,null,null,null,null,null,null,null,null,null,null,null,null,null,null,null,null,null,null,null,null,null,null,null,null,null,null,null,null,null,null,null,null,null,null,null,null,null,null,null,null,null,null,null,null,null,null,null,null,null,null,null,null,null,null,null,null,null,null,null,null,null,null,null,null,null,null,null,null,null,null,null,null,null,null,null,null,null,null,null,null,null,null,null,null,null,null,null,null,null,null,null,null,1,1,1,1,1,1,1,1,1,1,null,null,null,null,null,null,null,null,null,null,null,null,null,null,null,null,null,null,null,null,null,null,null,null,null,null,null,null,null,null,null,null,null,null,null,null,null,null,null,null,null,null,null,null,null,null,null,null,null,null,null,null,null,null,null,null,null,null,null,null,null,null,null,null,null,null,null,null,null,null,null,null,null,null,null,null,null,null,null,null,null,null,null,null,null,null,null,null,null,null,null,null,null,null,null,null,null,null,null,null,null,null,null,null,null,null,null,null,null,null,null,null,null,null,null,null,null,null,null,null,null,null,null,null,null,null,null,null,null,null,null,null,null,null,null,null,null,null,null,null,null,null,null,null,null,null,null,null,null,null,null,null,null,null,null,null,null,null,null,null,null,null,null,null,null,null,null,null,null,null,null,null,null,null,null,null,null,null,null,null,null,null,null,null,null,null,null,null,null,null,null,null,null,null,null,null,null,null,null,null,null,null,null,null,null,null,null,null,null,null,null,null,null,null,null,null,null,null,null,null,null,null,null,null,null,null,null,null,null,null,null,null,null,null,null,null,null,null,null,null,null,null,null,null,null,null,1,1,1,1,1,1,1,1,1,1,null,null,null,null,null,null,null,null,null,null,null,null,null,null,null,null,null,null,null,null,null,null,null,null,null,null,null,null,null,null,null,null,null,null,null,null,null,null,null,null,null,null,null,null,null,null,null,null,null,null,null,null,null,null,null,null,null,null,null,null,null,null,null,null,null,null,null,null,null,null,null,null,null,null,null,null,null,null,null,null,null,null,null,null,null,null,null,null,null,null,null,null,null,null,null,null,null,null,null,null,null,null,null,null,null,null,null,null,null,null,null,null,null,null,null,null,null,null,null,null,null,null,null,null,null,null,null,null,null,null,null,null,null,null,null,null,null,null,null,null,null,null,null,null,null,null,null,null,null,null,null,null,null,null,null,null,null,null,null,null,null,null,null,null,null,null,null,null,null,null,null,null,null,null,null,null,null,null,null,null,null,null,null,null,null,null,null,null,null,null,null,null,null,null,null,null,null,null,null,null,null,null,null,null,null,null,null,null,null,null,null,null,null,null,null,null,null,null,null,null,null,null,null,null,null,null,null,null,null,null,null,null,null,null,null,null,null,null,null,null,null,null,null,null,null,null,1,1,1,1,1,1,1,1,1,1,null,null,null,1]
["EYLÜL",30,1,null,4,"ORM900","Uzmanlık Alan Dersi ",null,null,null,2,"Lisansüstü Eğitim Ens.",null,4,0,{"$f":"IF(OR(N13<>\"\",O13<>\"\"),SUM(N13:O13),0)","v":4},null,null,4,null,null,null,null,null,null,null,null,null,null,null,null,null,4,null,null,null,null,null,null,null,null,null,null,null,null,null,4,null,null,null,null,null,null,null,null,null,null,null,null,null,4,null,null,null,null,null,null,null,null,null,null,null,null,null,4,null,null,null,null,null,null,null,null,null,null,null,null,null,null,null,null,null,0,0,0,0,0,0,0,0,null,null,null,{"$f":"Q13*Q6","v":0},0,4,0,0,0,0,0,0,0,4,0,null,null,null,0,0,0,0,0,0,0,0,0,0,0,0,0,0,4,0,0,0,0,0,0,0,0,0,0,0,null,null,null,null,null,null,4,null,null,null,null,null,null,null,null,null,null,null,null,null,4,null,null,null,null,null,null,null,null,null,null,null,null,null,null,null,null,null,null,null,4,null,null,null,null,null,null,null,null,null,null,null,null,null,null,null,null,null,null,null,null,null,null,null,null,null,null,null,null,null,null,null,null,null,null,null,null,null,null,null,null,null,null,null,null,null,null,null,null,null,null,null,null,null,null,null,null,null,null,null,null,null,null,null,null,null,null,null,null,null,null,null,null,null,null,null,null,null,null,null,null,null,null,null,null,null,null,null,null,null,null,null,null,null,null,null,null,null,null,null,null,null,null,null,null,null,null,null,null,null,null,null,null,null,null,null,null,null,null,null,null,null,null,null,null,null,null,null,null,null,null,null,null,null,null,null,null,null,null,null,null,null,null,null,null,null,null,null,null,null,null,null,null,null,null,null,null,null,null,null,null,null,null,null,null,null,null,null,null,null,null,null,null,null,null,null,null,null,null,null,null,null,null,null,null,null,null,null,null,null,null,null,null,null,null,null,null,null,null,null,null,null,null,null,null,null,null,null,null,null,null,null,null,null,null,null,null,null,null,null,null,null,null,null,null,null,null,null,null,null,null,null,null,null,null,null,null,null,null,null,null,null,null,null,null,null,null,null,null,null,null,null,null,null,null,null,null,null,null,null,null,null,null,null,null,null,null,null,null,null,null,null,null,null,null,null,null,null,null,null,null,null,null,null,null,null,null,null,null,null,null,null,null,null,null,null,null,null,null,null,null,null,null,null,null,null,null,null,null,null,null,null,null,null,null,null,null,null,null,null,null,null,null,null,null,null,null,null,null,null,null,null,null,null,null,null,null,null,null,null,null,null,null,null,null,null,null,null,null,null,null,null,null,null,null,null,null,null,null,null,null,null,null,null,null,null,null,null,null,null,null,null,null,null,null,null,null,null,null,null,null,null,null,null,null,null,null,null,null,null,null,null,null,null,null,null,null,null,null,null,null,null,null,null,null,null,null,null,null,null,null,null,null,null,null,null,null,null,null,null,null,null,null,null,null,null,null,null,null,null,null,null,null,null,null,null,null,null,null,null,null,null,null,null,null,null,null,null,null,null,null,null,null,null,null,null,null,null,null,null,null,null,null,null,null,null,null,null,null,null,null,null,null,null,null,null,null,null,null,null,null,null,null,null,null,null,null,null,null,null,null,null,null,null,null,null,null,null,null,null,null,null,null,null,null,null,null,null,null,null,null,null,null,null,null,null,null,null,null,null,null,null,null,null,null,null,null,null,null,null,null,null,null,null,null,null,null,null,null,null,null,null,null,null,null,null,null,null,null,null,null,null,null,null,null,null,null,null,null,null,null,null,null,null,null,null,null,null,null,null,null,null,null,null,null,null,null,null,null,null,null,null,null,null,null,null,null,null,null,null,null,null,null,null,null,null,null,null,null,null,null,null,null,null,null,null,null,null,null,null,null,null,null,null,null,null,null,null,null,null,null,null,null,null,null,null,null,null,null,null,null,null,null,null,null,null,null,null,null,null,null,null,null,null,null,null,null,null,null,null,null,null,null,null,null,null,null,null,null,null,null,null,null,null,null,null,null,null,null,null,null,null,null,null,null,null,null,null,null,null,null,null,null,null,null,null,null,null,null,null,null,null,null,null,null,null,null,null,null,null,null,null,null,null,null,null,null,null,null,null,null,null,null,null,null,null,null,null,null,null,null,null,null,null,null,null,null,null,null,null,null,null,null,null,null,null,null,null,null,null,null,null,null,null,null,null,null,null,null,null,null,null,null,null,null,null,null,null,null,null,null,null,null,null,null,null,null,null,null,null,null,null,null,null,null,null,null,null,null,null,null,null,null,null,null,null,null,null,null,null,null,null,null,null,null,null,null,null,null,null,null,null,null,null,null,null,null,null,null,null,null,null,null,null,null,null,null,null,null,null,null,null,null,null,null,null,null,null,null,null,null,null,null,null,null,null,null,null,null,null,null,null,null,null,null,null,null,null,null,null,null,null,null,null,null,null,null,null,null,null,null,null,null,null,null,null,null,null,null,null,null,null,null,null,null,null,null,null,null,null,null,null,null,null,null,null,null,null,null,null,null,null,null,null,2]
["HAZİRAN",30,1,null,5,"ORMYD","Danışmanlık",null,null,null,4,"Lisansüstü Eğitim Ens.",null,0,4,4,null,2,null,2,null,null,null,null,null,null,null,null,null,null,null,2,null,2,null,null,null,null,null,null,null,null,null,null,null,2,null,2,null,null,null,null,null,null,null,null,null,null,null,2,null,2,null,null,null,null,null,null,null,null,null,null,null,2,null,2,null,null,null,null,null,null,null,null,null,null,null,null,null,null,null,null,0,0,0,0,0,0,0,0,null,null,null,{"$f":"Q14*Q6","v":0},2,0,2,0,0,0,0,0,0,0,4,null,null,null,0,0,0,0,0,0,0,0,0,0,0,0,0,2,0,2,0,0,0,0,0,0,0,0,0,0,null,null,null,null,null,2,null,2,null,null,null,null,null,null,null,null,null,null,null,null,null,null,4,null,null,null,null,null,null,null,null,null,4,null,null,null,null,null,null,null,null,null,null,null,null,null,null,null,null,null,null,null,null,null,null,null,null,null,null,null,null,null,null,null,null,null,null,null,null,null,null,null,null,null,null,null,null,null,null,null,null,null,null,null,null,null,null,null,null,null,null,null,null,null,null,null,null,null,null,null,null,null,null,null,null,null,null,null,null,null,null,null,null,null,null,null,null,null,null,null,null,null,null,null,null,null,null,null,null,null,null,null,null,null,null,null,null,null,null,null,null,null,null,null,null,null,null,null,null,null,null,null,null,null,null,null,null,null,null,null,null,null,null,null,null,null,null,null,null,null,null,null,null,null,null,null,null,null,null,null,null,null,null,null,null,null,null,null,null,null,null,null,null,null,null,null,null,null,null,null,null,null,null,null,null,null,null,null,null,null,null,null,null,null,null,null,null,null,null,null,null,null,null,null,null,null,null,null,null,null,null,null,null,null,null,null,null,null,null,null,null,null,null,null,null,null,null,null,null,null,null,null,null,null,null,null,null,null,null,null,null,null,null,null,null,null,null,null,null,null,null,null,null,null,null,null,null,null,null,null,null,null,null,null,null,null,null,null,null,null,null,null,null,null,null,null,null,null,null,null,null,null,null,null,null,null,null,null,null,null,null,null,null,null,null,null,null,null,null,null,null,null,null,null,null,null,null,null,null,null,null,null,null,null,null,null,null,null,null,null,null,null,null,null,null,null,null,null,null,null,null,null,null,null,null,null,null,null,null,null,null,null,null,null,null,null,null,null,null,null,null,null,null,null,null,null,null,null,null,null,null,null,null,null,null,null,null,null,null,null,null,null,null,null,null,null,null,null,null,null,null,null,null,null,null,null,null,null,null,null,null,null,null,null,null,null,null,null,null,null,null,null,null,null,null,null,null,null,null,null,null,null,null,null,null,null,null,null,null,null,null,null,null,null,null,null,null,null,null,null,null,null,null,null,null,null,null,null,null,null,null,null,null,null,null,null,null,null,null,null,null,null,null,null,null,null,null,null,null,null,null,null,null,null,null,null,null,null,null,null,null,null,null,null,null,null,null,null,null,null,null,null,null,null,null,null,null,null,null,null,null,null,null,null,null,null,null,null,null,null,null,null,null,null,null,null,null,null,null,null,null,null,null,null,null,null,null,null,null,null,null,null,null,null,null,null,null,null,null,null,null,null,null,null,null,null,null,null,null,null,null,null,null,null,null,null,null,null,null,null,null,null,null,null,null,null,null,null,null,null,null,null,null,null,null,null,null,null,null,null,null,null,null,null,null,null,null,null,null,null,null,null,null,null,null,null,null,null,null,null,null,null,null,null,null,null,null,null,null,null,null,null,null,null,null,null,null,null,null,null,null,null,null,null,null,null,null,null,null,null,null,null,null,null,null,null,null,null,null,null,null,null,null,null,null,null,null,null,null,null,null,null,null,null,null,null,null,null,null,null,null,null,null,null,null,null,null,null,null,null,null,null,null,null,null,null,null,null,null,null,null,null,null,null,null,null,null,null,null,null,null,null,null,null,null,null,null,null,null,null,null,null,null,null,null,null,null,null,null,null,null,null,null,null,null,null,null,null,null,null,null,null,null,null,null,null,null,null,null,null,null,null,null,null,null,null,null,null,null,null,null,null,null,null,null,null,null,null,null,null,null,null,null,null,null,null,null,null,null,null,null,null,null,null,null,null,null,null,null,null,null,null,null,null,null,null,null,null,null,null,null,null,null,null,null,null,null,null,null,null,null,null,null,null,null,null,null,null,null,null,null,null,null,null,null,null,null,null,null,null,null,null,null,null,null,null,null,null,null,null,null,null,null,null,null,null,null,null,null,null,null,null,null,null,null,null,null,null,null,null,null,null,null,null,null,null,null,null,null,null,null,null,null,null,null,null,null,null,null,null,null,null,null,null,null,null,null,null,null,null,null,null,null,null,null,null,null,null,null,null,null,null,null,null,null,null,null,null,null,null,null,null,null,null,null,null,null,null,null,null,null,null,null,null,null,null,null,null,null,null,null,null,null,null,null,null,null,null,null,null,null,null,null,null,4]
["KASIM",30,2,null,6,"OM112","Ders-1",null,null,null,77,"Orman F.",null,2,2,4,null,null,null,null,2,2,null,null,null,null,null,null,null,null,null,null,null,null,2,2,null,null,null,null,null,null,null,null,null,null,null,null,null,null,null,null,null,null,null,null,null,null,null,null,null,null,null,null,null,null,null,null,null,null,null,null,null,null,null,null,null,null,null,null,null,null,null,null,null,null,null,null,null,null,null,null,0,0,0,0,0,0,0,0,null,null,null,{"$f":"Q15*Q6","v":0},0,0,0,2,2,0,0,0,0,2,2,null,null,null,0,0,0,0,0,0,0,0,0,0,0,0,0,0,0,0,2,2,0,0,0,0,0,0,0,0,null,null,null,null,null,null,null,null,2,2,null,null,null,null,null,null,null,null,null,2,null,2,null,null,null,null,null,null,null,null,null,null,null,null,null,4,null,null,null,null,null,null,null,null,null,null,null,null,null,null,null,null,null,null,null,null,null,null,null,null,null,null,null,null,null,null,null,null,null,null,null,null,null,null,null,null,null,null,null,null,null,null,null,null,null,null,null,null,null,null,null,null,null,null,null,null,null,null,null,null,null,null,null,null,null,null,null,null,null,null,null,null,null,null,null,null,null,null,null,null,null,null,null,null,null,null,null,null,null,null,null,null,null,null,null,null,null,null,null,null,null,null,null,null,null,null,null,null,null,null,null,null,null,null,null,null,null,null,null,null,null,null,null,null,null,null,null,null,null,null,null,null,null,null,null,null,null,null,null,null,null,null,null,null,null,null,null,null,null,null,null,null,null,null,null,null,null,null,null,null,null,null,null,null,null,null,null,null,null,null,null,null,null,null,null,null,null,null,null,null,null,null,null,null,null,null,null,null,null,null,null,null,null,null,null,null,null,null,null,null,null,null,null,null,null,null,null,null,null,null,null,null,null,null,null,null,null,null,null,null,null,null,null,null,null,null,null,null,null,null,null,null,null,null,null,null,null,null,null,null,null,null,null,null,null,null,null,null,null,null,null,null,null,null,null,null,null,null,null,null,null,null,null,null,null,null,null,null,null,null,null,null,null,null,null,null,null,null,null,null,null,null,null,null,null,null,null,null,null,null,null,null,null,null,null,null,null,null,null,null,null,null,null,null,null,null,null,null,null,null,null,null,null,null,null,null,null,null,null,null,null,null,null,null,null,null,null,null,null,null,null,null,null,null,null,null,null,null,null,null,null,null,null,null,null,null,null,null,null,null,null,null,null,null,null,null,null,null,null,null,null,null,null,null,null,null,null,null,null,null,null,null,null,null,null,null,null,null,null,null,null,null,null,null,null,null,null,null,null,null,null,null,null,null,null,null,null,null,null,null,null,null,null,null,null,null,null,null,null,null,null,null,null,null,null,null,null,null,null,null,null,null,null,null,null,null,null,null,null,null,null,null,null,null,null,null,null,null,null,null,null,null,null,null,null,null,null,null,null,null,null,null,null,null,null,null,null,null,null,null,null,null,null,null,null,null,null,null,null,null,null,null,null,null,null,null,null,null,null,null,null,null,null,null,null,null,null,null,null,null,null,null,null,null,null,null,null,null,null,null,null,null,null,null,null,null,null,null,null,null,null,null,null,null,null,null,null,null,null,null,null,null,null,null,null,null,null,null,null,null,null,null,null,null,null,null,null,null,null,null,null,null,null,null,null,null,null,null,null,null,null,null,null,null,null,null,null,null,null,null,null,null,null,null,null,null,null,null,null,null,null,null,null,null,null,null,null,null,null,null,null,null,null,null,null,null,null,null,null,null,null,null,null,null,null,null,null,null,null,null,null,null,null,null,null,null,null,null,null,null,null,null,null,null,null,null,null,null,null,null,null,null,null,null,null,null,null,null,null,null,null,null,null,null,null,null,null,null,null,null,null,null,null,null,null,null,null,null,null,null,null,null,null,null,null,null,null,null,null,null,null,null,null,null,null,null,null,null,null,null,null,null,null,null,null,null,null,null,null,null,null,null,null,null,null,null,null,null,null,null,null,null,null,null,null,null,null,null,null,null,null,null,null,null,null,null,null,null,null,null,null,null,null,null,null,null,null,null,null,null,null,null,null,null,null,null,null,null,null,null,null,null,null,null,null,null,null,null,null,null,null,null,null,null,null,null,null,null,null,null,null,null,null,null,null,null,null,null,null,null,null,null,null,null,null,null,null,null,null,null,null,null,null,null,null,null,null,null,null,null,null,null,null,null,null,null,null,null,null,null,null,null,null,null,null,null,null,null,null,null,null,null,null,null,null,null,null,null,null,null,null,null,null,null,null,null,null,null,null,null,null,null,null,null,null,null,null,null,null,null,null,null,null,null,null,null,null,null,null,null,null,null,null,null,null,null,null,null,null,null,null,null,null,null,null,null,null,null,null,null,null,null,null,null,null,null,null,null,null,null,null,null,null,null,null,null,null,null,null,null,null,null,null,null,null,null,null,null,null,null,null,null,null,null,3]
["MART",31,2,null,7,"OM206","Ders-2",null,null,null,93,"Orman F.",null,2,1,3,null,null,null,null,null,null,2,1,null,null,null,null,null,null,null,null,null,null,null,null,2,1,null,null,null,null,null,null,null,null,null,null,null,null,null,null,null,null,null,null,null,null,null,null,null,null,null,null,null,null,null,null,null,null,null,null,null,null,null,null,null,null,null,null,null,null,null,null,null,null,null,null,null,null,null,null,0,0,0,0,0,0,0,0,null,null,null,{"$f":"Q16*Q6","v":0},0,0,0,0,0,2,1,0,0,2,1,null,null,null,0,0,0,0,0,0,0,0,0,0,0,0,0,0,0,0,0,0,2,1,0,0,0,0,0,0,null,null,null,null,null,null,null,null,null,null,2,1,null,null,null,null,null,null,null,null,null,null,null,null,null,null,null,null,null,null,null,null,null,null,null,null,null,null,null,null,null,null,null,null,null,null,null,null,null,null,null,null,null,null,null,null,null,null,null,null,null,null,null,null,null,null,null,null,null,null,null,null,null,null,null,null,null,null,null,null,null,null,null,null,null,null,null,null,null,null,null,null,null,null,null,null,null,null,null,null,null,null,null,null,null,null,null,null,null,null,null,null,null,null,null,null,null,null,null,null,null,null,null,null,null,null,null,null,null,null,null,null,null,null,null,null,null,null,null,null,null,null,null,null,null,null,null,null,null,null,null,null,null,null,null,null,null,null,null,null,null,null,null,null,null,null,null,null,null,null,null,null,null,null,null,null,null,null,null,null,null,null,null,null,null,null,null,null,null,null,null,null,null,null,null,null,null,null,null,null,null,null,null,null,null,null,null,null,null,null,null,null,null,null,null,null,null,null,null,null,null,null,null,null,null,null,null,null,null,null,null,null,null,null,null,null,null,null,null,null,null,null,null,null,null,null,null,null,null,null,null,null,null,null,null,null,null,null,null,null,null,null,null,null,null,null,null,null,null,null,null,null,null,null,null,null,null,null,null,null,null,null,null,null,null,null,null,null,null,null,null,null,null,null,null,null,null,null,null,null,null,null,null,null,null,null,null,null,null,null,null,null,null,null,null,null,null,null,null,null,null,null,null,null,null,null,null,null,null,null,null,null,null,null,null,null,null,null,null,null,null,null,null,null,null,null,null,null,null,null,null,null,null,null,null,null,null,null,null,null,null,null,null,null,null,null,null,null,null,null,null,null,null,null,null,null,null,null,null,null,null,null,null,null,null,null,null,null,null,null,null,null,null,null,null,null,null,null,null,null,null,null,null,null,null,null,null,null,null,null,null,null,null,null,null,null,null,null,null,null,null,null,null,null,null,null,null,null,null,null,null,null,null,null,null,null,null,null,null,null,null,null,null,null,null,null,null,null,null,null,null,null,null,null,null,null,null,null,null,null,null,null,null,null,null,null,null,null,null,null,null,null,null,null,null,null,null,null,null,null,null,null,null,null,null,null,null,null,null,null,null,null,null,null,null,null,null,null,null,null,null,null,null,null,null,null,null,null,null,null,null,null,null,null,null,null,null,null,null,null,null,null,null,null,null,null,null,null,null,null,null,null,null,null,null,null,null,null,null,null,null,null,null,null,null,null,null,null,null,null,null,null,null,null,null,null,null,null,null,null,null,null,null,null,null,null,null,null,null,null,null,null,null,null,null,null,null,null,null,null,null,null,null,null,null,null,null,null,null,null,null,null,null,null,null,null,null,null,null,null,null,null,null,null,null,null,null,null,null,null,null,null,null,null,null,null,null,null,null,null,null,null,null,null,null,null,null,null,null,null,null,null,null,null,null,null,null,null,null,null,null,null,null,null,null,null,null,null,null,null,null,null,null,null,null,null,null,null,null,null,null,null,null,null,null,null,null,null,null,null,null,null,null,null,null,null,null,null,null,null,null,null,null,null,null,null,null,null,null,null,null,null,null,null,null,null,null,null,null,null,null,null,null,null,null,null,null,null,null,null,null,null,null,null,null,null,null,null,null,null,null,null,null,null,null,null,null,null,null,null,null,null,null,null,null,null,null,null,null,null,null,null,null,null,null,null,null,null,null,null,null,null,null,null,null,null,null,null,null,null,null,null,null,null,null,null,null,null,null,null,null,null,null,null,null,null,null,null,null,null,null,null,null,null,null,null,null,null,null,null,null,null,null,null,null,null,null,null,null,null,null,null,null,null,null,null,null,null,null,null,null,null,null,null,null,null,null,null,null,null,null,null,null,null,null,null,null,null,null,null,null,null,null,null,null,null,null,null,null,null,null,null,null,null,null,null,null,null,null,null,null,null,null,null,null,null,null,null,null,null,null,null,null,null,null,null,null,null,null,null,null,null,null,null,null,null,null,null,null,null,null,null,null,null,null,null,null,null,null,null,null,null,null,null,null,null,null,null,null,null,null,null,null,null,null,null,null,null,null,null,null,null,null,null,null,null,null,null,null,null,null,null,null,null,null,null,null,null,null,null,null,null,null,null,4]
["MAYIS",31,2,null,8,"OEM308","Ders-3",null,null,null,32,"Orman F.",null,3,0,3,null,null,null,null,null,null,3,null,null,null,null,null,null,null,null,null,null,null,null,null,3,null,null,null,null,null,null,null,null,null,null,null,null,null,null,null,null,null,null,null,null,null,null,null,null,null,null,null,null,null,null,null,null,null,null,null,null,null,null,null,null,null,null,null,null,null,null,null,null,null,null,null,null,null,null,null,0,0,0,0,0,0,0,0,null,null,null,{"$f":"Q17*Q6","v":0},0,0,0,0,0,3,0,0,0,3,0,null,null,null,0,0,0,0,0,0,0,0,0,0,0,0,0,0,0,0,0,0,3,0,0,0,0,0,0,0,null,null,null,null,null,null,null,null,null,null,3,null,null,null,null,null,null,null,null,null,null,null,null,null,null,null,null,null,null,null,null,null,null,null,null,null,null,null,null,null,null,null,null,null,null,null,null,null,null,null,null,null,null,null,null,null,null,null,null,null,null,null,null,null,null,null,null,null,null,null,null,null,null,null,null,null,null,null,null,null,null,null,null,null,null,null,null,null,null,null,null,null,null,null,null,null,null,null,null,null,null,null,null,null,null,null,null,null,null,null,null,null,null,null,null,null,null,null,null,null,null,null,null,null,null,null,null,null,null,null,null,null,null,null,null,null,null,null,null,null,null,null,null,null,null,null,null,null,null,null,null,null,null,null,null,null,null,null,null,null,null,null,null,null,null,null,null,null,null,null,null,null,null,null,null,null,null,null,null,null,null,null,null,null,null,null,null,null,null,null,null,null,null,null,null,null,null,null,null,null,null,null,null,null,null,null,null,null,null,null,null,null,null,null,null,null,null,null,null,null,null,null,null,null,null,null,null,null,null,null,null,null,null,null,null,null,null,null,null,null,null,null,null,null,null,null,null,null,null,null,null,null,null,null,null,null,null,null,null,null,null,null,null,null,null,null,null,null,null,null,null,null,null,null,null,null,null,null,null,null,null,null,null,null,null,null,null,null,null,null,null,null,null,null,null,null,null,null,null,null,null,null,null,null,null,null,null,null,null,null,null,null,null,null,null,null,null,null,null,null,null,null,null,null,null,null,null,null,null,null,null,null,null,null,null,null,null,null,null,null,null,null,null,null,null,null,null,null,null,null,null,null,null,null,null,null,null,null,null,null,null,null,null,null,null,null,null,null,null,null,null,null,null,null,null,null,null,null,null,null,null,null,null,null,null,null,null,null,null,null,null,null,null,null,null,null,null,null,null,null,null,null,null,null,null,null,null,null,null,null,null,null,null,null,null,null,null,null,null,null,null,null,null,null,null,null,null,null,null,null,null,null,null,null,null,null,null,null,null,null,null,null,null,null,null,null,null,null,null,null,null,null,null,null,null,null,null,null,null,null,null,null,null,null,null,null,null,null,null,null,null,null,null,null,null,null,null,null,null,null,null,null,null,null,null,null,null,null,null,null,null,null,null,null,null,null,null,null,null,null,null,null,null,null,null,null,null,null,null,null,null,null,null,null,null,null,null,null,null,null,null,null,null,null,null,null,null,null,null,null,null,null,null,null,null,null,null,null,null,null,null,null,null,null,null,null,null,null,null,null,null,null,null,null,null,null,null,null,null,null,null,null,null,null,null,null,null,null,null,null,null,null,null,null,null,null,null,null,null,null,null,null,null,null,null,null,null,null,null,null,null,null,null,null,null,null,null,null,null,null,null,null,null,null,null,null,null,null,null,null,null,null,null,null,null,null,null,null,null,null,null,null,null,null,null,null,null,null,null,null,null,null,null,null,null,null,null,null,null,null,null,null,null,null,null,null,null,null,null,null,null,null,null,null,null,null,null,null,null,null,null,null,null,null,null,null,null,null,null,null,null,null,null,null,null,null,null,null,null,null,null,null,null,null,null,null,null,null,null,null,null,null,null,null,null,null,null,null,null,null,null,null,null,null,null,null,null,null,null,null,null,null,null,null,null,null,null,null,null,null,null,null,null,null,null,null,null,null,null,null,null,null,null,null,null,null,null,null,null,null,null,null,null,null,null,null,null,null,null,null,null,null,null,null,null,null,null,null,null,null,null,null,null,null,null,null,null,null,null,null,null,null,null,null,null,null,null,null,null,null,null,null,null,null,null,null,null,null,null,null,null,null,null,null,null,null,null,null,null,null,null,null,null,null,null,null,null,null,null,null,null,null,null,null,null,null,null,null,null,null,null,null,null,null,null,null,null,null,null,null,null,null,null,null,null,null,null,null,null,null,null,null,null,null,null,null,null,null,null,null,null,null,null,null,null,null,null,null,null,null,null,null,null,null,null,null,null,null,null,null,null,null,null,null,null,null,null,null,null,null,null,null,null,null,null,null,null,null,null,null,null,null,null,null,null,null,null,null,null,null,null,null,null,null,null,null,null,null,null,null,null,null,null,null,null,null,null,null,null,null,null,null,null,null,null,null,null,null,null,null,null,null,null,null,4]
["NISAN",30,"",null,9,null,null,null,null,null,null,null,null,null,null,{"$f":"IF(OR(N18<>\"\",O18<>\"\"),SUM(N18:O18),0)","v":0},null,null,null,null,null,null,null,null,null,null,null,null,null,null,null,null,null,null,null,null,null,null,null,null,null,null,null,null,null,null,null,null,null,null,null,null,null,null,null,null,null,null,null,null,null,null,null,null,null,null,null,null,null,null,null,null,null,null,null,null,null,null,null,null,null,null,null,null,null,null,null,null,null,null,null,null,0,0,0,0,0,0,0,0,null,null,null,{"$f":"Q18*Q6","v":0},0,0,0,0,0,0,0,0,0,0,0,null,null,null,0,0,0,0,0,0,0,0,0,0,0,0,0,0,0,0,0,0,0,0,0,0,0,0,0,0,null,null,null,null,null,2,null,null,null,null,null,null,null,null,null,null,null,null,null,null,null,null,null,null,null,null,null,null,null,null,null,null,null,null,null,null,null,null,null,null,null,null,null,null,null,null,null,null,null,null,null,null,null,null,null,null,null,null,null,null,null,null,null,null,null,null,null,null,null,null,null,null,null,null,null,null,null,null,null,null,null,null,null,null,null,null,null,null,null,null,null,null,null,null,null,null,null,null,null,null,null,null,null,null,null,null,null,null,null,null,null,null,null,null,null,null,null,null,null,null,null,null,null,null,null,null,null,null,null,null,null,null,null,null,null,null,null,null,null,null,null,null,null,null,null,null,null,null,null,null,null,null,null,null,null,null,null,null,null,null,null,null,null,null,null,null,null,null,null,null,null,null,null,null,null,null,null,null,null,null,null,null,null,null,null,null,null,null,null,null,null,null,null,null,null,null,null,null,null,null,null,null,null,null,null,null,null,null,null,null,null,null,null,null,null,null,null,null,null,null,null,null,null,null,null,null,null,null,null,null,null,null,null,null,null,null,null,null,null,null,null,null,null,null,null,null,null,null,null,null,null,null,null,null,null,null,null,null,null,null,null,null,null,null,null,null,null,null,null,null,null,null,null,null,null,null,null,null,null,null,null,null,null,null,null,null,null,null,null,null,null,null,null,null,null,null,null,null,null,null,null,null,null,null,null,null,null,null,null,null,null,null,null,null,null,null,null,null,null,null,null,null,null,null,null,null,null,null,null,null,null,null,null,null,null,null,null,null,null,null,null,null,null,null,null,null,null,null,null,null,null,null,null,null,null,null,null,null,null,null,null,null,null,null,null,null,null,null,null,null,null,null,null,null,null,null,null,null,null,null,null,null,null,null,null,null,null,null,null,null,null,null,null,null,null,null,null,null,null,null,null,null,null,null,null,null,null,null,null,null,null,null,null,null,null,null,null,null,null,null,null,null,null,null,null,null,null,null,null,null,null,null,null,null,null,null,null,null,null,null,null,null,null,null,null,null,null,null,null,null,null,null,null,null,null,null,null,null,null,null,null,null,null,null,null,null,null,null,null,null,null,null,null,null,null,null,null,null,null,null,null,null,null,null,null,null,null,null,null,null,null,null,null,null,null,null,null,null,null,null,null,null,null,null,null,null,null,null,null,null,null,null,null,null,null,null,null,null,null,null,null,null,null,null,null,null,null,null,null,null,null,null,null,null,null,null,null,null,null,null,null,null,null,null,null,null,null,null,null,null,null,null,null,null,null,null,null,null,null,null,null,null,null,null,null,null,null,null,null,null,null,null,null,null,null,null,null,null,null,null,null,null,null,null,null,null,null,null,null,null,null,null,null,null,null,null,null,null,null,null,null,null,null,null,null,null,null,null,null,null,null,null,null,null,null,null,null,null,null,null,null,null,null,null,null,null,null,null,null,null,null,null,null,null,null,null,null,null,null,null,null,null,null,null,null,null,null,null,null,null,null,null,null,null,null,null,null,null,null,null,null,null,null,null,null,null,null,null,null,null,null,null,null,null,null,null,null,null,null,null,null,null,null,null,null,null,null,null,null,null,null,null,null,null,null,null,null,null,null,null,null,null,null,null,null,null,null,null,null,null,null,null,null,null,null,null,null,null,null,null,null,null,null,null,null,null,null,null,null,null,null,null,null,null,null,null,null,null,null,null,null,null,null,null,null,null,null,null,null,null,null,null,null,null,null,null,null,null,null,null,null,null,null,null,null,null,null,null,null,null,null,null,null,null,null,null,null,null,null,null,null,null,null,null,null,null,null,null,null,null,null,null,null,null,null,null,null,null,null,null,null,null,null,null,null,null,null,null,null,null,null,null,null,null,null,null,null,null,null,null,null,null,null,null,null,null,null,null,null,null,null,null,null,null,null,null,null,null,null,null,null,null,null,null,null,null,null,null,null,null,null,null,null,null,null,null,null,null,null,null,null,null,null,null,null,null,null,null,null,null,null,null,null,null,null,null,null,null,null,null,null,null,null,null,null,null,null,null,null,null,null,null,null,null,null,null,null,null,null,null,null,null,null,null,null,null,null,null,null,null,null,null,null,null,null,null,null,null,null,null,null,null,null,null,null,null,null,null,null,null,null,null,null,null,2]
["OCAK",31,"",null,10,null,null,null,null,null,null,null,null,null,null,0,null,null,null,null,null,null,null,null,null,null,null,null,null,null,null,null,null,null,null,null,null,null,null,null,null,null,null,null,null,null,null,null,null,null,null,null,null,null,null,null,null,null,null,null,null,null,null,null,null,null,null,null,null,null,null,null,null,null,null,null,null,null,null,null,null,null,null,null,null,null,null,null,null,null,null,null,0,0,0,0,0,0,0,0,null,null,null,{"$f":"Q19*Q6","v":0},0,0,0,0,0,0,0,0,0,0,0,null,null,null,0,0,0,0,0,0,0,0,0,0,0,0,0,0,0,0,0,0,0,0,0,0,0,0,0,0,null,null,null,null,null,null,null,null,null,3,null,null,null,null,null,null,null,null,null,null,null,null,null,null,null,null,null,null,null,null,null,null,null,null,null,null,null,null,null,null,null,null,null,null,null,null,null,null,null,null,null,null,null,null,null,null,null,null,null,null,null,null,null,null,null,null,null,null,null,null,null,null,null,null,null,null,null,null,null,null,null,null,null,null,null,null,null,null,null,null,null,null,null,null,null,null,null,null,null,null,null,null,null,null,null,null,null,null,null,null,null,null,null,null,null,null,null,null,null,null,null,null,null,null,null,null,null,null,null,null,null,null,null,null,null,null,null,null,null,null,null,null,null,null,null,null,null,null,null,null,null,null,null,null,null,null,null,null,null,null,null,null,null,null,null,null,null,null,null,null,null,null,null,null,null,null,null,null,null,null,null,null,null,null,null,null,null,null,null,null,null,null,null,null,null,null,null,null,null,null,null,null,null,null,null,null,null,null,null,null,null,null,null,null,null,null,null,null,null,null,null,null,null,null,null,null,null,null,null,null,null,null,null,null,null,null,null,null,null,null,null,null,null,null,null,null,null,null,null,null,null,null,null,null,null,null,null,null,null,null,null,null,null,null,null,null,null,null,null,null,null,null,null,null,null,null,null,null,null,null,null,null,null,null,null,null,null,null,null,null,null,null,null,null,null,null,null,null,null,null,null,null,null,null,null,null,null,null,null,null,null,null,null,null,null,null,null,null,null,null,null,null,null,null,null,null,null,null,null,null,null,null,null,null,null,null,null,null,null,null,null,null,null,null,null,null,null,null,null,null,null,null,null,null,null,null,null,null,null,null,null,null,null,null,null,null,null,null,null,null,null,null,null,null,null,null,null,null,null,null,null,null,null,null,null,null,null,null,null,null,null,null,null,null,null,null,null,null,null,null,null,null,null,null,null,null,null,null,null,null,null,null,null,null,null,null,null,null,null,null,null,null,null,null,null,null,null,null,null,null,null,null,null,null,null,null,null,null,null,null,null,null,null,null,null,null,null,null,null,null,null,null,null,null,null,null,null,null,null,null,null,null,null,null,null,null,null,null,null,null,null,null,null,null,null,null,null,null,null,null,null,null,null,null,null,null,null,null,null,null,null,null,null,null,null,null,null,null,null,null,null,null,null,null,null,null,null,null,null,null,null,null,null,null,null,null,null,null,null,null,null,null,null,null,null,null,null,null,null,null,null,null,null,null,null,null,null,null,null,null,null,null,null,null,null,null,null,null,null,null,null,null,null,null,null,null,null,null,null,null,null,null,null,null,null,null,null,null,null,null,null,null,null,null,null,null,null,null,null,null,null,null,null,null,null,null,null,null,null,null,null,null,null,null,null,null,null,null,null,null,null,null,null,null,null,null,null,null,null,null,null,null,null,null,null,null,null,null,null,null,null,null,null,null,null,null,null,null,null,null,null,null,null,null,null,null,null,null,null,null,null,null,null,null,null,null,null,null,null,null,null,null,null,null,null,null,null,null,null,null,null,null,null,null,null,null,null,null,null,null,null,null,null,null,null,null,null,null,null,null,null,null,null,null,null,null,null,null,null,null,null,null,null,null,null,null,null,null,null,null,null,null,null,null,null,null,null,null,null,null,null,null,null,null,null,null,null,null,null,null,null,null,null,null,null,null,null,null,null,null,null,null,null,null,null,null,null,null,null,null,null,null,null,null,null,null,null,null,null,null,null,null,null,null,null,null,null,null,null,null,null,null,null,null,null,null,null,null,null,null,null,null,null,null,null,null,null,null,null,null,null,null,null,null,null,null,null,null,null,null,null,null,null,null,null,null,null,null,null,null,null,null,null,null,null,null,null,null,null,null,null,null,null,null,null,null,null,null,null,null,null,null,null,null,null,null,null,null,null,null,null,null,null,null,null,null,null,null,null,null,null,null,null,null,null,null,null,null,null,null,null,null,null,null,null,null,null,null,null,null,null,null,null,null,null,null,null,null,null,null,null,null,null,null,null,null,null,null,null,null,null,null,null,null,null,null,null,null,null,null,null,null,null,null,null,null,null,null,null,null,null,null,null,null,null,null,null,null,null,null,null,null,null,null,null,null,null,null,null,null,null,null,null,null,null,null,null,null,null,null,null,null,null,null,5]
["ŞUBAT",{"$f":"DAY(A3)","v":28},"",null,11,null,null,null,null,null,null,null,null,null,null,0,null,null,null,null,null,null,null,null,null,null,null,null,null,null,null,null,null,null,null,null,null,null,null,null,null,null,null,null,null,null,null,null,null,null,null,null,null,null,null,null,null,null,null,null,null,null,null,null,null,null,null,null,null,null,null,null,null,null,null,null,null,null,null,null,null,null,null,null,null,null,null,null,null,null,null,null,0,0,0,0,0,0,0,0,null,null,null,{"$f":"Q20*Q6","v":0},0,0,0,0,0,0,0,0,0,0,0,null,null,null,0,0,0,0,0,0,0,0,0,0,0,0,0,0,0,0,0,0,0,0,0,0,0,0,0,0,null,null,null,null,null,null,null,null,null,null,null,null,null,null,null,null,null,null,null,null,null,null,null,null,null,null,null,null,null,null,null,null,null,null,null,null,null,null,null,null,null,null,null,null,null,null,null,null,null,null,null,null,null,null,null,null,null,null,null,null,null,null,null,null,null,null,null,null,null,null,null,null,null,null,null,null,null,null,null,null,null,null,null,null,null,null,null,null,null,null,null,null,null,null,null,null,null,null,null,null,null,null,null,null,null,null,null,null,null,null,null,null,null,null,null,null,null,null,null,null,null,null,null,null,null,null,null,null,null,null,null,null,null,null,null,null,null,null,null,null,null,null,null,null,null,null,null,null,null,null,null,null,null,null,null,null,null,null,null,null,null,null,null,null,null,null,null,null,null,null,null,null,null,null,null,null,null,null,null,null,null,null,null,null,null,null,null,null,null,null,null,null,null,null,null,null,null,null,null,null,null,null,null,null,null,null,null,null,null,null,null,null,null,null,null,null,null,null,null,null,null,null,null,null,null,null,null,null,null,null,null,null,null,null,null,null,null,null,null,null,null,null,null,null,null,null,null,null,null,null,null,null,null,null,null,null,null,null,null,null,null,null,null,null,null,null,null,null,null,null,null,null,null,null,null,null,null,null,null,null,null,null,null,null,null,null,null,null,null,null,null,null,null,null,null,null,null,null,null,null,null,null,null,null,null,null,null,null,null,null,null,null,null,null,null,null,null,null,null,null,null,null,null,null,null,null,null,null,null,null,null,null,null,null,null,null,null,null,null,null,null,null,null,null,null,null,null,null,null,null,null,null,null,null,null,null,null,null,null,null,null,null,null,null,null,null,null,null,null,null,null,null,null,null,null,null,null,null,null,null,null,null,null,null,null,null,null,null,null,null,null,null,null,null,null,null,null,null,null,null,null,null,null,null,null,null,null,null,null,null,null,null,null,null,null,null,null,null,null,null,null,null,null,null,null,null,null,null,null,null,null,null,null,null,null,null,null,null,null,null,null,null,null,null,null,null,null,null,null,null,null,null,null,null,null,null,null,null,null,null,null,null,null,null,null,null,null,null,null,null,null,null,null,null,null,null,null,null,null,null,null,null,null,null,null,null,null,null,null,null,null,null,null,null,null,null,null,null,null,null,null,null,null,null,null,null,null,null,null,null,null,null,null,null,null,null,null,null,null,null,null,null,null,null,null,null,null,null,null,null,null,null,null,null,null,null,null,null,null,null,null,null,null,null,null,null,null,null,null,null,null,null,null,null,null,null,null,null,null,null,null,null,null,null,null,null,null,null,null,null,null,null,null,null,null,null,null,null,null,null,null,null,null,null,null,null,null,null,null,null,null,null,null,null,null,null,null,null,null,null,null,null,null,null,null,null,null,null,null,null,null,null,null,null,null,null,null,null,null,null,null,null,null,null,null,null,null,null,null,null,null,null,null,null,null,null,null,null,null,null,null,null,null,null,null,null,null,null,null,null,null,null,null,null,null,null,null,null,null,null,null,null,null,null,null,null,null,null,null,null,null,null,null,null,null,null,null,null,null,null,null,null,null,null,null,null,null,null,null,null,null,null,null,null,null,null,null,null,null,null,null,null,null,null,null,null,null,null,null,null,null,null,null,null,null,null,null,null,null,null,null,null,null,null,null,null,null,null,null,null,null,null,null,null,null,null,null,null,null,null,null,null,null,null,null,null,null,null,null,null,null,null,null,null,null,null,null,null,null,null,null,null,null,null,null,null,null,null,null,null,null,null,null,null,null,null,null,null,null,null,null,null,null,null,null,null,null,null,null,null,null,null,null,null,null,null,null,null,null,null,null,null,null,null,null,null,null,null,null,null,null,null,null,null,null,null,null,null,null,null,null,null,null,null,null,null,null,null,null,null,null,null,null,null,null,null,null,null,null,null,null,null,null,null,null,null,null,null,null,null,null,null,null,null,null,null,null,null,null,null,null,null,null,null,null,null,null,null,null,null,null,null,null,null,null,null,null,null,null,null,null,null,null,null,null,null,null,null,null,null,null,null,null,null,null,null,null,null,null,null,null,null,null,null,null,null,null,null,null,null,null,null,null,null,null,null,null,null,null,null,null,null,null,null,null,null,null,null,null,null,null,null,null,null,2]
["TEMMUZ",31,"",null,12,null,null,null,null,null,null,null,null,null,null,0,null,null,null,null,null,null,null,null,null,null,null,null,null,null,null,null,null,null,null,null,null,null,null,null,null,null,null,null,null,null,null,null,null,null,null,null,null,null,null,null,null,null,null,null,null,null,null,null,null,null,null,null,null,null,null,null,null,null,null,null,null,null,null,null,null,null,null,null,null,null,null,null,null,null,null,null,0,0,0,0,0,0,0,0,null,null,null,{"$f":"Q21*Q6","v":0},0,0,0,0,0,0,0,0,0,0,0,null,null,null,0,0,0,0,0,0,0,0,0,0,0,0,0,0,0,0,0,0,0,0,0,0,0,0,0,0,null,null,null,null,null,null,null,null,null,null,null,null,null,null,null,null,null,null,null,null,null,null,null,null,null,null,null,null,null,null,null,null,null,null,null,null,null,null,null,null,null,null,null,null,null,null,null,null,null,null,null,null,null,null,null,null,null,null,null,null,null,null,null,null,null,null,null,null,null,null,null,null,null,null,null,null,null,null,null,null,null,null,null,null,null,null,null,null,null,null,null,null,null,null,null,null,null,null,null,null,null,null,null,null,null,null,null,null,null,null,null,null,null,null,null,null,null,null,null,null,null,null,null,null,null,null,null,null,null,null,null,null,null,null,null,null,null,null,null,null,null,null,null,null,null,null,null,null,null,null,null,null,null,null,null,null,null,null,null,null,null,null,null,null,null,null,null,null,null,null,null,null,null,null,null,null,null,null,null,null,null,null,null,null,null,null,null,null,null,null,null,null,null,null,null,null,null,null,null,null,null,null,null,null,null,null,null,null,null,null,null,null,null,null,null,null,null,null,null,null,null,null,null,null,null,null,null,null,null,null,null,null,null,null,null,null,null,null,null,null,null,null,null,null,null,null,null,null,null,null,null,null,null,null,null,null,null,null,null,null,null,null,null,null,null,null,null,null,null,null,null,null,null,null,null,null,null,null,null,null,null,null,null,null,null,null,null,null,null,null,null,null,null,null,null,null,null,null,null,null,null,null,null,null,null,null,null,null,null,null,null,null,null,null,null,null,null,null,null,null,null,null,null,null,null,null,null,null,null,null,null,null,null,null,null,null,null,null,null,null,null,null,null,null,null,null,null,null,null,null,null,null,null,null,null,null,null,null,null,null,null,null,null,null,null,null,null,null,null,null,null,null,null,null,null,null,null,null,null,null,null,null,null,null,null,null,null,null,null,null,null,null,null,null,null,null,null,null,null,null,null,null,null,null,null,null,null,null,null,null,null,null,null,null,null,null,null,null,null,null,null,null,null,null,null,null,null,null,null,null,null,null,null,null,null,null,null,null,null,null,null,null,null,null,null,null,null,null,null,null,null,null,null,null,null,null,null,null,null,null,null,null,null,null,null,null,null,null,null,null,null,null,null,null,null,null,null,null,null,null,null,null,null,null,null,null,null,null,null,null,null,null,null,null,null,null,null,null,null,null,null,null,null,null,null,null,null,null,null,null,null,null,null,null,null,null,null,null,null,null,null,null,null,null,null,null,null,null,null,null,null,null,null,null,null,null,null,null,null,null,null,null,null,null,null,null,null,null,null,null,null,null,null,null,null,null,null,null,null,null,null,null,null,null,null,null,null,null,null,null,null,null,null,null,null,null,null,null,null,null,null,null,null,null,null,null,null,null,null,null,null,null,null,null,null,null,null,null,null,null,null,null,null,null,null,null,null,null,null,null,null,null,null,null,null,null,null,null,null,null,null,null,null,null,null,null,null,null,null,null,null,null,null,null,null,null,null,null,null,null,null,null,null,null,null,null,null,null,null,null,null,null,null,null,null,null,null,null,null,null,null,null,null,null,null,null,null,null,null,null,null,null,null,null,null,null,null,null,null,null,null,null,null,null,null,null,null,null,null,null,null,null,null,null,null,null,null,null,null,null,null,null,null,null,null,null,null,null,null,null,null,null,null,null,null,null,null,null,null,null,null,null,null,null,null,null,null,null,null,null,null,null,null,null,null,null,null,null,null,null,null,null,null,null,null,null,null,null,null,null,null,null,null,null,null,null,null,null,null,null,null,null,null,null,null,null,null,null,null,null,null,null,null,null,null,null,null,null,null,null,null,null,null,null,null,null,null,null,null,null,null,null,null,null,null,null,null,null,null,null,null,null,null,null,null,null,null,null,null,null,null,null,null,null,null,null,null,null,null,null,null,null,null,null,null,null,null,null,null,null,null,null,null,null,null,null,null,null,null,null,null,null,null,null,null,null,null,null,null,null,null,null,null,null,null,null,null,null,null,null,null,null,null,null,null,null,null,null,null,null,null,null,null,null,null,null,null,null,null,null,null,null,null,null,null,null,null,null,null,null,null,null,null,null,null,null,null,null,null,null,null,null,null,null,null,null,null,null,null,null,null,null,null,null,null,null,null,null,null,null,null,null,null,null,null,null,null,null,null,null,null,null,null,null,1]
[null,null,"",null,13,null,null,null,null,null,null,null,null,null,null,0,null,null,null,null,null,null,null,null,null,null,null,null,null,null,null,null,null,null,null,null,null,null,null,null,null,null,null,null,null,null,null,null,null,null,null,null,null,null,null,null,null,null,null,null,null,null,null,null,null,null,null,null,null,null,null,null,null,null,null,null,null,null,null,null,null,null,null,null,null,null,null,null,null,null,null,null,0,0,0,0,0,0,0,0,null,null,null,{"$f":"Q22*Q6","v":0},0,0,0,0,0,0,0,0,0,0,0,null,null,null,0,0,0,0,0,0,0,0,0,0,0,0,0,0,0,0,0,0,0,0,0,0,0,0,0,0,null,null,null,null,null,null,null,null,null,null,null,null,null,null,null,null,null,null,null,null,null,null,null,null,null,null,null,null,null,null,null,null,null,null,null,null,null,null,null,null,null,null,null,null,null,null,null,null,null,null,null,null,null,null,null,null,null,null,null,null,null,null,null,null,null,null,null,null,null,null,null,null,null,null,null,null,null,null,null,null,null,null,null,null,null,null,null,null,null,null,null,null,null,null,null,null,null,null,null,null,null,null,null,null,null,null,null,null,null,null,null,null,null,null,null,null,null,null,null,null,null,null,null,null,null,null,null,null,null,null,null,null,null,null,null,null,null,null,null,null,null,null,null,null,null,null,null,null,null,null,null,null,null,null,null,null,null,null,null,null,null,null,null,null,null,null,null,null,null,null,null,null,null,null,null,null,null,null,null,null,null,null,null,null,null,null,null,null,null,null,null,null,null,null,null,null,null,null,null,null,null,null,null,null,null,null,null,null,null,null,null,null,null,null,null,null,null,null,null,null,null,null,null,null,null,null,null,null,null,null,null,null,null,null,null,null,null,null,null,null,null,null,null,null,null,null,null,null,null,null,null,null,null,null,null,null,null,null,null,null,null,null,null,null,null,null,null,null,null,null,null,null,null,null,null,null,null,null,null,null,null,null,null,null,null,null,null,null,null,null,null,null,null,null,null,null,null,null,null,null,null,null,null,null,null,null,null,null,null,null,null,null,null,null,null,null,null,null,null,null,null,null,null,null,null,null,null,null,null,null,null,null,null,null,null,null,null,null,null,null,null,null,null,null,null,null,null,null,null,null,null,null,null,null,null,null,null,null,null,null,null,null,null,null,null,null,null,null,null,null,null,null,null,null,null,null,null,null,null,null,null,null,null,null,null,null,null,null,null,null,null,null,null,null,null,null,null,null,null,null,null,null,null,null,null,null,null,null,null,null,null,null,null,null,null,null,null,null,null,null,null,null,null,null,null,null,null,null,null,null,null,null,null,null,null,null,null,null,null,null,null,null,null,null,null,null,null,null,null,null,null,null,null,null,null,null,null,null,null,null,null,null,null,null,null,null,null,null,null,null,null,null,null,null,null,null,null,null,null,null,null,null,null,null,null,null,null,null,null,null,null,null,null,null,null,null,null,null,null,null,null,null,null,null,null,null,null,null,null,null,null,null,null,null,null,null,null,null,null,null,null,null,null,null,null,null,null,null,null,null,null,null,null,null,null,null,null,null,null,null,null,null,null,null,null,null,null,null,null,null,null,null,null,null,null,null,null,null,null,null,null,null,null,null,null,null,null,null,null,null,null,null,null,null,null,null,null,null,null,null,null,null,null,null,null,null,null,null,null,null,null,null,null,null,null,null,null,null,null,null,null,null,null,null,null,null,null,null,null,null,null,null,null,null,null,null,null,null,null,null,null,null,null,null,null,null,null,null,null,null,null,null,null,null,null,null,null,null,null,null,null,null,null,null,null,null,null,null,null,null,null,null,null,null,null,null,null,null,null,null,null,null,null,null,null,null,null,null,null,null,null,null,null,null,null,null,null,null,null,null,null,null,null,null,null,null,null,null,null,null,null,null,null,null,null,null,null,null,null,null,null,null,null,null,null,null,null,null,null,null,null,null,null,null,null,null,null,null,null,null,null,null,null,null,null,null,null,null,null,null,null,null,null,null,null,null,null,null,null,null,null,null,null,null,null,null,null,null,null,null,null,null,null,null,null,null,null,null,null,null,null,null,null,null,null,null,null,null,null,null,null,null,null,null,null,null,null,null,null,null,null,null,null,null,null,null,null,null,null,null,null,null,null,null,null,null,null,null,null,null,null,null,null,null,null,null,null,null,null,null,null,null,null,null,null,null,null,null,null,null,null,null,null,null,null,null,null,null,null,null,null,null,null,null,null,null,null,null,null,null,null,null,null,null,null,null,null,null,null,null,null,null,null,null,null,null,null,null,null,null,null,null,null,null,null,null,null,null,null,null,null,null,null,null,null,null,null,null,null,null,null,null,null,null,null,null,null,null,null,null,null,null,null,null,null,null,null,null,null,null,null,null,null,null,null,null,null,null,null,null,null,null,null,null,null,null,null,null,null,null,null,null,null,null,null,null,null,null,null,null,null,null,null,null,5]
[null,null,"",null,14,null,null,null,null,null,null,null,null,null,null,0,null,null,null,null,null,null,null,null,null,null,null,null,null,null,null,null,null,null,null,null,null,null,null,null,null,null,null,null,null,null,null,null,null,null,null,null,null,null,null,null,null,null,null,null,null,null,null,null,null,null,null,null,null,null,null,null,null,null,null,null,null,null,null,null,null,null,null,null,null,null,null,null,null,null,null,null,0,0,0,0,0,0,0,0,null,null,null,{"$f":"Q23*Q6","v":0},0,0,0,0,0,0,0,0,0,0,0,null,null,null,0,0,0,0,0,0,0,0,0,0,0,0,0,0,0,0,0,0,0,0,0,0,0,0,0,0,null,null,null,null,null,null,null,null,null,null,null,null,null,null,null,null,null,null,null,null,null,null,null,null,null,null,null,null,null,null,null,null,null,null,null,null,null,null,null,null,null,null,null,null,null,null,null,null,null,null,null,null,null,null,null,null,null,null,null,null,null,null,null,null,null,null,null,null,null,null,null,null,null,null,null,null,null,null,null,null,null,null,null,null,null,null,null,null,null,null,null,null,null,null,null,null,null,null,null,null,null,null,null,null,null,null,null,null,null,null,null,null,null,null,null,null,null,null,null,null,null,null,null,null,null,null,null,null,null,null,null,null,null,null,null,null,null,null,null,null,null,null,null,null,null,null,null,null,null,null,null,null,null,null,null,null,null,null,null,null,null,null,null,null,null,null,null,null,null,null,null,null,null,null,null,null,null,null,null,null,null,null,null,null,null,null,null,null,null,null,null,null,null,null,null,null,null,null,null,null,null,null,null,null,null,null,null,null,null,null,null,null,null,null,null,null,null,null,null,null,null,null,null,null,null,null,null,null,null,null,null,null,null,null,null,null,null,null,null,null,null,null,null,null,null,null,null,null,null,null,null,null,null,null,null,null,null,null,null,null,null,null,null,null,null,null,null,null,null,null,null,null,null,null,null,null,null,null,null,null,null,null,null,null,null,null,null,null,null,null,null,null,null,null,null,null,null,null,null,null,null,null,null,null,null,null,null,null,null,null,null,null,null,null,null,null,null,null,null,null,null,null,null,null,null,null,null,null,null,null,null,null,null,null,null,null,null,null,null,null,null,null,null,null,null,null,null,null,null,null,null,null,null,null,null,null,null,null,null,null,null,null,null,null,null,null,null,null,null,null,null,null,null,null,null,null,null,null,null,null,null,null,null,null,null,null,null,null,null,null,null,null,null,null,null,null,null,null,null,null,null,null,null,null,null,null,null,null,null,null,null,null,null,null,null,null,null,null,null,null,null,null,null,null,null,null,null,null,null,null,null,null,null,null,null,null,null,null,null,null,null,null,null,null,null,null,null,null,null,null,null,null,null,null,null,null,null,null,null,null,null,null,null,null,null,null,null,null,null,null,null,null,null,null,null,null,null,null,null,null,null,null,null,null,null,null,null,null,null,null,null,null,null,null,null,null,null,null,null,null,null,null,null,null,null,null,null,null,null,null,null,null,null,null,null,null,null,null,null,null,null,null,null,null,null,null,null,null,null,null,null,null,null,null,null,null,null,null,null,null,null,null,null,null,null,null,null,null,null,null,null,null,null,null,null,null,null,null,null,null,null,null,null,null,null,null,null,null,null,null,null,null,null,null,null,null,null,null,null,null,null,null,null,null,null,null,null,null,null,null,null,null,null,null,null,null,null,null,null,null,null,null,null,null,null,null,null,null,null,null,null,null,null,null,null,null,null,null,null,null,null,null,null,null,null,null,null,null,null,null,null,null,null,null,null,null,null,null,null,null,null,null,null,null,null,null,null,null,null,null,null,null,null,null,null,null,null,null,null,null,null,null,null,null,null,null,null,null,null,null,null,null,null,null,null,null,null,null,null,null,null,null,null,null,null,null,null,null,null,null,null,null,null,null,null,null,null,null,null,null,null,null,null,null,null,null,null,null,null,null,null,null,null,null,null,null,null,null,null,null,null,null,null,null,null,null,null,null,null,null,null,null,null,null,null,null,null,null,null,null,null,null,null,null,null,null,null,null,null,null,null,null,null,null,null,null,null,null,null,null,null,null,null,null,null,null,null,null,null,null,null,null,null,null,null,null,null,null,null,null,null,null,null,null,null,null,null,null,null,null,null,null,null,null,null,null,null,null,null,null,null,null,null,null,null,null,null,null,null,null,null,null,null,null,null,null,null,null,null,null,null,null,null,null,null,null,null,null,null,null,null,null,null,null,null,null,null,null,null,null,null,null,null,null,null,null,null,null,null,null,null,null,null,null,null,null,null,null,null,null,null,null,null,null,null,null,null,null,null,null,null,null,null,null,null,null,null,null,null,null,null,null,null,null,null,null,null,null,null,null,null,null,null,null,null,null,null,null,null,null,null,null,null,null,null,null,null,null,null,null,null,null,null,null,null,null,null,null,null,null,null,null,null,null,null,null,null,null,null,null,null,null,null,null,4]
[null,null,"",null,15,null,null,null,null,null,null,null,null,null,null,0,null,null,null,null,null,null,null,null,null,null,null,null,null,null,null,null,null,null,null,null,null,null,null,null,null,null,null,null,null,null,null,null,null,null,null,null,null,null,null,null,null,null,null,null,null,null,null,null,null,null,null,null,null,null,null,null,null,null,null,null,null,null,null,null,null,null,null,null,null,null,null,null,null,null,null,null,0,0,0,0,0,0,0,0,null,null,null,{"$f":"Q24*Q6","v":0},0,0,0,0,0,0,0,0,0,0,0,null,null,null,0,0,0,0,0,0,0,0,0,0,0,0,0,0,0,0,0,0,0,0,0,0,0,0,0,0]
[null,null,"",null,16,null,null,null,null,null,null,null,null,null,null,0,null,null,null,null,null,null,null,null,null,null,null,null,null,null,null,null,null,null,null,null,null,null,null,null,null,null,null,null,null,null,null,null,null,null,null,null,null,null,null,null,null,null,null,null,null,null,null,null,null,null,null,null,null,null,null,null,null,null,null,null,null,null,null,null,null,null,null,null,null,null,null,null,null,null,null,null,0,0,0,0,0,0,0,0,null,null,null,{"$f":"Q25*Q6","v":0},0,0,0,0,0,0,0,0,0,0,0,null,null,null,0,0,0,0,0,0,0,0,0,0,0,0,0,0,0,0,0,0,0,0,0,0,0,0,0,0]
[null,null,{"$f":"MAX(C10:C25)","v":2},null,null,null,"TOPLAM          ",null,null,null,null,null,null,{"$f":"SUM(N10:N25)","v":21},{"$f":"SUM(O10:O25)","v":7},{"$f":"SUM(P10:P25)","v":28},{"$f":"IF(Q30+R30>$G145,1,0)","v":0},{"$f":"Q26","v":0},{"$f":"IF(S30+T30>$I145,1,0)","v":0},{"$f":"S26","v":0},{"$f":"IF(U30+V30>$K145,1,0)","v":0},{"$f":"U26","v":0},{"$f":"IF(W30+X30>$N145,1,0)","v":0},{"$f":"W26","v":0},{"$f":"IF(Y30+Z30>$R145,1,0)","v":0},{"$f":"Y26","v":0},null,{"$f":"SUM(AB10:AB25)","v":0},{"$f":"SUM(AC10:AC25)","v":0},{"$f":"SUM(AD10:AD25)","v":0},{"$f":"IF(AE30+AF30>$G145,1,0)","v":0},{"$f":"AE26","v":0},{"$f":"IF(AG30+AH30>$I145,1,0)","v":0},{"$f":"AG26","v":0},{"$f":"IF(AI30+AJ30>$K145,1,0)","v":0},{"$f":"AI26","v":0},{"$f":"IF(AK30+AL30>$N145,1,0)","v":0},{"$f":"AK26","v":0},{"$f":"IF(AM30+AN30>$R145,1,0)","v":0},{"$f":"AM26","v":0},null,null,null,null,{"$f":"IF(AS30+AT30>$G145,1,0)","v":0},{"$f":"AS26","v":0},{"$f":"IF(AU30+AV30>$I145,1,0)","v":0},{"$f":"AU26","v":0},{"$f":"IF(AW30+AX30>$K145,1,0)","v":0},{"$f":"AW26","v":0},{"$f":"IF(AY30+AZ30>$N145,1,0)","v":0},{"$f":"AY26","v":0},{"$f":"IF(BA30+BB30>$R145,1,0)","v":0},{"$f":"BA26","v":0},null,null,null,null,{"$f":"IF(BG30+BH30>$G145,1,0)","v":0},{"$f":"BG26","v":0},{"$f":"IF(BI30+BJ30>$I145,1,0)","v":0},{"$f":"BI26","v":0},{"$f":"IF(BK30+BL30>$K145,1,0)","v":0},{"$f":"BK26","v":0},{"$f":"IF(BM30+BN30>$N145,1,0)","v":0},{"$f":"BM26","v":0},{"$f":"IF(BO30+BP30>$R145,1,0)","v":0},{"$f":"BO26","v":0},null,null,null,null,{"$f":"IF(CF30+CG30>G145,1,0)","v":0},{"$f":"BU26","v":0},{"$f":"IF(CH30+CI30>I145,1,0)","v":0},{"$f":"BW26","v":0},{"$f":"IF(CJ30+CK30>K145,1,0)","v":0},{"$f":"BY26","v":0},{"$f":"IF(CL30+CM30>N145,1,0)","v":0},{"$f":"CA26","v":0},{"$f":"IF(CN30+CO30>R145,1,0)","v":0},{"$f":"CC26","v":0},null,null,null,null,{"$f":"SUM(CI10:CI25)","v":0},{"$f":"SUM(CJ10:CJ25)","v":0},null,null,null,null,null,null,null,null,null,null,{"$f":"SUM(CU10:CU25)","v":0},{"$f":"SUM(CV10:CV25)","v":0},null,null,null,null,null,null,null,null,null,null,null,null,null,{"$f":"SUM(DJ10:DJ25)","v":21},{"$f":"SUM(DK10:DK25)","v":7},null,null,null,null,null,null,null,null,null,null,null,null,null,{"$f":"SUM(DY10:DY25)","v":0},{"$f":"SUM(DZ10:DZ25)","v":0}]
[null,null,{"$f":"COUNTA(F10:F25)","v":8},null,null,null,"I. ÖĞRETİM TOPLAMLAR",null,null,null,null,"TEORİK",null,null,null,null,{"$f":"SUM(Q10:Q25,S10:S25,U10:U25,W10:W25,Y10:Y25,AA10:AA25,AC10:AC25)","v":21},null,null,null,null,null,null,null,null,null,null,null,null,null,{"$f":"SUM(AE10:AE25,AG10:AG25,AI10:AI25,AK10:AK25,AM10:AM25,AO10:AO25,AQ10:AQ25)","v":21},null,null,null,null,null,null,null,null,null,null,null,null,null,{"$f":"SUM(AS10:AS25,AU10:AU25,AW10:AW25,AY10:AY25,BA10:BA25,BC10:BC25,BE10:BE25)","v":8},null,null,null,null,null,null,null,null,null,null,null,null,null,{"$f":"SUM(BG10:BG25,BI10:BI25,BK10:BK25,BM10:BM25,BO10:BO25,BQ10:BQ25,BS10:BS25)","v":8},null,null,null,null,null,null,null,null,null,null,null,null,null,{"$f":"SUM(BU10:BU25,BW10:BW25,BY10:BY25,CA10:CA25,CC10:CC25,CE10:CE25,CG10:CG25)","v":8}]
[null,null,null,null,null,null,null,null,null,null,null,"DİĞER",null,null,null,null,{"$f":"SUM(R10:R25,T10:T25,V10:V25,X10:X25,Z10:Z25,AB10:AB25,AD10:AD25)","v":7},null,null,null,null,null,null,null,null,null,null,null,null,null,{"$f":"SUM(AF10:AF25,AH10:AH25,AJ10:AJ25,AL10:AL25,AN10:AN25,AP10:AP25,AR10:AR25)","v":7},null,null,null,null,null,null,null,null,null,null,null,null,null,{"$f":"SUM(AT10:AT25,AV10:AV25,AX10:AX25,AZ10:AZ25,BB10:BB25,BD10:BD25,BF10:BF25)","v":4},null,null,null,null,null,null,null,null,null,null,null,null,null,{"$f":"SUM(BH10:BH25,BJ10:BJ25,BL10:BL25,BN10:BN25,BP10:BP25,BR10:BR25,BT10:BT25)","v":4},null,null,null,null,null,null,null,null,null,null,null,null,null,{"$f":"SUM(BV10:BV25,BX10:BX25,BZ10:BZ25,CB10:CB25,CD10:CD25,CF10:CF25,CH10:CH25)","v":4}]
[null,null,null,null,null,null,null,null,null,null,null,"TÜMÜ",null,null,null,null,{"$f":"Q27+Q28","v":28},null,null,null,null,null,null,null,null,null,null,null,null,null,{"$f":"AE27+AE28","v":28},null,null,null,null,null,null,null,null,null,null,null,null,null,{"$f":"AS27+AS28","v":12},null,null,null,null,null,null,null,null,null,null,null,null,null,{"$f":"BG27+BG28","v":12},null,null,null,null,null,null,null,null,null,null,null,null,null,{"$f":"BU27+BU28","v":12}]
[null,null,null,null,null,null,null,null,null,null,null,null,null,null,null,null,{"$f":"SUM(Q10:Q25)","v":4},2,4,2,2,2,5,1,6,0,0,0,0,0,4,2,4,2,2,2,5,1,6,0,0,0,0,0,4,2,4,2,0,0,0,0,0,0,0,0,0,0,4,2,4,2,0,0,0,0,0,0,0,0,0,0,4,2,4,2,0,0,0,0,{"$f":"SUM(CC10:CC25)","v":0},0,0,0,0,0]
[null,null,null,null,null,null,"H1T","H1D","H2T","H2D","H3T","H3D","H4T","H4D","H5T","H5D"]
["Bölüm Başkanı",0.5,null,null,null,{"$f":"IF(X!B3<>\"\",X!B3,\"\")","v":"Müh. ve Doğa Bil. F."},{"$f":"SUM(Q32,S32,U32,W32,Y32,AA32,AC32)","v":0},{"$f":"SUM(R32,T32,V32,X32,Z32,AB32,AD32)","v":0},{"$f":"SUM(AE32,AG32,AI32,AK32,AM32,AO32,AQ32)","v":0},{"$f":"SUM(AF32,AH32,AJ32,AL32,AN32,AP32,AR32)","v":0},{"$f":"SUM(AS32,AU32,AW32,AY32,BA32,BC32,BE32)","v":0},{"$f":"SUM(AT32,AV32,AX32,AZ32,BB32,BD32,BF32)","v":0},{"$f":"SUM(BG32,BI32,BK32,BM32,BO32,BQ32,BS32)","v":0},{"$f":"SUM(BH32,BJ32,BL32,BN32,BP32,BR32,BT32)","v":0},{"$f":"SUM(BU32,BW32,BY32,CA32,CC32,CE32,CG32)","v":0},{"$f":"SUM(BV32,BX32,BZ32,CB32,CD32,CF32,CH32)","v":0},{"$f":"SUMIF($L$10:$L$25,$F32,Q10:Q25)*Q6","v":0},0,0,0,0,0,0,0,0,0,0,0,0,0,{"$f":"SUMIF($L$10:$L$25,$F32,AE$10:AE$25)*AE$6","v":0},0,0,0,0,0,0,0,0,0,{"$f":"SUMIF($L$10:$L$25,$F32,AO$10:AO$25)*AO$6","v":0},0,0,0,0,0,0,0,0,0,{"$f":"SUMIF($L$10:$L$25,$F32,AY$10:AY$25)*AY$6","v":0},0,0,0,0,0,0,0,0,0,{"$f":"SUMIF($L$10:$L$25,$F32,BI$10:BI$25)*BI$6","v":0},0,0,0,0,0,0,0,0,0,{"$f":"SUMIF($L$10:$L$25,$F32,BS$10:BS$25)*BS$6","v":0},0,0,0,0,0,0,0,0,0,{"$f":"SUMIF($L$10:$L$25,$F32,CC$10:CC$25)*CC$6","v":0},0,0,0,0,0,null,null,null,null,null,null,null,{"$f":"SUMIF($L$10:$L$25,F32,$CI$10:$CI$25)","v":0},{"$f":"SUMIF($L$10:$L$25,F32,$CJ$10:$CJ$25)","v":0},{"$f":"IF($BU$7<>\"\",SUMIF($L$10:$L$25,F32,$CK$10:$CK$25),0)","v":0},{"$f":"IF($BU$7<>\"\",SUMIF($L$10:$L$25,F32,$CL$10:$CL$25),0)","v":0},{"$f":"IF($BW$7<>\"\",SUMIF($L$10:$L$25,F32,$CM$10:$CM$25),0)","v":0},{"$f":"IF($BW$7<>\"\",SUMIF($L$10:$L$25,F32,$CN$10:$CN$25),0)","v":0},{"$f":"IF($BY$7<>\"\",SUMIF($L$10:$L$25,F32,$CO$10:$CO$25),0)","v":0},{"$f":"IF($BY$7<>\"\",SUMIF($L$10:$L$25,F32,$CP$10:$CP$25),0)","v":0},{"$f":"IF($CA$7<>\"\",SUMIF($L$10:$L$25,F32,$CQ$10:$CQ$25),0)","v":0},{"$f":"IF($CA$7<>\"\",SUMIF($L$10:$L$25,F32,$CR$10:$CR$25),0)","v":0},{"$f":"IF($CC$7<>\"\",SUMIF($L$10:$L$25,F32,$CS$10:$CS$25),0)","v":0},{"$f":"IF($CC$7<>\"\",SUMIF($L$10:$L$25,F32,$CT$10:$CT$25),0)","v":0},{"$f":"SUM(CR32,CT32,CV32,CX32,CZ32)-CP32","v":0},{"$f":"SUM(CS32,CU32,CW32,CY32,DA32)-CQ32","v":0},null,{"$f":"SUMIF($L$10:$L$25,F32,$CX$10:$CX$25)","v":0},{"$f":"SUMIF($L$10:$L$25,F32,$CY$10:$CY$25)","v":0},{"$f":"IF($Q$7<>\"\",SUMIF($L$10:$L$25,F32,$CZ$10:$CZ$25),0)","v":0},{"$f":"IF($Q$7<>\"\",SUMIF($L$10:$L$25,F32,$DA$10:$DA$25),0)","v":0},{"$f":"IF($S$7<>\"\",SUMIF($L$10:$L$25,F32,$DB$10:$DB$25),0)","v":0},{"$f":"IF($S$7<>\"\",SUMIF($L$10:$L$25,F32,$DC$10:$DC$25),0)","v":0},{"$f":"IF($U$7<>\"\",SUMIF($L$10:$L$25,F32,$DD$10:$DD$25),0)","v":0},{"$f":"IF($U$7<>\"\",SUMIF($L$10:$L$25,F32,$DE$10:$DE$25),0)","v":0},{"$f":"IF($W$7<>\"\",SUMIF($L$10:$L$25,F32,$DF$10:$DF$25),0)","v":0},{"$f":"IF($W$7<>\"\",SUMIF($L$10:$L$25,F32,$DG$10:$DG$25),0)","v":0},{"$f":"IF($Y$7<>\"\",SUMIF($L$10:$L$25,F32,$DH$10:$DH$25),0)","v":0},{"$f":"IF($Y$7<>\"\",SUMIF($L$10:$L$25,F32,$DI$10:$DI$25),0)","v":0},{"$f":"SUM(DG32,DI32,DK32,DM32,DO32)-DE32","v":0},{"$f":"SUM(DH32,DJ32,DL32,DN32,DP32)-DF32","v":0}]
["Dekan",0,null,null,null,{"$f":"IF(X!B4<>\"\",X!B4,\"\")","v":"Denizcilik F."},{"$f":"SUM(Q33,S33,U33,W33,Y33,AA33,AC33)","v":0},0,{"$f":"SUM(AE33,AG33,AI33,AK33,AM33,AO33,AQ33)","v":0},0,{"$f":"SUM(AS33,AU33,AW33,AY33,BA33,BC33,BE33)","v":0},0,{"$f":"SUM(BG33,BI33,BK33,BM33,BO33,BQ33,BS33)","v":0},0,{"$f":"SUM(BU33,BW33,BY33,CA33,CC33,CE33,CG33)","v":0},0,{"$f":"SUMIF($L$10:$L$25,$F33,Q$10:Q$25)*Q$6","v":0},{"$f":"SUMIF($L$10:$L$25,$F33,R$10:R$25)*R6","v":0},0,0,0,0,0,0,0,0,0,0,0,0,0,0,0,0,0,0,0,0,0,0,0,0,0,0,0,0,0,0,0,0,0,0,0,0,0,0,0,0,0,0,0,0,0,0,0,0,0,0,0,0,0,0,0,0,0,0,0,0,0,0,0,0,0,0,0,0,null,null,null,null,null,null,null,0,0,0,0,0,0,0,0,0,0,0,0,{"$f":"SUM(CR33,CT33,CV33,CX33,CZ33)-CP33","v":0},0,null,0,0,0,0,0,0,0,0,0,0,0,0,{"$f":"SUM(DG33,DI33,DK33,DM33,DO33)-DE33","v":0},0]
["Dekan Yrd.",0.5,null,null,null,{"$f":"IF(X!B5<>\"\",X!B5,\"\")","v":"Lisansüstü Eğitim Ens."},14,4,14,4,8,4,8,4,0,0,4,{"$f":"SUMIF($L$10:$L$25,$F34,R$10:R$25)*R$6","v":2},4,2,0,0,0,0,6,0,0,0,0,0,4,2,4,2,0,0,0,0,6,0,0,0,0,0,4,2,4,2,0,0,0,0,0,0,0,0,0,0,4,2,4,2,0,0,0,0,0,0,0,0,0,0,0,0,0,0,0,0,0,0,0,0,0,0,0,0,null,null,null,null,null,null,null,0,0,0,0,0,0,0,0,0,0,0,0,0,0,null,0,0,4,2,4,2,0,0,0,0,6,0,14,4]
["Müdür",0,null,null,null,{"$f":"IF(X!B6<>\"\",X!B6,\"\")","v":"İletişim F."},0,0,0,0,0,0,0,0,0,0,0,0,0,0,0,0,0,0,0,0,0,0,0,0,0,0,0,0,0,0,0,0,0,0,0,0,0,0,0,0,0,0,0,0,0,0,0,0,0,0,0,0,0,0,0,0,0,0,0,0,0,0,0,0,0,0,0,0,0,0,0,0,0,0,0,0,0,0,0,0,null,null,null,null,null,null,null,0,0,0,0,0,0,0,0,0,0,0,0,0,0,null,0,0,0,0,0,0,0,0,0,0,0,0,0,0]
["Müdür Yrd.",0.5,null,null,null,{"$f":"IF(X!B7<>\"\",X!B7,\"\")","v":"İnsan ve Toplum Bil. F."},0,0,0,0,0,0,0,0,0,0,0,0,0,0,0,0,0,0,0,0,0,0,0,0,0,0,0,0,0,0,0,0,0,0,0,0,0,0,0,0,0,0,0,0,0,0,0,0,0,0,0,0,0,0,0,0,0,0,0,0,0,0,0,0,0,0,0,0,0,0,0,0,0,0,0,0,0,0,0,0,null,null,null,null,null,null,null,0,0,0,0,0,0,0,0,0,0,0,0,{"$f":"SUM(CR36,CT36,CV36,CX36,CZ36)-CP36","v":0},0,null,0,0,0,0,0,0,0,0,0,0,0,0,{"$f":"SUM(DG36,DI36,DK36,DM36,DO36)-DE36","v":0},{"$f":"SUM(DH36,DJ36,DL36,DN36,DP36)-DF36","v":0}]
["Rektör",0,null,null,null,{"$f":"IF(X!B8<>\"\",X!B8,\"\")","v":"Meslek Yüksekokulu"},0,0,0,0,0,0,0,0,0,0,0,0,0,0,0,0,0,0,0,0,0,0,0,0,0,0,0,0,0,0,0,0,0,0,0,0,0,0,0,0,0,0,0,0,0,0,0,0,0,0,0,0,0,0,0,0,0,0,0,0,0,0,0,0,0,0,0,0,0,0,0,0,0,0,0,0,0,0,0,0,null,null,null,null,null,null,null,0,0,0,0,0,0,0,0,0,0,0,0,0,0,null,0,0,0,0,0,0,0,0,0,0,0,0,0,0]
["Rektör Yrd.",0,null,null,null,{"$f":"IF(X!B9<>\"\",X!B9,\"\")","v":"Orman F."},7,3,7,3,0,0,0,0,0,0,0,0,0,0,2,2,5,1,0,0,0,0,0,0,0,0,0,0,2,2,5,1,0,0,0,0,0,0,0,0,0,0,0,0,0,0,0,0,0,0,0,0,0,0,0,0,0,0,0,0,0,0,0,0,0,0,0,0,0,0,0,0,0,0,0,0,0,0,0,0,null,null,null,null,null,null,null,0,0,0,0,0,0,0,0,0,0,0,0,0,0,null,0,0,0,0,0,0,2,2,5,1,0,0,7,3]
["Yok",1,null,null,null,{"$f":"IF(X!B10<>\"\",X!B10,\"\")","v":"Mimarlık ve Tasarım F."},0,0,0,0,0,0,0,0,0,0,0,0,0,0,0,0,0,0,0,0,0,0,0,0,0,0,0,0,0,0,0,0,0,0,0,0,0,0,0,0,0,0,0,0,0,0,0,0,0,0,0,0,0,0,0,0,0,0,0,0,0,0,0,0,0,0,0,0,0,0,0,0,0,0,0,0,0,0,0,0,null,null,null,null,null,null,null,0,0,0,0,0,0,0,0,0,0,0,0,0,0,null,0,0,0,0,0,0,0,0,0,0,0,0,0,0]
[null,null,null,null,null,{"$f":"IF(X!B11<>\"\",X!B11,\"\")","v":"Sosyal Bil. Ens."},0,0,0,0,0,0,0,0,0,0,0,0,0,0,0,0,0,0,0,0,0,0,0,0,0,0,0,0,0,0,0,0,0,0,0,0,0,0,0,0,0,0,0,0,0,0,0,0,0,0,0,0,0,0,0,0,0,0,0,0,0,0,0,0,0,0,0,0,0,0,0,0,0,0,0,0,0,0,0,0,null,null,null,null,null,null,null,0,0,0,0,0,0,0,0,0,0,0,0,0,0,null,0,0,0,0,0,0,0,0,0,0,0,0,0,0]
[null,null,null,null,null,{"$f":"IF(X!B12<>\"\",X!B12,\"\")","v":"YDYO"},0,0,0,0,0,0,0,0,0,0,0,0,0,0,0,0,0,0,0,0,0,0,0,0,0,0,0,0,0,0,0,0,0,0,0,0,0,0,0,0,0,0,0,0,0,0,0,0,0,0,0,0,0,0,0,0,0,0,0,0,0,0,0,0,0,0,0,0,0,0,0,0,0,0,0,0,0,0,0,0,null,null,null,null,null,null,null,0,0,0,0,0,0,0,0,0,0,0,0,0,0,null,0,0,0,0,0,0,0,0,0,0,0,0,0,0]
[null,null,null,null,null,{"$f":"IF(X!B13<>\"\",X!B13,\"\")","v":"Rektörlük ODB"},0,0,0,0,0,0,0,0,0,0,0,0,0,0,0,0,0,0,0,0,0,0,0,0,{"$f":"SUMIF($L$10:$L$25,$F42,AE$10:AE$25)*AE$6","v":0},0,0,0,0,0,0,0,0,0,{"$f":"SUMIF($L$10:$L$25,$F42,AO$10:AO$25)*AO$6","v":0},0,0,0,0,0,0,0,0,0,{"$f":"SUMIF($L$10:$L$25,$F42,AY$10:AY$25)*AY$6","v":0},0,0,0,0,0,0,0,0,0,{"$f":"SUMIF($L$10:$L$25,$F42,BI$10:BI$25)*BI$6","v":0},0,0,0,0,0,0,0,0,0,{"$f":"SUMIF($L$10:$L$25,$F42,BS$10:BS$25)*BS$6","v":0},0,0,0,0,0,0,0,0,0,{"$f":"SUMIF($L$10:$L$25,$F42,CC$10:CC$25)*CC$6","v":0},0,0,0,0,0,null,null,null,null,null,null,null,0,0,0,0,0,0,0,0,0,0,0,0,0,0,null,0,0,0,0,0,0,0,0,0,0,0,0,{"$f":"SUM(DG42,DI42,DK42,DM42,DO42)-DE42","v":0},0]
[null,null,null,null,null,{"$f":"IF(X!B14<>\"\",X!B14,\"\")","v":""},0,0,0,0,0,0,0,0,0,0,0,0,0,0,0,0,0,0,0,0,0,0,0,0,0,0,0,0,0,0,0,0,0,0,0,0,0,0,0,0,0,0,0,0,0,0,0,0,0,0,0,0,0,0,0,0,0,0,0,0,0,0,0,0,0,0,0,0,0,0,0,0,0,0,0,0,0,0,0,0,null,null,null,null,null,null,null,0,0,0,0,0,0,0,0,0,0,0,0,0,0,null,0,0,0,0,0,0,0,0,0,0,0,0,0,0]
["Dış. Grv.",0,160,null,null,{"$f":"IF(X!B15<>\"\",X!B15,\"\")","v":""},0,0,0,0,0,0,0,0,0,0,0,{"$f":"SUMIF($L$10:$L$25,$F44,R$10:R$25)*R$6","v":0},0,0,0,0,0,0,0,0,0,0,0,0,0,0,0,0,0,0,0,0,0,0,0,0,0,0,0,0,0,0,0,0,0,0,0,0,0,0,0,0,0,0,0,0,0,0,0,0,0,0,0,0,0,0,0,0,0,0,0,0,0,0,0,0,0,0,0,0,null,null,null,null,null,null,null,0,0,0,0,0,0,0,0,0,0,0,0,0,0,null,0,0,0,0,0,0,0,0,0,0,0,0,0,0]
["Doç. Dr.",10,250,1,null,{"$f":"IF(X!B16<>\"\",X!B16,\"\")","v":""},0,0,0,0,0,0,0,0,0,0,0,0,0,0,0,0,0,0,0,0,0,0,0,0,0,0,0,0,0,0,0,0,0,0,0,0,0,0,0,0,0,0,0,0,0,0,0,0,0,0,0,0,0,0,0,0,0,0,0,0,0,0,0,0,0,0,0,0,0,0,0,0,0,0,0,0,0,0,0,0,null,null,null,null,null,null,null,0,0,0,0,0,0,0,0,0,0,0,0,0,0,null,0,0,0,0,0,0,0,0,0,0,0,0,0,0]
["Dr. Öğr. Üyesi",10,200,15,null,{"$f":"IF(X!B17<>\"\",X!B17,\"\")","v":""},0,0,0,0,0,0,0,0,0,0,0,0,0,0,0,0,0,0,0,0,0,0,0,0,0,0,0,0,0,0,0,0,0,0,0,0,0,0,0,0,0,0,0,0,0,0,0,0,0,0,0,0,0,0,0,0,0,0,0,0,0,0,0,0,0,0,0,0,0,0,0,0,0,0,0,0,0,0,0,0,null,null,null,null,null,null,null,0,0,0,0,0,0,0,0,0,0,0,0,0,0,null,0,0,0,0,0,0,0,0,0,0,0,0,0,0]
["Okt.",12,160,20,null,{"$f":"IF(X!B18<>\"\",X!B18,\"\")","v":""},0,0,0,0,0,0,0,0,0,0,0,0,0,0,0,0,0,0,0,0,0,0,0,0,0,0,0,0,0,0,0,0,0,0,0,0,0,0,0,0,0,0,0,0,0,0,0,0,0,0,0,0,0,0,0,0,0,0,0,0,0,0,0,0,0,0,0,0,0,0,0,0,0,0,0,0,0,0,0,0,null,null,null,null,null,null,null,0,0,0,0,0,0,0,0,0,0,0,0,0,0,null,0,0,0,0,0,0,0,0,0,0,0,0,0,0]
["Öğr. Gör.",12,160,27,null,{"$f":"IF(X!B19<>\"\",X!B19,\"\")","v":""},0,0,0,0,0,0,0,0,0,0,0,0,0,0,0,0,0,0,0,0,0,0,0,0,0,0,0,0,0,0,0,0,0,0,0,0,0,0,0,0,0,0,0,0,0,0,0,0,0,0,0,0,0,0,0,0,0,0,0,0,0,0,0,0,0,0,0,0,0,0,0,0,0,0,0,0,0,0,0,0,null,null,null,null,null,null,null,0,0,0,0,0,0,0,0,0,0,0,0,0,0,null,0,0,0,0,0,0,0,0,0,0,0,0,0,0]
["Prof. Dr.",10,300,35,null,{"$f":"IF(X!B20<>\"\",X!B20,\"\")","v":""},0,0,0,0,0,0,0,0,0,0,0,0,0,0,0,0,0,0,0,0,0,0,0,0,0,0,0,0,0,0,0,0,0,0,0,0,0,0,0,0,0,0,0,0,0,0,0,0,0,0,0,0,0,0,0,0,0,0,0,0,0,0,0,0,0,0,0,0,0,0,0,0,0,0,0,0,0,0,0,0,null,null,null,null,null,null,null,0,0,0,0,0,0,0,0,0,0,0,0,{"$f":"SUM(CR49,CT49,CV49,CX49,CZ49)-CP49","v":0},{"$f":"SUM(CS49,CU49,CW49,CY49,DA49)-CQ49","v":0},null,0,0,0,0,0,0,0,0,0,0,0,0,{"$f":"SUM(DG49,DI49,DK49,DM49,DO49)-DE49","v":0},{"$f":"SUM(DH49,DJ49,DL49,DN49,DP49)-DF49","v":0}]
[null,null,null,null,null,null,0,0,0,0,0,0,0,0,0,0,{"$f":"SUMIF($L$10:$L$25,#REF!,Q$10:Q$25)*Q$6","v":0},{"$f":"SUMIF($L$10:$L$25,#REF!,R$10:R$25)*R$6","v":0},{"$f":"SUMIF($L$10:$L$25,#REF!,S$10:S$25)*S$6","v":0},{"$f":"SUMIF($L$10:$L$25,#REF!,T$10:T$25)*T$6","v":0},{"$f":"SUMIF($L$10:$L$25,#REF!,U$10:U$25)*U$6","v":0},{"$f":"SUMIF($L$10:$L$25,#REF!,V$10:V$25)*V$6","v":0},{"$f":"SUMIF($L$10:$L$25,#REF!,W$10:W$25)*W$6","v":0},{"$f":"SUMIF($L$10:$L$25,#REF!,X$10:X$25)*X$6","v":0},{"$f":"SUMIF($L$10:$L$25,#REF!,Y$10:Y$25)*Y$6","v":0},{"$f":"SUMIF($L$10:$L$25,#REF!,Z$10:Z$25)*Z$6","v":0},{"$f":"SUMIF($L$10:$L$25,#REF!,AA$10:AA$25)*AA$6","v":0},{"$f":"SUMIF($L$10:$L$25,#REF!,AB$10:AB$25)*AB$6","v":0},{"$f":"SUMIF($L$10:$L$25,#REF!,AC$10:AC$25)*AC$6","v":0},{"$f":"SUMIF($L$10:$L$25,#REF!,AD$10:AD$25)*AD$6","v":0},{"$f":"SUMIF($L$10:$L$25,#REF!,AE$10:AE$25)*AE$6","v":0},{"$f":"SUMIF($L$10:$L$25,#REF!,AF$10:AF$25)*AF$6","v":0},{"$f":"SUMIF($L$10:$L$25,#REF!,AG$10:AG$25)*AG$6","v":0},{"$f":"SUMIF($L$10:$L$25,#REF!,AH$10:AH$25)*AH$6","v":0},{"$f":"SUMIF($L$10:$L$25,#REF!,AI$10:AI$25)*AI$6","v":0},{"$f":"SUMIF($L$10:$L$25,#REF!,AJ$10:AJ$25)*AJ$6","v":0},{"$f":"SUMIF($L$10:$L$25,#REF!,AK$10:AK$25)*AK$6","v":0},{"$f":"SUMIF($L$10:$L$25,#REF!,AL$10:AL$25)*AL$6","v":0},{"$f":"SUMIF($L$10:$L$25,#REF!,AM$10:AM$25)*AM$6","v":0},{"$f":"SUMIF($L$10:$L$25,#REF!,AN$10:AN$25)*AN$6","v":0},{"$f":"SUMIF($L$10:$L$25,#REF!,AO$10:AO$25)*AO$6","v":0},{"$f":"SUMIF($L$10:$L$25,#REF!,AP$10:AP$25)*AP$6","v":0},{"$f":"SUMIF($L$10:$L$25,#REF!,AQ$10:AQ$25)*AQ$6","v":0},{"$f":"SUMIF($L$10:$L$25,#REF!,AR$10:AR$25)*AR$6","v":0},{"$f":"SUMIF($L$10:$L$25,#REF!,AS$10:AS$25)*AS$6","v":0},{"$f":"SUMIF($L$10:$L$25,#REF!,AT$10:AT$25)*AT$6","v":0},{"$f":"SUMIF($L$10:$L$25,#REF!,AU$10:AU$25)*AU$6","v":0},{"$f":"SUMIF($L$10:$L$25,#REF!,AV$10:AV$25)*AV$6","v":0},{"$f":"SUMIF($L$10:$L$25,#REF!,AW$10:AW$25)*AW$6","v":0},{"$f":"SUMIF($L$10:$L$25,#REF!,AX$10:AX$25)*AX$6","v":0},{"$f":"SUMIF($L$10:$L$25,#REF!,AY$10:AY$25)*AY$6","v":0},{"$f":"SUMIF($L$10:$L$25,#REF!,AZ$10:AZ$25)*AZ$6","v":0},{"$f":"SUMIF($L$10:$L$25,#REF!,BA$10:BA$25)*BA$6","v":0},{"$f":"SUMIF($L$10:$L$25,#REF!,BB$10:BB$25)*BB$6","v":0},{"$f":"SUMIF($L$10:$L$25,#REF!,BC$10:BC$25)*BC$6","v":0},{"$f":"SUMIF($L$10:$L$25,#REF!,BD$10:BD$25)*BD$6","v":0},{"$f":"SUMIF($L$10:$L$25,#REF!,BE$10:BE$25)*BE$6","v":0},{"$f":"SUMIF($L$10:$L$25,#REF!,BF$10:BF$25)*BF$6","v":0},{"$f":"SUMIF($L$10:$L$25,#REF!,BG$10:BG$25)*BG$6","v":0},{"$f":"SUMIF($L$10:$L$25,#REF!,BH$10:BH$25)*BH$6","v":0},{"$f":"SUMIF($L$10:$L$25,#REF!,BI$10:BI$25)*BI$6","v":0},{"$f":"SUMIF($L$10:$L$25,#REF!,BJ$10:BJ$25)*BJ$6","v":0},{"$f":"SUMIF($L$10:$L$25,#REF!,BK$10:BK$25)*BK$6","v":0},{"$f":"SUMIF($L$10:$L$25,#REF!,BL$10:BL$25)*BL$6","v":0},{"$f":"SUMIF($L$10:$L$25,#REF!,BM$10:BM$25)*BM$6","v":0},{"$f":"SUMIF($L$10:$L$25,#REF!,BN$10:BN$25)*BN$6","v":0},{"$f":"SUMIF($L$10:$L$25,#REF!,BO$10:BO$25)*BO$6","v":0},{"$f":"SUMIF($L$10:$L$25,#REF!,BP$10:BP$25)*BP$6","v":0},{"$f":"SUMIF($L$10:$L$25,#REF!,BQ$10:BQ$25)*BQ$6","v":0},{"$f":"SUMIF($L$10:$L$25,#REF!,BR$10:BR$25)*BR$6","v":0},{"$f":"SUMIF($L$10:$L$25,#REF!,BS$10:BS$25)*BS$6","v":0},{"$f":"SUMIF($L$10:$L$25,#REF!,BT$10:BT$25)*BT$6","v":0},{"$f":"SUMIF($L$10:$L$25,#REF!,BU$10:BU$25)*BU$6","v":0},{"$f":"SUMIF($L$10:$L$25,#REF!,BV$10:BV$25)*BV$6","v":0},{"$f":"SUMIF($L$10:$L$25,#REF!,BW$10:BW$25)*BW$6","v":0},{"$f":"SUMIF($L$10:$L$25,#REF!,BX$10:BX$25)*BX$6","v":0},{"$f":"SUMIF($L$10:$L$25,#REF!,BY$10:BY$25)*BY$6","v":0},{"$f":"SUMIF($L$10:$L$25,#REF!,BZ$10:BZ$25)*BZ$6","v":0},{"$f":"SUMIF($L$10:$L$25,#REF!,CA$10:CA$25)*CA$6","v":0},{"$f":"SUMIF($L$10:$L$25,#REF!,CB$10:CB$25)*CB$6","v":0},{"$f":"SUMIF($L$10:$L$25,#REF!,CC$10:CC$25)*CC$6","v":0},{"$f":"SUMIF($L$10:$L$25,#REF!,CD$10:CD$25)*CD$6","v":0},{"$f":"SUMIF($L$10:$L$25,#REF!,CE$10:CE$25)*CE$6","v":0},{"$f":"SUMIF($L$10:$L$25,#REF!,CF$10:CF$25)*CF$6","v":0},{"$f":"SUMIF($L$10:$L$25,#REF!,CG$10:CG$25)*CG$6","v":0},{"$f":"SUMIF($L$10:$L$25,#REF!,CH$10:CH$25)*CH$6","v":0}]
[null,null,null,null,null,null,{"$f":"SUM(G32:G50)","v":21},{"$f":"SUM(H32:H50)","v":7},21,7,8,4,8,4,0,0]
[null,null,null,4,5,null,7,8,9,10,11,12,13,14,15,16,17,18,19,20,21,22,23,24,25,26,27,28,29,30,31,32,33,34,35,36,37,38,39,40,41,42,43,44,45,46,47,48,49,50,51,52,53,54,55,56,57,58,59,60,61,62,63,64,65,66,67,68,69,70,71,72,73,74,75,76,77,78,79,80,81,82,83,84,85,86,87,88,89,90,91,92,93,94,95,96,97,98,99,100,101,102,103,104,105,106,107,108,109,110,111,112,113,114,115,116,117,118,119,120,121,122,123,124,125,126,127,128,129,130,131,132,133,134,135,136,137,138,139,140,141,142,143,144,145,146,147,148,149,150,151,152,153,154,155,156,157,158,159,160,161,162,163,164,165,166,167,168,169,170,171,172,173,174,175,176,177,178,179,180,181,182,183,184,185,186,187,188,189]
[null,"MIM0108(1)"]
[null,"MIM0108(2)"]
[null,"MIM0210(1)",null,null,null,null,null,1,{"$f":"IF(H55<=$C$26,VLOOKUP(H55,$C$10:$M$25,10),\"\")","v":"Lisansüstü Eğitim Ens."},14,0,14,0,8,4,8,4]
[null,"MIM0210(2)",null,null,null,null,null,2,"Orman F.",4,null,4]
[null,"MIM0108(1)",null,null,null,null,null,3,""]
[null,"MIM0210(1)",null,null,null,null,null,4,""]
[null,"MIM0210(2)",null,null,null,null,null,5,""]
[null,"MIM0212",null,null,null,null,null,6,""]
[null,"URD519",null,null,null,null,null,7,""]
[null,"URD590",null,null,null,null,null,8,""]
[null,"URD800-1",null,null,null,null,null,9,""]
[null,"URD800-2",null,null,null,null,null,10,""]
[null,"KTYD-1",null,null,null,null,null,11,""]
[null,"KTYD-2",null,null,null,null,null,12,""]
[null,null,null,null,null,null,null,13,""]
[null,null,null,null,null,null,null,14,""]
[null,null,null,null,null,null,null,15,""]
[null,null,null,null,null,null,null,16,""]
[null,null,null,null,null,null,null,17,""]
[null,null,null,null,null,null,null,18,""]
[null,null,null,null,null,null,null,19,""]
[]
[]
[null,null,{"$f":"IF(L76=\"\",\"\",1)","v":""},"II. ÖĞRETİM",1,null,null,null,null,null,null,null,null,null,null,{"$f":"IF(OR(N76<>\"\",O76<>\"\"),SUM(N76:O76),0)","v":0},null,null,null,null,null,null,null,null,null,null,null,null,null,null,null,null,null,null,null,null,null,null,null,null,null,null,null,null,null,null,null,null,null,null,null,null,null,null,null,null,null,null,null,null,null,null,null,null,null,null,null,null,null,null,null,null,null,null,null,null,null,null,null,null,null,null,null,null,null,null,null,null,{"$f":"IF(AND($BU$6>0,BU76>0),BU76*$BU$6,0)","v":0},{"$f":"IF($BU$6>0,BV76*$BU$6,0)","v":0},0,0,0,0,0,0,0,0,{"$f":"CK76+CM76+CO76+CQ76+CS76","v":0},{"$f":"CL76+CN76+CP76+CR76+CT76","v":0},null,null,null,{"$f":"Q76*Q6","v":0},0,0,0,0,0,0,0,0,0,{"$f":"CZ76+DB76+DD76+DF76+DH76","v":0},{"$f":"DA76+DC76+DE76+DG76+DI76","v":0},null,null,null,{"$f":"Q76*MOD($Q$6+1,2)","v":0},{"$f":"R76*MOD($R$6+1,2)","v":0},{"$f":"S76*MOD($S$6+1,2)","v":0},{"$f":"T76*MOD($T$6+1,2)","v":0},{"$f":"U76*MOD($U$6+1,2)","v":0},{"$f":"V76*MOD($V$6+1,2)","v":0},{"$f":"W76*MOD($W$6+1,2)","v":0},{"$f":"X76*MOD($X$6+1,2)","v":0},{"$f":"Y76*MOD($Y$6+1,2)","v":0},{"$f":"Z76*MOD($Z$6+1,2)","v":0},{"$f":"SUM(DO76,DQ76,DS76,DU76,DW76)","v":0},{"$f":"SUM(DP76,DR76,DT76,DV76,DX76)","v":0},0,0,0,0,0,0,0,0,0,0,0,0,0,0,null,null,null,null,null,null,null,null,null,null,null,null,null,null,null,null,null,null,null,null,null,null,null,null,3,null,null,null,null,null,null,null,null,null,null,null,null,null,null,null,null,null,null,null,null,null,null,null,null,null,null,null,null,null,null,null,null,null,null,null,null,null,null,null,null,null,null,null,null,null,null,null,null,null,null,null,null,null,null,null,null,null,null,null,null,null,null,null,null,null,null,null,null,null,null,null,null,null,null,null,null,null,null,null,null,null,null,null,null,null,null,null,null,null,null,null,null,null,null,null,null,null,null,null,null,null,null,null,null,null,null,null,null,null,null,null,null,null,null,null,null,null,null,null,null,null,null,null,null,null,null,null,null,null,null,null,null,null,null,null,null,null,null,null,null,null,null,null,null,null,null,null,null,null,null,null,null,null,null,null,null,null,null,null,null,null,null,null,null,null,null,null,null,null,null,null,null,null,null,null,null,null,null,null,null,null,null,null,null,null,null,null,null,null,null,null,null,null,null,null,null,null,null,null,null,null,null,null,null,null,null,null,null,null,null,null,null,null,null,null,null,null,null,null,null,null,null,null,null,null,null,null,null,null,null,null,null,null,null,null,null,null,null,null,null,null,null,null,null,null,null,null,null,null,null,null,null,null,null,null,null,null,null,null,null,null,null,null,null,null,null,null,null,null,null,null,null,null,null,null,null,null,null,null,null,null,null,null,null,null,null,null,null,null,null,null,null,null,null,null,null,null,null,null,null,null,null,null,null,null,null,null,null,null,null,null,null,null,null,null,null,null,null,null,null,null,null,null,null,null,null,null,null,null,null,null,null,null,null,null,null,null,null,null,null,null,null,null,null,null,null,null,null,null,null,null,null,null,null,null,null,null,null,null,null,null,null,null,null,null,null,null,null,null,null,null,null,null,null,null,null,null,null,null,null,null,null,null,null,null,null,null,null,null,null,null,null,null,null,null,null,null,null,null,null,null,null,null,null,null,null,null,null,null,null,null,null,null,null,null,null,null,null,null,null,null,null,null,null,null,null,null,null,null,null,null,null,null,null,null,null,null,null,null,null,null,null,null,null,null,null,null,null,null,null,null,null,null,null,null,null,null,null,null,null,null,null,null,null,null,null,null,null,null,null,null,null,null,null,null,null,null,null,null,null,null,null,null,null,null,null,null,null,null,null,null,null,null,null,null,null,null,null,null,null,null,null,null,null,null,null,null,null,null,null,null,null,null,null,null,null,null,null,null,null,null,null,null,null,null,null,null,null,null,null,null,null,null,null,null,null,null,null,null,null,null,null,null,null,null,null,null,null,null,null,null,null,null,null,null,null,null,null,null,null,null,null,null,null,null,null,null,null,null,null,null,null,null,null,null,null,null,null,null,null,null,null,null,null,null,null,null,null,null,null,null,null,null,null,null,null,null,null,null,null,null,null,null,null,null,null,null,null,null,null,null,null,null,null,null,null,null,null,null,null,null,null,null,null,null,null,null,null,null,null,null,null,null,null,null,null,null,null,null,null,null,null,null,null,null,null,null,null,null,null,null,null,null,null,null,null,null,null,null,null,null,null,null,null,null,null,null,null,null,null,null,null,null,null,null,null,null,null,null,null,null,null,null,null,null,null,null,null,null,null,null,null,null,null,null,null,null,null,null,null,null,null,null,null,null,null,null,null,null,null,null,null,null,null,null,null,null,null,null,null,null,null,null,null,null,null,null,null,null,null,null,null,null,null,null,null,null,null,null,null,null,null,null,null,null,null,null,null,null,null,null,null,null,null,null,null,null,null,null,null,null,null,null,null,null,null,null,null,null,null,null,null,null,null,null,null,null,null,null,null,null,null,null,null,null,null,null,null,null,null,null,null,null,null,null,null,null,null,null,null,null,null,null,null,null,null,null,null,null,null,null,null,null,null,null,null,null,null,null,null,null,null,null,null,null,null,null,null,null,null,null,null,null,null,null,null,null,null,null,null,null,null,null,null,null,null,null,null,null,null,null,null,null,null,null,null,null,null,null,null,null,null,null,null,null,null,null,null,null,null,null,null,null,null,null,null,null,null,null,null,null,null,null,null,null,null,null,null,null,null,null,null,null,null,null,null,null,null,null,null,null,null,null,null,null,null,null,null,null,1]
[null,null,{"$f":"IF(L77=\"\",\"\",IF(L77=L76,C76,C76+1))","v":""},null,2,null,null,null,null,null,null,null,null,null,null,0,null,null,null,null,null,null,null,null,null,null,null,null,null,null,null,null,null,null,null,null,null,null,null,null,null,null,null,null,null,null,null,null,null,null,null,null,null,null,null,null,null,null,null,null,null,null,null,null,null,null,null,null,null,null,null,null,null,null,null,null,null,null,null,null,null,null,null,null,null,null,null,null,{"$f":"IF($BU$6>0,BU77*$BU$6,0)","v":0},0,0,0,0,0,0,0,0,0,{"$f":"CK77+CM77+CO77+CQ77+CS77","v":0},0,null,null,null,{"$f":"Q77*Q6","v":0},0,0,0,0,0,0,0,0,0,{"$f":"CZ77+DB77+DD77+DF77+DH77","v":0},0,null,null,null,0,0,0,0,0,0,0,0,0,0,{"$f":"SUM(DO77,DQ77,DS77,DU77,DW77)","v":0},0,0,0,0,0,0,0,0,0,0,0,0,0,0,0,null,null,null,null,null,null,null,null,null,null,null,null,null,null,null,null,null,null,null,null,3,null,null,null,null,null,null,null,null,null,null,null,null,null,null,null,null,null,null,null,null,null,null,null,null,null,null,null,null,null,null,null,null,null,null,null,null,null,null,null,null,null,null,null,null,null,null,null,null,null,null,null,null,null,null,null,null,null,null,null,null,null,null,null,null,null,null,null,null,null,null,null,null,null,null,null,null,null,null,null,null,null,null,null,null,null,null,null,null,null,null,null,null,null,null,null,null,null,null,null,null,null,null,null,null,null,null,null,null,null,null,null,null,null,null,null,null,null,null,null,null,null,null,null,null,null,null,null,null,null,null,null,null,null,null,null,null,null,null,null,null,null,null,null,null,null,null,null,null,null,null,null,null,null,null,null,null,null,null,null,null,null,null,null,null,null,null,null,null,null,null,null,null,null,null,null,null,null,null,null,null,null,null,null,null,null,null,null,null,null,null,null,null,null,null,null,null,null,null,null,null,null,null,null,null,null,null,null,null,null,null,null,null,null,null,null,null,null,null,null,null,null,null,null,null,null,null,null,null,null,null,null,null,null,null,null,null,null,null,null,null,null,null,null,null,null,null,null,null,null,null,null,null,null,null,null,null,null,null,null,null,null,null,null,null,null,null,null,null,null,null,null,null,null,null,null,null,null,null,null,null,null,null,null,null,null,null,null,null,null,null,null,null,null,null,null,null,null,null,null,null,null,null,null,null,null,null,null,null,null,null,null,null,null,null,null,null,null,null,null,null,null,null,null,null,null,null,null,null,null,null,null,null,null,null,null,null,null,null,null,null,null,null,null,null,null,null,null,null,null,null,null,null,null,null,null,null,null,null,null,null,null,null,null,null,null,null,null,null,null,null,null,null,null,null,null,null,null,null,null,null,null,null,null,null,null,null,null,null,null,null,null,null,null,null,null,null,null,null,null,null,null,null,null,null,null,null,null,null,null,null,null,null,null,null,null,null,null,null,null,null,null,null,null,null,null,null,null,null,null,null,null,null,null,null,null,null,null,null,null,null,null,null,null,null,null,null,null,null,null,null,null,null,null,null,null,null,null,null,null,null,null,null,null,null,null,null,null,null,null,null,null,null,null,null,null,null,null,null,null,null,null,null,null,null,null,null,null,null,null,null,null,null,null,null,null,null,null,null,null,null,null,null,null,null,null,null,null,null,null,null,null,null,null,null,null,null,null,null,null,null,null,null,null,null,null,null,null,null,null,null,null,null,null,null,null,null,null,null,null,null,null,null,null,null,null,null,null,null,null,null,null,null,null,null,null,null,null,null,null,null,null,null,null,null,null,null,null,null,null,null,null,null,null,null,null,null,null,null,null,null,null,null,null,null,null,null,null,null,null,null,null,null,null,null,null,null,null,null,null,null,null,null,null,null,null,null,null,null,null,null,null,null,null,null,null,null,null,null,null,null,null,null,null,null,null,null,null,null,null,null,null,null,null,null,null,null,null,null,null,null,null,null,null,null,null,null,null,null,null,null,null,null,null,null,null,null,null,null,null,null,null,null,null,null,null,null,null,null,null,null,null,null,null,null,null,null,null,null,null,null,null,null,null,null,null,null,null,null,null,null,null,null,null,null,null,null,null,null,null,null,null,null,null,null,null,null,null,null,null,null,null,null,null,null,null,null,null,null,null,null,null,null,null,null,null,null,null,null,null,null,null,null,null,null,null,null,null,null,null,null,null,null,null,null,null,null,null,null,null,null,null,null,null,null,null,null,null,null,null,null,null,null,null,null,null,null,null,null,null,null,null,null,null,null,null,null,null,null,null,null,null,null,null,null,null,null,null,null,null,null,null,null,null,null,null,null,null,null,null,null,null,null,null,null,null,null,null,null,null,null,null,null,null,null,null,null,null,null,null,null,null,null,null,null,null,null,null,null,null,null,null,null,null,null,null,null,null,null,null,null,null,null,null,null,null,null,null,null,null,null,null,null,null,null,null,null,null,null,null,null,null,null,null,null,null,null,null,null,null,null,null,null,null,null,null,null,null,null,null,null,null,null,null,null,null,null,null,null,null,null,null,null,null,null,null,null,null,null,null,null,null,null,null,null,null,null,null,null,null,null,null,null,null,2]
[null,null,{"$f":"IF(L78=\"\",\"\",IF(L78=L77,C77,C77+1))","v":""},null,3,null,null,null,null,null,null,null,null,null,null,0,null,null,null,null,null,null,null,null,null,null,null,null,null,null,null,null,null,null,null,null,null,null,null,null,null,null,null,null,null,null,null,null,null,null,null,null,null,null,null,null,null,null,null,null,null,null,null,null,null,null,null,null,null,null,null,null,null,null,null,null,null,null,null,null,null,null,null,null,null,null,null,null,0,0,0,0,0,0,0,0,0,0,0,0,null,null,null,{"$f":"Q78*Q6","v":0},0,0,0,0,0,0,0,0,0,0,0,null,null,null,0,0,0,0,0,0,0,0,0,0,0,0,0,0,0,0,0,0,0,0,0,0,0,0,0,0]
[null,null,"",null,4,null,null,null,null,null,null,null,null,null,null,0,null,null,null,null,null,null,null,null,null,null,null,null,null,null,null,null,null,null,null,null,null,null,null,null,null,null,null,null,null,null,null,null,null,null,null,null,null,null,null,null,null,null,null,null,null,null,null,null,null,null,null,null,null,null,null,null,null,null,null,null,null,null,null,null,null,null,null,null,null,null,null,null,0,0,0,0,0,0,0,0,0,0,0,0,null,null,null,{"$f":"Q79*Q6","v":0},0,0,0,0,0,0,0,0,0,0,0,null,null,null,0,0,0,0,0,0,0,0,0,0,0,0,0,0,0,0,0,0,0,0,0,0,0,0,0,0,null,null,null,null,null,null,null,null,null,null,null,null,null,null,null,null,null,null,null,null,null,null,null,null,null,null,null,null,null,null,null,null,null,null,null,null,null,null,null,null,null,null,null,null,null,null,null,null,null,null,null,null,null,null,null,null,null,null,null,null,null,null,null,null,null,null,null,null,null,null,null,null,null,null,null,null,null,null,null,null,null,null,null,null,null,null,null,null,null,null,null,null,null,null,null,null,null,null,null,null,null,null,null,null,null,null,null,null,null,null,null,null,null,null,null,null,null,null,null,null,null,null,null,null,null,null,null,null,null,null,null,null,null,null,null,null,null,null,null,null,null,null,null,null,null,null,null,null,null,null,null,null,null,null,null,null,null,null,null,null,null,null,null,null,null,null,null,null,null,null,null,null,null,null,null,null,null,null,null,null,null,null,null,null,null,null,null,null,null,null,null,null,null,null,null,null,null,null,null,null,null,null,null,null,null,null,null,null,null,null,null,null,null,null,null,null,null,null,null,null,null,null,null,null,null,null,null,null,null,null,null,null,null,null,null,null,null,null,null,null,null,null,null,null,null,null,null,null,null,null,null,null,null,null,null,null,null,null,null,null,null,null,null,null,null,null,null,null,null,null,null,null,null,null,null,null,null,null,null,null,null,null,null,null,null,null,null,null,null,null,null,null,null,null,null,null,null,null,null,null,null,null,null,null,null,null,null,null,null,null,null,null,null,null,null,null,null,null,null,null,null,null,null,null,null,null,null,null,null,null,null,null,null,null,null,null,null,null,null,null,null,null,null,null,null,null,null,null,null,null,null,null,null,null,null,null,null,null,null,null,null,null,null,null,null,null,null,null,null,null,null,null,null,null,null,null,null,null,null,null,null,null,null,null,null,null,null,null,null,null,null,null,null,null,null,null,null,null,null,null,null,null,null,null,null,null,null,null,null,null,null,null,null,null,null,null,null,null,null,null,null,null,null,null,null,null,null,null,null,null,null,null,null,null,null,null,null,null,null,null,null,null,null,null,null,null,null,null,null,null,null,null,null,null,null,null,null,null,null,null,null,null,null,null,null,null,null,null,null,null,null,null,null,null,null,null,null,null,null,null,null,null,null,null,null,null,null,null,null,null,null,null,null,null,null,null,null,null,null,null,null,null,null,null,null,null,null,null,null,null,null,null,null,null,null,null,null,null,null,null,null,null,null,null,null,null,null,null,null,null,null,null,null,null,null,null,null,null,null,null,null,null,null,null,null,null,null,null,null,null,null,null,null,null,null,null,null,null,null,null,null,null,null,null,null,null,null,null,null,null,null,null,null,null,null,null,null,null,null,null,null,null,null,null,null,null,null,null,null,null,null,null,null,null,null,null,null,null,null,null,null,null,null,null,null,null,null,null,null,null,null,null,null,null,null,null,null,null,null,null,null,null,null,null,null,null,null,null,null,null,null,null,null,null,null,null,null,null,null,null,null,null,null,null,null,null,null,null,null,null,null,null,null,null,null,null,null,null,null,null,null,null,null,null,null,null,null,null,null,null,null,null,null,null,null,null,null,null,null,null,null,null,null,null,null,null,null,null,null,null,null,null,null,null,null,null,null,null,null,null,null,null,null,null,null,null,null,null,null,null,null,null,null,null,null,null,null,null,null,null,null,null,null,null,null,null,null,null,null,null,null,null,null,null,null,null,null,null,null,null,null,null,null,null,null,null,null,null,null,null,null,null,null,null,null,null,null,null,null,null,null,null,null,null,null,null,null,null,null,null,null,null,null,null,null,null,null,null,null,null,null,null,null,null,null,null,null,null,null,null,null,null,null,null,null,null,null,null,null,null,null,null,null,null,null,null,null,null,null,null,null,null,null,null,null,null,null,null,null,null,null,null,null,null,null,null,null,null,null,null,null,null,null,null,null,null,null,null,null,null,null,null,null,null,null,null,null,null,null,null,null,null,null,null,null,null,null,null,null,null,null,null,null,null,null,null,null,null,null,null,null,null,null,null,null,null,null,null,null,null,null,null,null,null,null,null,null,null,null,null,null,null,null,null,null,null,null,null,null,null,null,null,null,null,null,null,null,null,null,null,null,null,null,null,null,null,null,null,null,null,null,null,null,null,null,null,null,null,null,null,null,null,null,null,4]
[null,null,"",null,5,null,null,null,null,null,null,null,null,null,null,0,null,null,null,null,null,null,null,null,null,null,null,null,null,null,null,null,null,null,null,null,null,null,null,null,null,null,null,null,null,null,null,null,null,null,null,null,null,null,null,null,null,null,null,null,null,null,null,null,null,null,null,null,null,null,null,null,null,null,null,null,null,null,null,null,null,null,null,null,null,null,null,null,0,0,0,0,0,0,0,0,0,0,0,0,null,null,null,{"$f":"Q80*Q6","v":0},0,0,0,0,0,0,0,0,0,0,0,null,null,null,0,0,0,0,0,0,0,0,0,0,0,0,0,0,0,0,0,0,0,0,0,0,0,0,0,0]
[null,null,"",null,6,null,null,null,null,null,null,null,null,null,null,0,null,null,null,null,null,null,null,null,null,null,null,null,null,null,null,null,null,null,null,null,null,null,null,null,null,null,null,null,null,null,null,null,null,null,null,null,null,null,null,null,null,null,null,null,null,null,null,null,null,null,null,null,null,null,null,null,null,null,null,null,null,null,null,null,null,null,null,null,null,null,null,null,0,0,0,0,0,0,0,0,0,0,0,0,null,null,null,{"$f":"Q81*Q6","v":0},0,0,0,0,0,0,0,0,0,0,0,null,null,null,0,0,0,0,0,0,0,0,0,0,0,0,0,0,0,0,0,0,0,0,0,0,0,0,0,0]
[null,null,"",null,7,null,null,null,null,null,null,null,null,null,null,0,null,null,null,null,null,null,null,null,null,null,null,null,null,null,null,null,null,null,null,null,null,null,null,null,null,null,null,null,null,null,null,null,null,null,null,null,null,null,null,null,null,null,null,null,null,null,null,null,null,null,null,null,null,null,null,null,null,null,null,null,null,null,null,null,null,null,null,null,null,null,null,null,0,0,0,0,0,0,0,0,0,0,0,0,null,null,null,{"$f":"Q82*Q6","v":0},0,0,0,0,0,0,0,0,0,0,0,null,null,null,0,0,0,0,0,0,0,0,0,0,0,0,0,0,0,0,0,0,0,0,0,0,0,0,0,0]
[null,null,{"$f":"MAX(C76:C82)","v":0},"TOPLAM          ",null,null,null,null,null,null,null,null,null,{"$f":"SUM(N76:N82)","v":0},{"$f":"SUM(O76:O82)","v":0},{"$f":"SUM(P76:P82)","v":0},{"$f":"IF(D87+T87>$G170,1,0)","v":0},{"$f":"Q83","v":0},{"$f":"IF(U87+V87>$I170,1,0)","v":0},{"$f":"S83","v":0},{"$f":"IF(W87+X87>$K170,1,0)","v":0},{"$f":"U83","v":0},{"$f":"IF(Y87+Z87>$N170,1,0)","v":0},{"$f":"W83","v":0},{"$f":"IF(AA87+AB87>$R170,1,0)","v":0},{"$f":"Y83","v":0},null,null,null,null,{"$f":"IF(AI87+AJ87>$G170,1,0)","v":0},{"$f":"AE83","v":0},{"$f":"IF(AK87+AL87>$I170,1,0)","v":0},{"$f":"AG83","v":0},{"$f":"IF(AM87+AN87>$K170,1,0)","v":0},{"$f":"AI83","v":0},{"$f":"IF(AO87+AP87>$N170,1,0)","v":0},{"$f":"AK83","v":0},{"$f":"IF(AQ87+AR87>$R170,1,0)","v":0},{"$f":"AM83","v":0},null,null,null,null,{"$f":"IF(AY87+AZ87>$G170,1,0)","v":0},{"$f":"AS83","v":0},{"$f":"IF(BA87+BB87>$I170,1,0)","v":0},{"$f":"AU83","v":0},{"$f":"IF(BC87+BD87>$K170,1,0)","v":0},{"$f":"AW83","v":0},{"$f":"IF(BE87+BF87>$N170,1,0)","v":0},{"$f":"AY83","v":0},{"$f":"IF(BG87+BH87>$R170,1,0)","v":0},{"$f":"BA83","v":0},null,null,null,null,{"$f":"IF(BO87+BP87>$G170,1,0)","v":0},{"$f":"BG83","v":0},{"$f":"IF(BQ87+BR87>$I170,1,0)","v":0},{"$f":"BI83","v":0},{"$f":"IF(BS87+BT87>$K170,1,0)","v":0},{"$f":"BK83","v":0},{"$f":"IF(BU87+BV87>$N170,1,0)","v":0},{"$f":"BM83","v":0},{"$f":"IF(BW87+BX87>$R170,1,0)","v":0},{"$f":"BO83","v":0},null,null,null,null,{"$f":"IF(CE87+CF87>G170,1,0)","v":0},{"$f":"BU83","v":0},{"$f":"IF(CG87+CH87>I170,1,0)","v":0},{"$f":"BW83","v":0},{"$f":"IF(CI87+CJ87>K170,1,0)","v":0},{"$f":"BY83","v":0},{"$f":"IF(CK87+CL87>N170,1,0)","v":0},{"$f":"CA83","v":0},{"$f":"IF(CM87+CN87>R170,1,0)","v":0},{"$f":"CC83","v":0},null,null,null,null,null,null,null,null,null,null,null,null,null,null,null,null,{"$f":"SUM(CU76:CU82)","v":0},{"$f":"SUM(CV76:CV82)","v":0},null,null,null,null,null,null,null,null,null,null,null,null,null,{"$f":"SUM(DJ76:DJ82)","v":0},{"$f":"SUM(DK76:DK82)","v":0},null,null,null,null,null,null,null,null,null,null,null,null,null,{"$f":"SUM(DY76:DY82)","v":0},{"$f":"SUM(DZ76:DZ82)","v":0}]
[null,null,null,"II. ÖĞRETİM TOPLAMLAR",null,null,null,null,null,null,null,"TEORİK",null,null,null,null,{"$f":"SUM(Q76:Q82,S76:S82,U76:U82,W76:W82,Y76:Y82,AA76:AA82,AC76:AC82)","v":0},null,null,null,null,null,null,null,null,null,null,null,null,null,{"$f":"SUM(AE76:AE82,AG76:AG82,AI76:AI82,AK76:AK82,AM76:AM82,AO76:AO82,AQ76:AQ82)","v":0},null,null,null,null,null,null,null,null,null,null,null,null,null,{"$f":"SUM(AS76:AS82,AU76:AU82,AW76:AW82,AY76:AY82,BA76:BA82,BC76:BC82,BE76:BE82)","v":0},null,null,null,null,null,null,null,null,null,null,null,null,null,{"$f":"SUM(BG76:BG82,BI76:BI82,BK76:BK82,BM76:BM82,BO76:BO82,BQ76:BQ82,BS76:BS82)","v":0},null,null,null,null,null,null,null,null,null,null,null,null,null,{"$f":"SUM(BU76:BU82,BW76:BW82,BY76:BY82,CA76:CA82,CC76:CC82,CE76:CE82,CG76:CG82)","v":0}]
[null,null,null,null,null,null,null,null,null,null,null,"DİĞER",null,null,null,null,{"$f":"SUM(R76:R82,T76:T82,V76:V82,X76:X82,Z76:Z82,AB76:AB82,AD76:AD82)","v":0},null,null,null,null,null,null,null,null,null,null,null,null,null,{"$f":"SUM(AF76:AF82,AH76:AH82,AJ76:AJ82,AL76:AL82,AN76:AN82,AP76:AP82,AR76:AR82)","v":0},null,null,null,null,null,null,null,null,null,null,null,null,null,{"$f":"SUM(AT76:AT82,AV76:AV82,AX76:AX82,AZ76:AZ82,BB76:BB82,BD76:BD82,BF76:BF82)","v":0},null,null,null,null,null,null,null,null,null,null,null,null,null,{"$f":"SUM(BH76:BH82,BJ76:BJ82,BL76:BL82,BN76:BN82,BP76:BP82,BR76:BR82,BT76:BT82)","v":0},null,null,null,null,null,null,null,null,null,null,null,null,null,{"$f":"SUM(BV76:BV82,BX76:BX82,BZ76:BZ82,CB76:CB82,CD76:CD82,CF76:CF82,CH76:CH82)","v":0}]
[null,null,null,null,null,null,null,null,null,null,null,"TÜMÜ",null,null,null,null,{"$f":"Q84+Q85","v":0},null,null,null,null,null,null,null,null,null,null,null,null,null,{"$f":"AE84+AE85","v":0},null,null,null,null,null,null,null,null,null,null,null,null,null,{"$f":"AS84+AS85","v":0},null,null,null,null,null,null,null,null,null,null,null,null,null,{"$f":"BG84+BG85","v":0},null,null,null,null,null,null,null,null,null,null,null,null,null,{"$f":"BU84+BU85","v":0}]
[null,null,null,null,null,null,null,null,null,null,null,null,null,null,null,null,null,null,null,null,null,null,null,null,null,null,null,null,null,null,null,null,null,null,null,null,null,null,null,null,null,null,null,null,null,null,null,null,null,null,null,null,null,null,null,null,null,null,null,null,null,null,null,null,null,null,null,null,null,null,null,null,null,null,null,null,null,null,null,null,null,null,null,null,null,null,{"$f":"SUM(BY76:BY82)","v":0},0,0,0,0,0]
[null,null,null,null,null,null,1,null,2,null,3,null,4,null,5]
[null,null,null,null,null,{"$f":"IF(X!E3<>\"\",X!E3,\"\")","v":"Lisansüstü Eğitim Ens."},{"$f":"SUM(Q89,S89,U89,W89,Y89,AA89,AC89)","v":0},{"$f":"SUM(R89,T89,V89,X89,Z89,AB89,AD89)","v":0},{"$f":"SUM(AE89,AG89,AI89,AK89,AM89,AO89,AQ89)","v":0},{"$f":"SUM(AF89,AH89,AJ89,AL89,AN89,AP89,AR89)","v":0},{"$f":"SUM(AS89,AU89,AW89,AY89,BA89,BC89,BE89)","v":0},{"$f":"SUM(AT89,AV89,AX89,AZ89,BB89,BD89,BF89)","v":0},{"$f":"SUM(BG89,BI89,BK89,BM89,BO89,BQ89,BS89)","v":0},{"$f":"SUM(BH89,BJ89,BL89,BN89,BP89,BR89,BT89)","v":0},{"$f":"SUM(BU89,BW89,BY89,CA89,CC89,CE89,CL89)","v":0},{"$f":"SUM(BV89,BX89,BZ89,CB89,CD89,CK89,CM89)","v":0},{"$f":"SUMIF($L$76:$L$82,$F89,Q$76:Q$82)*Q$6","v":0},0,0,0,0,0,0,0,0,0,{"$f":"SUMIF($L$76:$L$82,$F89,AA$76:AA$82)*AA$6","v":0},0,0,0,0,0,0,0,0,0,{"$f":"SUMIF($L$76:$L$82,$F89,AK$76:AK$82)*AK$6","v":0},0,0,0,0,0,0,0,0,0,{"$f":"SUMIF($L$76:$L$82,$F89,AU$76:AU$82)*AU$6","v":0},0,0,0,0,0,0,0,0,0,{"$f":"SUMIF($L$76:$L$82,$F89,BE$76:BE$82)*BE$6","v":0},0,0,0,0,0,0,0,0,0,{"$f":"SUMIF($L$76:$L$82,$F89,BO$76:BO$82)*BO$6","v":0},0,0,0,0,0,0,0,0,0,{"$f":"SUMIF($L$76:$L$82,$F89,BY$76:BY$82)*BY$6","v":0},0,0,0,0,0,0,0,0,0,null,null,{"$f":"SUMIF($L$76:$L$82,I89,CI$76:CI$82)","v":0},{"$f":"SUMIF($L$76:$L$82,I89,CJ$76:CJ$82)","v":0},{"$f":"IF($BU$7<>\"\",SUMIF($L$76:$L$82,I89,CK$76:CK$82),0)","v":0},{"$f":"IF($BU$7<>\"\",SUMIF($L$76:$L$82,I89,CL$76:CL$82),0)","v":0},{"$f":"IF($BW$7<>\"\",SUMIF($L$76:$L$82,I89,CM$76:CM$82),0)","v":0},{"$f":"IF($BW$7<>\"\",SUMIF($L$76:$L$82,F89,CN$76:CN$82),0)","v":0},{"$f":"IF($BY$7<>\"\",SUMIF($L$76:$L$82,F89,CO$76:CO$82),0)","v":0},{"$f":"IF($BY$7<>\"\",SUMIF($L$76:$L$82,F89,CP$76:CP$82),0)","v":0},{"$f":"IF($CA$7<>\"\",SUMIF($L$76:$L$82,F89,CQ$76:CQ$82),0)","v":0},{"$f":"IF($CA$7<>\"\",SUMIF($L$76:$L$82,F89,CR$76:CR$82),0)","v":0},{"$f":"IF($CC$7<>\"\",SUMIF($L$76:$L$82,F89,CS$76:CS$82),0)","v":0},{"$f":"IF($CC$7<>\"\",SUMIF($L$76:$L$82,F89,CT$76:CT$82),0)","v":0},{"$f":"SUM(CM89,CO89,CQ89,CS89,CU89)-CK89","v":0},{"$f":"SUM(CN89,CP89,CR89,CT89,CV89)-CL89","v":0},null,{"$f":"SUMIF($L$76:$L$82,F89,CX$76:CX$82)","v":0},{"$f":"SUMIF($L$76:$L$82,F89,CY$76:CY$82)","v":0},{"$f":"IF($Q$7<>\"\",SUMIF($L$76:$L$82,F89,CZ$76:CZ$82),0)","v":0},{"$f":"IF($Q$7<>\"\",SUMIF($L$76:$L$82,F89,DA$76:DA$82),0)","v":0},{"$f":"IF($S$7<>\"\",SUMIF($L$76:$L$82,F89,DB$76:DB$82),0)","v":0},{"$f":"IF($S$7<>\"\",SUMIF($L$76:$L$82,F89,DC$76:DC$82),0)","v":0},{"$f":"IF($U$7<>\"\",SUMIF($L$76:$L$82,F89,DD$76:DD$82),0)","v":0},{"$f":"IF($U$7<>\"\",SUMIF($L$76:$L$82,F89,DE$76:DE$82),0)","v":0},{"$f":"IF($W$7<>\"\",SUMIF($L$76:$L$82,F89,DF$76:DF$82),0)","v":0},{"$f":"IF($W$7<>\"\",SUMIF($L$76:$L$82,F89,DG$76:DG$82),0)","v":0},{"$f":"IF($Y$7<>\"\",SUMIF($L$76:$L$82,F89,DH$76:DH$82),0)","v":0},{"$f":"IF($Y$7<>\"\",SUMIF($L$76:$L$82,F89,DI$76:DI$82),0)","v":0},{"$f":"SUM(DB89,DD89,DF89,DH89,DJ89)-CZ89","v":0},{"$f":"SUM(DC89,DE89,DG89,DI89,DK89)-DA89","v":0}]
[null,null,null,null,null,{"$f":"IF(X!E4<>\"\",X!E4,\"\")","v":""},{"$f":"SUM(Q90,S90,U90,W90,Y90,AA90,AC90)","v":0},0,{"$f":"SUM(AE90,AG90,AI90,AK90,AM90,AO90,AQ90)","v":0},0,{"$f":"SUM(AS90,AU90,AW90,AY90,BA90,BC90,BE90)","v":0},0,{"$f":"SUM(BG90,BI90,BK90,BM90,BO90,BQ90,BS90)","v":0},0,0,0,0,0,0,0,0,0,0,0,0,0,0,0,0,0,0,0,0,0,0,0,0,0,0,0,0,0,0,0,0,0,0,0,0,0,0,0,0,0,0,0,0,0,0,0,0,0,0,0,0,0,0,0,0,0,0,0,0,0,0,0,0,0,0,0,0,0,0,0,0,0,null,null,0,0,0,0,0,0,0,0,0,0,0,0,{"$f":"SUM(CM90,CO90,CQ90,CS90,CU90)-CK90","v":0},0,null,0,0,0,0,0,0,0,0,0,0,0,0,{"$f":"SUM(DB90,DD90,DF90,DH90,DJ90)-CZ90","v":0},0]
[null,null,null,null,null,{"$f":"IF(X!E5<>\"\",X!E5,\"\")","v":""},0,0,0,0,0,0,0,0,0,0,0,0,0,0,0,0,0,0,0,0,0,0,0,0,0,0,0,0,0,0,0,0,0,0,0,0,0,0,0,0,0,0,0,0,0,0,0,0,0,0,0,0,0,0,0,0,0,0,0,0,0,0,0,0,0,0,0,0,0,0,0,0,0,0,0,0,0,0,0,0,null,null,0,0,0,0,0,0,0,0,0,0,0,0,0,0,null,0,0,0,0,0,0,0,0,0,0,0,0,0,0]
[null,null,null,null,null,{"$f":"IF(X!E6<>\"\",X!E6,\"\")","v":""},0,0,0,0,0,0,0,0,0,0,0,0,0,0,0,0,0,0,0,0,0,0,0,0,0,0,0,0,0,0,0,0,0,0,0,0,0,0,0,0,0,0,0,0,0,0,0,0,0,0,0,0,0,0,0,0,0,0,0,0,0,0,0,0,0,0,0,0,0,0,0,0,0,0,0,0,0,0,0,0,null,null,0,0,0,0,0,0,0,0,0,0,0,0,0,0,null,0,0,0,0,0,0,0,0,0,0,0,0,0,0]
[null,null,null,null,null,{"$f":"IF(X!E7<>\"\",X!E7,\"\")","v":""},0,0,0,0,0,0,0,0,0,0,0,0,0,0,0,0,0,0,0,0,0,0,0,0,0,0,0,0,0,0,0,0,0,0,0,0,0,0,0,0,0,0,0,0,0,0,0,0,0,0,0,0,0,0,0,0,0,0,0,0,0,0,0,0,0,0,0,0,0,0,0,0,0,0,0,0,0,0,0,0,null,null,0,0,0,0,0,0,0,0,0,0,0,0,0,0,null,0,0,0,0,0,0,0,0,0,0,0,0,0,0]
[null,null,null,null,null,{"$f":"IF(X!E8<>\"\",X!E8,\"\")","v":""},0,0,0,0,0,0,0,0,0,0,0,0,0,0,0,0,0,0,0,0,0,0,0,0,0,0,0,0,0,0,0,0,0,0,0,0,0,0,0,0,0,0,0,0,0,0,0,0,0,0,0,0,0,0,0,0,0,0,0,0,0,0,0,0,0,0,0,0,0,0,0,0,0,0,0,0,0,0,0,0,null,null,0,0,0,0,0,0,0,0,0,0,0,0,0,0,null,0,0,0,0,0,0,0,0,0,0,0,0,0,0]
[null,null,null,null,null,{"$f":"IF(X!E9<>\"\",X!E9,\"\")","v":""},0,0,0,0,0,0,0,0,0,0,0,0,0,0,0,0,0,0,0,0,0,0,0,0,0,0,0,0,0,0,0,0,0,0,0,0,0,0,0,0,0,0,0,0,0,0,0,0,0,0,0,0,0,0,0,0,0,0,0,0,0,0,0,0,0,0,0,0,0,0,0,0,0,0,0,0,0,0,0,0,null,null,0,0,0,0,0,0,0,0,0,0,0,0,0,0,null,0,0,0,0,0,0,0,0,0,0,0,0,0,0]
[null,null,null,null,null,{"$f":"IF(X!E10<>\"\",X!E10,\"\")","v":""},0,0,0,0,0,0,0,0,0,0,0,0,0,0,0,0,0,0,0,0,0,0,0,0,0,0,0,0,0,0,0,0,0,0,0,0,0,0,0,0,0,0,0,0,0,0,0,0,0,0,0,0,0,0,0,0,0,0,0,0,0,0,0,0,0,0,0,0,0,0,0,0,0,0,0,0,0,0,0,0,null,null,0,0,0,0,0,0,0,0,0,0,0,0,0,0,null,0,0,0,0,0,0,0,0,0,0,0,0,0,0]
[null,null,null,null,null,{"$f":"IF(X!E11<>\"\",X!E11,\"\")","v":""},0,0,0,0,0,0,0,0,0,0,0,0,0,0,0,0,0,0,0,0,0,0,0,0,0,0,0,0,0,0,0,0,0,0,0,0,0,0,0,0,0,0,0,0,0,0,0,0,0,0,0,0,0,0,0,0,0,0,0,0,0,0,0,0,0,0,0,0,0,0,0,0,0,0,0,0,0,0,0,0,null,null,0,0,0,0,0,0,0,0,0,0,0,0,0,0,null,0,0,0,0,0,0,0,0,0,0,0,0,0,0]
[null,null,null,null,null,{"$f":"IF(X!E12<>\"\",X!E12,\"\")","v":""},0,0,0,0,0,0,0,0,0,0,0,0,0,0,0,0,0,0,0,0,0,0,0,0,0,0,0,0,0,0,0,0,0,0,0,0,0,0,0,0,0,0,0,0,0,0,0,0,0,0,0,0,0,0,0,0,0,0,0,0,0,0,0,0,0,0,0,0,0,0,0,0,0,0,0,0,0,0,0,0,null,null,0,0,0,0,0,0,0,0,0,0,0,0,0,0,null,0,0,0,0,0,0,0,0,0,0,0,0,0,0]
[null,null,null,null,null,{"$f":"IF(X!E13<>\"\",X!E13,\"\")","v":""},0,0,0,0,0,0,0,0,0,0,{"$f":"SUMIF($L$76:$L$82,$F99,Q$76:Q$82)*Q$6","v":0},0,0,0,0,0,0,0,0,0,{"$f":"SUMIF($L$76:$L$82,$F99,AA$76:AA$82)*AA$6","v":0},0,0,0,0,0,0,0,0,0,{"$f":"SUMIF($L$76:$L$82,$F99,AK$76:AK$82)*AK$6","v":0},0,0,0,0,0,0,0,0,0,{"$f":"SUMIF($L$76:$L$82,$F99,AU$76:AU$82)*AU$6","v":0},0,0,0,0,0,0,0,0,0,{"$f":"SUMIF($L$76:$L$82,$F99,BE$76:BE$82)*BE$6","v":0},0,0,0,0,0,0,0,0,0,{"$f":"SUMIF($L$76:$L$82,$F99,BO$76:BO$82)*BO$6","v":0},0,0,0,0,0,0,0,0,0,{"$f":"SUMIF($L$76:$L$82,$F99,BY$76:BY$82)*BY$6","v":0},0,0,0,0,0,0,0,0,0,null,null,0,0,0,0,0,0,0,0,0,0,0,0,0,0,null,0,0,0,0,0,0,0,0,0,0,0,0,0,0]
[null,null,null,null,null,{"$f":"IF(X!E14<>\"\",X!E14,\"\")","v":""},0,0,0,0,0,0,0,0,0,0,0,0,0,0,0,0,0,0,0,0,0,0,0,0,0,0,0,0,0,0,0,0,0,0,0,0,0,0,0,0,0,0,0,0,0,0,0,0,0,0,0,0,0,0,0,0,0,0,0,0,0,0,0,0,0,0,0,0,0,0,0,0,0,0,0,0,0,0,0,0,null,null,0,0,0,0,0,0,0,0,0,0,0,0,0,0,null,0,0,0,0,0,0,0,0,0,0,0,0,0,0]
[null,null,null,null,null,{"$f":"IF(X!E15<>\"\",X!E15,\"\")","v":""},0,0,0,0,0,0,0,0,0,0,0,0,0,0,0,0,0,0,0,0,0,0,0,0,0,0,0,0,0,0,0,0,0,0,0,0,0,0,0,0,0,0,0,0,0,0,0,0,0,0,0,0,0,0,0,0,0,0,0,0,0,0,0,0,0,0,0,0,0,0,0,0,0,0,0,0,0,0,0,0,null,null,0,0,0,0,0,0,0,0,0,0,0,0,0,0,null,0,0,0,0,0,0,0,0,0,0,0,0,0,0]
[null,null,null,null,null,{"$f":"IF(X!E16<>\"\",X!E16,\"\")","v":""},0,0,0,0,0,0,0,0,0,0,0,0,0,0,0,0,0,0,0,0,0,0,0,0,0,0,0,0,0,0,0,0,0,0,0,0,0,0,0,0,0,0,0,0,0,0,0,0,0,0,0,0,0,0,0,0,0,0,0,0,0,0,0,0,0,0,0,0,0,0,0,0,0,0,0,0,0,0,0,0,null,null,0,0,0,0,0,0,0,0,0,0,0,0,0,0,null,0,0,0,0,0,0,0,0,0,0,0,0,0,0]
[null,null,null,null,null,{"$f":"IF(X!E17<>\"\",X!E17,\"\")","v":""},0,0,0,0,0,0,0,0,0,0,0,0,0,0,0,0,0,0,0,0,0,0,0,0,0,0,0,0,0,0,0,0,0,0,0,0,0,0,0,0,0,0,0,0,0,0,0,0,0,0,0,0,0,0,0,0,0,0,0,0,0,0,0,0,0,0,0,0,0,0,0,0,0,0,0,0,0,0,0,0,null,null,0,0,0,0,0,0,0,0,0,0,0,0,0,0,null,0,0,0,0,0,0,0,0,0,0,0,0,0,0]
[null,null,null,null,null,{"$f":"IF(X!E18<>\"\",X!E18,\"\")","v":""},0,0,0,0,0,0,0,0,0,0,0,0,0,0,0,0,0,0,0,0,0,0,0,0,0,0,0,0,0,0,0,0,0,0,0,0,0,0,0,0,0,0,0,0,0,0,0,0,0,0,0,0,0,0,0,0,0,0,0,0,0,0,0,0,0,0,0,0,0,0,0,0,0,0,0,0,0,0,0,0,null,null,0,0,0,0,0,0,0,0,0,0,0,0,0,0,null,0,0,0,0,0,0,0,0,0,0,0,0,0,0]
[null,null,null,null,null,{"$f":"IF(X!E19<>\"\",X!E19,\"\")","v":""},0,0,0,0,0,0,0,0,0,0,0,0,0,0,0,0,0,0,0,0,0,0,0,0,0,0,0,0,0,0,0,0,0,0,0,0,0,0,0,0,0,0,0,0,0,0,0,0,0,0,0,0,0,0,0,0,0,0,0,0,0,0,0,0,0,0,0,0,0,0,0,0,0,0,0,0,0,0,0,0,null,null,0,0,0,0,0,0,0,0,0,0,0,0,0,0,null,0,0,0,0,0,0,0,0,0,0,0,0,0,0]
[null,null,null,null,null,{"$f":"IF(X!E20<>\"\",X!E20,\"\")","v":""},0,0,0,0,0,0,0,0,0,0,0,0,0,0,0,0,0,0,0,0,0,0,0,0,0,0,0,0,0,0,0,0,0,0,0,0,0,0,0,0,0,0,0,0,0,0,0,0,0,0,0,0,0,0,0,0,0,0,0,0,0,0,0,0,0,0,0,0,0,0,0,0,0,0,0,0,0,0,0,0,null,null,0,0,0,0,0,0,0,0,0,0,0,0,{"$f":"SUM(CM106,CO106,CQ106,CS106,CU106)-CK106","v":0},{"$f":"SUM(CN106,CP106,CR106,CT106,CV106)-CL106","v":0},null,0,0,0,0,0,0,0,0,0,0,0,0,{"$f":"SUM(DB106,DD106,DF106,DH106,DJ106)-CZ106","v":0},{"$f":"SUM(DC106,DE106,DG106,DI106,DK106)-DA106","v":0}]
[null,null,null,null,null,{"$f":"IF(X!E21<>\"\",X!E21,\"\")","v":""},0,0,0,0,0,0,0,0,{"$f":"SUM(BU107,BW107,BY107,CA107,CC107,CE107,CG107)","v":0},0,0,0,0,0,0,0,0,0,0,0,0,0,0,0,0,0,0,0,0,0,0,0,0,0,0,0,0,0,0,0,0,0,0,0,0,0,0,0,0,0,0,0,0,0,0,0,0,0,0,0,0,0,0,0,0,0,0,0,0,0,0,0,0,0,0,0,0,0,0,0]
[null,null,null,null,null,null,null,null,null,null,null,null,null,null,null,null,null,null,null,null,null,null,null,null,null,{"$f":"10-$Q$28","v":3},null,null,null,null,null,null,null,null,null,null,null,{"$f":"10-$AE$28","v":3},null,null,null,null,null,null,null,null,null,null,null,{"$f":"10-$AS$28","v":6},null,null,null,null,null,null,null,null,null,null,null,{"$f":"10-$BG$28","v":6},null,null,null,null,null,null,null,null,null,null,null,null,null,{"$f":"10-$BU$28","v":6}]
[]
[null,null,null,null,null,null,null,null,null,null,null,null,null,null,null,null,null,null,null,null,null,null,null,null,{"$f":"IF(Q29>=ABS(CH5),0,Q29-ABS(CH5))","v":0},{"$f":"$Q$28","v":7},null,null,null,null,null,null,null,null,null,null,null,null,{"$f":"IF(AE29>=ABS(CI5),0,AE29-ABS(CI5))","v":0},{"$f":"$AE$28","v":7},null,null,null,null,null,null,null,null,null,null,null,null,{"$f":"IF(AS29>=ABS(CJ5),0,AS29-ABS(CJ5))","v":0},{"$f":"$AS$28","v":4},null,null,null,null,null,null,null,null,null,null,null,null,{"$f":"IF(BG29>=ABS(CK5),0,BG29-ABS(CK5))","v":0},{"$f":"$BG$28","v":4},null,null,null,null,null,null,null,null,null,null,null,null,null,{"$f":"IF(BU29>=ABS(CL5),0,BU29-ABS(CL5))","v":0},{"$f":"$BU$28","v":4}]
[null,null,null,null,null,null,null,null,null,null,null,null,null,null,null,null,null,null,"T","D","TF","DF",null,null,null,null,"KÖ",null,null,null,null,null,"T","D","TF","DF",null,null,null,null,"KÖ",null,null,null,null,null,"T","D","TF","DF",null,null,null,null,"KÖ",null,null,null,null,null,"T","D","TF","DF",null,null,null,null,"KÖ",null,null,null,null,null,null,"T","D","TF","DF",null,null,null,null,"KÖ"]
[null,null,null,null,null,null,null,1,{"$f":"IF(H112<=$C$83,VLOOKUP(H112,$C$76:$M$82,10),\"\")","v":""},null,null,null,null,null,null,{"$f":"Q112+R112","v":0},{"$f":"IF($I112<>\"\",S112,0)","v":0},{"$f":"IF($I112<>\"\",T112+Z110,0)","v":0},{"$f":"IF($I112<>\"\",VLOOKUP($I112,$F$89:$CH$107,2,FALSE),0)","v":0},{"$f":"IF($I112<>\"\",VLOOKUP($I112,$F$89:$CH$107,3,FALSE),0)","v":0},{"$f":"IF(S112=0,0,IF(AA112<0,IF(ABS(AA112)>=S112,0,S112+AA112),IF(S112+AA112<=10,S112,10-AA112)))","v":0},{"$f":"IF(AA112<=0,0,AA112)","v":0},null,{"$f":"V112+U112","v":0},{"$f":"Z110+T112","v":7},{"$f":"IF(S112>U112,AA112+S112,AA112+U112)","v":0},{"$f":"IF(Z110>=10,0,IF(T112+Z110<=10,T112+Y110,10-Z110+Y110))","v":0},null,null,{"$f":"AE112+AF112","v":0},{"$f":"IF($I112<>\"\",AG112,0)","v":0},{"$f":"IF($I112<>\"\",AH112,0)","v":0},{"$f":"IF($I112<>\"\",VLOOKUP($I112,$F$89:$AOK$107,4,FALSE),0)","v":0},{"$f":"IF($I112<>\"\",VLOOKUP($I112,$F$89:$CH$107,5,FALSE),0)","v":0},{"$f":"IF(AG112=0,0,IF(AO112<0,IF(ABS(AO112)>=AG112,0,AG112+AO112),IF(AG112+AO112<=10,AG112,10-AO112)))","v":0},{"$f":"IF(AO112<=0,0,AO112)","v":0},null,{"$f":"AJ112+AI112","v":0},{"$f":"AN110+AH112","v":7},{"$f":"IF(AG112>AI112,AO112+AG112,AO112+AI112)","v":0},{"$f":"IF(AN110>=10,0,IF(AH112+AN110<=10,AH112+AM110,10-AN110+AM110))","v":0},null,null,{"$f":"AS112+AT112","v":0},{"$f":"IF($I112<>\"\",AU112,0)","v":0},{"$f":"IF($I112<>\"\",AV112,0)","v":0},{"$f":"IF($I112<>\"\",VLOOKUP($I112,$F$89:$AOK$107,6,FALSE),0)","v":0},{"$f":"IF($I112<>\"\",VLOOKUP($I112,$F$89:$AOK$107,7,FALSE),0)","v":0},{"$f":"IF(AU112=0,0,IF(BC112<0,IF(ABS(BC112)>=AU112,0,AU112+BC112),IF(AU112+BC112<=10,AU112,10-BC112)))","v":0},{"$f":"IF(BC112<=0,0,BC112)","v":0},null,{"$f":"AX112+AW112","v":0},{"$f":"BB110+AV112","v":4},{"$f":"IF(AU112>AW112,BC112+AU112,BC112+AW112)","v":0},{"$f":"IF(BB110>=10,0,IF(AV112+BB110<=10,AV112+BA110,10-BB110+BA110))","v":0},null,null,{"$f":"BG112+BH112","v":0},{"$f":"IF($I112<>\"\",BI112,0)","v":0},{"$f":"IF($I112<>\"\",BJ112,0)","v":0},{"$f":"IF($I112<>\"\",VLOOKUP($I112,$F$89:$AOK$107,8,FALSE),0)","v":0},{"$f":"IF($I112<>\"\",VLOOKUP($I112,$F$89:$CH$107,9,FALSE),0)","v":0},{"$f":"IF(BI112=0,0,IF(BQ112<0,IF(ABS(BQ112)>=BI112,0,BI112+BQ112),IF(BI112+BQ112<=10,BI112,10-BQ112)))","v":0},{"$f":"IF(BQ112<=0,0,BQ112)","v":0},null,{"$f":"BL112+BK112","v":0},{"$f":"BP110+BJ112","v":4},{"$f":"IF(BI112>BK112,BQ112+BI112,BQ112+BK112)","v":0},{"$f":"IF(BP110>=10,0,IF(BJ112+BP110<=10,BJ112+BO110,10-BP110+BO110))","v":0},null,null,null,{"$f":"BV112+BW112","v":0},{"$f":"IF($I112<>\"\",BX112,0)","v":0},{"$f":"IF($I112<>\"\",BY112,0)","v":0},{"$f":"IF($I112<>\"\",VLOOKUP($I112,$F$89:$AOK$107,10,FALSE),0)","v":0},{"$f":"IF($I112<>\"\",VLOOKUP($I112,$F$89:$CH$107,11,FALSE),0)","v":0},{"$f":"IF(BX112=0,0,IF(CF112<0,IF(ABS(CF112)>=BX112,0,BX112+CF112),IF(BX112+CF112<=10,BX112,10-CF112)))","v":0},{"$f":"IF(CF112<=0,0,CF112)","v":0},null,{"$f":"CA112+BZ112","v":0},{"$f":"CE110+BY112","v":4},{"$f":"IF(BX112>BZ112,CF112+BX112,CF112+BZ112)","v":0},{"$f":"IF(CE110>=10,0,IF(BY112+CE110<=10,BY112+CD110,10-CE110+CD110))","v":0}]
[null,null,null,null,null,null,null,2,{"$f":"IF(H113<=$C$83,VLOOKUP(H113,$C$76:$M$82,10),\"\")","v":""},null,null,null,null,null,null,{"$f":"Q113+R113","v":0},{"$f":"IF($I113<>\"\",Q112+S113,0)","v":0},{"$f":"IF($I113<>\"\",R112+T113,0)","v":0},{"$f":"IF($I113<>\"\",VLOOKUP($I113,$F$89:$CH$107,2,FALSE),0)","v":0},{"$f":"IF($I113<>\"\",VLOOKUP($I113,$F$89:$CH$107,3,FALSE),0)","v":0},{"$f":"IF(I113<>\"\",IF(OR(X113>=10,S113=0),0,IF(S113+X113<=10,S113,10-X113)),0)","v":0},{"$f":"IF(I113<>\"\",IF(OR(Y112>=10,Z112>=10,R112>=10),0,IF(R112+Q112+T113<=10,T113,10-R112-Q112)),0)","v":0},null,{"$f":"V113+X112","v":0},{"$f":"V113+Y112","v":7},{"$f":"IF(S113>U113,AA113+S113,AA113+U113)","v":0},{"$f":"IF(Z112<0,IF(ABS(Z112)>T113,T113+Z112,ABS(Z112)),0)","v":0},null,null,{"$f":"AE113+AF113","v":0},{"$f":"IF($I113<>\"\",AE112+AG113,0)","v":0},0,{"$f":"IF($I113<>\"\",VLOOKUP($I113,$F$89:$AOK$107,4,FALSE),0)","v":0},{"$f":"IF($I113<>\"\",VLOOKUP($I113,$F$89:$CH$107,5,FALSE),0)","v":0},{"$f":"IF(W113<>\"\",IF(OR(AL113>=10,AG113=0),0,IF(AG113+AL113<=10,AG113,10-AL113)),0)","v":0},{"$f":"IF(I113<>\"\",IF(OR(AM112>=10,AN112>=10,AF112>=10),0,IF(AF112+AE112+AH113<=10,AH113,10-AF112-AE112)),0)","v":0},null,{"$f":"AJ113+AL112","v":0},{"$f":"AJ113+AM112","v":7},{"$f":"IF(AG113>AI113,AO113+AG113,AO113+AI113)","v":0},{"$f":"IF(AN112<0,IF(ABS(AN112)>AH113,AH113+AN112,ABS(AN112)),0)","v":0},null,null,{"$f":"AS113+AT113","v":0},{"$f":"IF($I113<>\"\",AS112+AU113,0)","v":0},0,{"$f":"IF($I113<>\"\",VLOOKUP($I113,$F$89:$AOK$107,6,FALSE),0)","v":0},{"$f":"IF($I113<>\"\",VLOOKUP($I113,$F$89:$AOK$107,7,FALSE),0)","v":0},{"$f":"IF(AK113<>\"\",IF(OR(AZ113>=10,AU113=0),0,IF(AU113+AZ113<=10,AU113,10-AZ113)),0)","v":0},{"$f":"IF(I113<>\"\",IF(OR(BA112>=10,BB112>=10,AT112>=10),0,IF(AT112+AS112+AV113<=10,AV113,10-AT112-AS112)),0)","v":0},null,{"$f":"AX113+AZ112","v":0},{"$f":"AX113+BA112","v":4},{"$f":"IF(AU113>AW113,BC113+AU113,BC113+AW113)","v":0},{"$f":"IF(BB112<0,IF(ABS(BB112)>AV113,AV113+BB112,ABS(BB112)),0)","v":0},null,null,{"$f":"BG113+BH113","v":0},{"$f":"IF($I113<>\"\",BG112+BI113,0)","v":0},0,{"$f":"IF($I113<>\"\",VLOOKUP($I113,$F$89:$AOK$107,8,FALSE),0)","v":0},{"$f":"IF($I113<>\"\",VLOOKUP($I113,$F$89:$CH$107,9,FALSE),0)","v":0},{"$f":"IF(AY113<>\"\",IF(OR(BN113>=10,BI113=0),0,IF(BI113+BN113<=10,BI113,10-BN113)),0)","v":0},{"$f":"IF(I113<>\"\",IF(OR(BO112>=10,BP112>=10,BH112>=10),0,IF(BH112+BG112+BJ113<=10,BJ113,10-BH112-BG112)),0)","v":0},null,{"$f":"BL113+BN112","v":0},{"$f":"BL113+BO112","v":4},{"$f":"IF(BI113>BK113,BQ113+BI113,BQ113+BK113)","v":0},{"$f":"IF(BP112<0,IF(ABS(BP112)>BJ113,BJ113+BP112,ABS(BP112)),0)","v":0},null,null,null,{"$f":"BV113+BW113","v":0},{"$f":"IF($I113<>\"\",BV112+BX113,0)","v":0},0,{"$f":"IF($I113<>\"\",VLOOKUP($I113,$F$89:$AOK$107,10,FALSE),0)","v":0},{"$f":"IF($I113<>\"\",VLOOKUP($I113,$F$89:$CH$107,11,FALSE),0)","v":0},{"$f":"IF(BN113<>\"\",IF(OR(CC113>=10,BX113=0),0,IF(BX113+CC113<=10,BX113,10-CC113)),0)","v":0},{"$f":"IF(I113<>\"\",IF(OR(CD112>=10,CE112>=10,BW112>=10),0,IF(BW112+BV112+BY113<=10,BY113,10-BW112-BV112)),0)","v":0},null,{"$f":"CA113+CC112","v":0},{"$f":"CA113+CD112","v":4},{"$f":"IF(BX113>BZ113,CF113+BX113,CF113+BZ113)","v":0},{"$f":"IF(CE112<0,IF(ABS(CE112)>BY113,BY113+CE112,ABS(CE112)),0)","v":0}]
[null,null,null,null,null,null,null,3,"",null,null,null,null,null,null,0,{"$f":"IF($I114<>\"\",Q113+S114,0)","v":0},0,0,0,{"$f":"IF(I114<>\"\",IF(OR(X114>=10,S114=0),0,IF(S114+X114<=10,S114,10-X114)),0)","v":0},{"$f":"IF(I114<>\"\",IF(OR(Y113>=10,Z113>=10,R113>=10),0,IF(R113+Q113+T114<=10,T114,10-R113-Q113)),0)","v":0},null,{"$f":"V114+X113","v":0},{"$f":"V114+Y113","v":7},{"$f":"IF(S114>U114,AA114+S114,AA114+U114)","v":0},{"$f":"IF(Z113<0,IF(ABS(Z113)>T114,T114+Z113,0),0)","v":0},null,null,0,0,0,0,0,{"$f":"IF(W114<>\"\",IF(OR(AL114>=10,AG114=0),0,IF(AG114+AL114<=10,AG114,10-AL114)),0)","v":0},{"$f":"IF(W114<>\"\",IF(OR(AM113>=10,AN113>=10,AF113>=10),0,IF(AF113+AE113+AH114<=10,AH114,10-AF113-AE113)),0)","v":0},null,{"$f":"AJ114+AL113","v":0},{"$f":"AJ114+AM113","v":7},{"$f":"IF(AG114>AI114,AO114+AG114,AO114+AI114)","v":0},{"$f":"IF(AN113<0,IF(ABS(AN113)>AH114,AH114+AN113,0),0)","v":0},null,null,0,0,0,0,0,{"$f":"IF(AK114<>\"\",IF(OR(AZ114>=10,AU114=0),0,IF(AU114+AZ114<=10,AU114,10-AZ114)),0)","v":0},{"$f":"IF(AK114<>\"\",IF(OR(BA113>=10,BB113>=10,AT113>=10),0,IF(AT113+AS113+AV114<=10,AV114,10-AT113-AS113)),0)","v":0},null,{"$f":"AX114+AZ113","v":0},{"$f":"AX114+BA113","v":4},{"$f":"IF(AU114>AW114,BC114+AU114,BC114+AW114)","v":0},{"$f":"IF(BB113<0,IF(ABS(BB113)>AV114,AV114+BB113,0),0)","v":0},null,null,{"$f":"BG114+BH114","v":0},0,0,0,0,{"$f":"IF(AY114<>\"\",IF(OR(BN114>=10,BI114=0),0,IF(BI114+BN114<=10,BI114,10-BN114)),0)","v":0},{"$f":"IF(AY114<>\"\",IF(OR(BO113>=10,BP113>=10,BH113>=10),0,IF(BH113+BG113+BJ114<=10,BJ114,10-BH113-BG113)),0)","v":0},null,{"$f":"BL114+BN113","v":0},{"$f":"BL114+BO113","v":4},{"$f":"IF(BI114>BK114,BQ114+BI114,BQ114+BK114)","v":0},{"$f":"IF(BP113<0,IF(ABS(BP113)>BJ114,BJ114+BP113,0),0)","v":0},null,null,null,0,0,0,0,0,{"$f":"IF(BN114<>\"\",IF(OR(CC114>=10,BX114=0),0,IF(BX114+CC114<=10,BX114,10-CC114)),0)","v":0},{"$f":"IF(BN114<>\"\",IF(OR(CD113>=10,CE113>=10,BW113>=10),0,IF(BW113+BV113+BY114<=10,BY114,10-BW113-BV113)),0)","v":0},null,{"$f":"CA114+CC113","v":0},{"$f":"CA114+CD113","v":4},{"$f":"IF(BX114>BZ114,CF114+BX114,CF114+BZ114)","v":0},{"$f":"IF(CE113<0,IF(ABS(CE113)>BY114,BY114+CE113,0),0)","v":0}]
[null,null,null,null,null,null,null,4,"",null,null,null,null,null,null,null,0,0,0,0,{"$f":"IF(I115<>\"\",IF(OR(X115>=10,S115=0),0,IF(S115+X115<=10,S115,10-X115)),0)","v":0},{"$f":"IF(I115<>\"\",IF(OR(Y114>=10,Z114>=10,R114>=10),0,IF(R114+Q114+T115<=10,T115,10-R114-Q114)),0)","v":0},null,0,7,0,0,null,null,null,0,0,0,0,{"$f":"IF(W115<>\"\",IF(OR(AL115>=10,AG115=0),0,IF(AG115+AL115<=10,AG115,10-AL115)),0)","v":0},{"$f":"IF(W115<>\"\",IF(OR(AM114>=10,AN114>=10,AF114>=10),0,IF(AF114+AE114+AH115<=10,AH115,10-AF114-AE114)),0)","v":0},null,0,7,0,0,null,null,null,0,0,0,0,{"$f":"IF(AK115<>\"\",IF(OR(AZ115>=10,AU115=0),0,IF(AU115+AZ115<=10,AU115,10-AZ115)),0)","v":0},{"$f":"IF(AK115<>\"\",IF(OR(BA114>=10,BB114>=10,AT114>=10),0,IF(AT114+AS114+AV115<=10,AV115,10-AT114-AS114)),0)","v":0},null,0,4,0,0,null,null,null,0,0,0,0,{"$f":"IF(AY115<>\"\",IF(OR(BN115>=10,BI115=0),0,IF(BI115+BN115<=10,BI115,10-BN115)),0)","v":0},{"$f":"IF(AY115<>\"\",IF(OR(BO114>=10,BP114>=10,BH114>=10),0,IF(BH114+BG114+BJ115<=10,BJ115,10-BH114-BG114)),0)","v":0},null,0,4,0,0,null,null,null,null,0,0,0,0,{"$f":"IF(BN115<>\"\",IF(OR(CC115>=10,BX115=0),0,IF(BX115+CC115<=10,BX115,10-CC115)),0)","v":0},{"$f":"IF(BN115<>\"\",IF(OR(CD114>=10,CE114>=10,BW114>=10),0,IF(BW114+BV114+BY115<=10,BY115,10-BW114-BV114)),0)","v":0},null,0,4,0,0]
[null,null,null,null,null,null,null,5,"",null,null,null,null,null,null,null,0,0,0,0,0,0,null,0,7,0,0,null,null,null,0,0,0,0,0,0,null,0,7,0,0,null,null,null,0,0,0,0,0,0,null,0,4,0,0,null,null,null,0,0,0,0,0,0,null,0,4,0,0,null,null,null,null,0,0,0,0,0,0,null,0,4,0,0]
[null,null,null,null,null,null,null,6,"",null,null,null,null,null,null,null,0,0,0,0,0,0,null,0,7,0,0,null,null,null,0,0,0,0,0,0,null,0,7,0,0,null,null,null,0,0,0,0,0,0,null,0,4,0,0,null,null,null,0,0,0,0,0,0,null,0,4,0,0,null,null,null,null,0,0,0,0,0,0,null,0,4,0,0]
[null,null,null,null,null,null,null,7,"",null,null,null,null,null,null,null,0,0,0,0,0,0,null,0,7,0,0,null,null,null,0,0,0,0,0,0,null,0,7,0,0,null,null,null,0,0,0,0,0,0,null,0,4,0,0,null,null,null,0,0,0,0,0,0,null,0,4,0,0,null,null,null,null,0,0,0,0,0,0,null,0,4,0,0]
[null,null,null,null,null,null,null,8,"",null,null,null,null,null,null,null,0,0,0,0,0,0,null,0,7,0,0,null,null,null,0,0,0,0,0,0,null,0,7,0,0,null,null,null,0,0,0,0,0,0,null,0,4,0,0,null,null,null,0,0,0,0,0,0,null,0,4,0,0,null,null,null,null,0,0,0,0,0,0,null,0,4,0,0]
[null,null,null,null,null,null,null,9,"",null,null,null,null,null,null,null,0,0,0,0,0,0,null,0,7,0,0,null,null,null,0,0,0,0,0,0,null,0,7,0,0,null,null,null,0,0,0,0,0,0,null,0,4,0,0,null,null,null,0,0,0,0,0,0,null,0,4,0,0,null,null,null,null,0,0,0,0,0,0,null,0,4,0,0]
[null,null,null,null,null,null,null,10,"",null,null,null,null,null,null,null,0,0,0,0,0,0,null,0,7,0,0,null,null,null,0,0,0,0,0,0,null,0,7,0,0,null,null,null,0,0,0,0,0,0,null,0,4,0,0,null,null,null,0,0,0,0,0,0,null,0,4,0,0,null,null,null,null,0,0,0,0,0,0,null,0,4,0,0]
[null,null,null,null,null,null,null,11,"",null,null,null,null,null,null,null,0,0,0,0,0,0,null,0,7,0,0,null,null,null,0,0,0,0,0,0,null,0,7,0,0,null,null,null,0,0,0,0,0,0,null,0,4,0,0,null,null,null,0,0,0,0,0,0,null,0,4,0,0,null,null,null,null,0,0,0,0,0,0,null,0,4,0,0]
[null,null,null,null,null,null,null,12,"",null,null,null,null,null,null,null,0,0,0,0,0,0,null,0,7,0,0,null,null,null,0,0,0,0,0,0,null,0,7,0,0,null,null,null,0,0,0,0,0,0,null,0,4,0,0,null,null,null,0,0,0,0,0,0,null,0,4,0,0,null,null,null,null,0,0,0,0,0,0,null,0,4,0,0]
[null,null,null,null,null,null,null,13,"",null,null,null,null,null,null,null,0,0,0,0,0,0,null,0,7,0,0,null,null,null,0,0,0,0,0,0,null,0,7,0,0,null,null,null,0,0,0,0,0,0,null,0,4,0,0,null,null,null,0,0,0,0,0,0,null,0,4,0,0,null,null,null,null,0,0,0,0,0,0,null,0,4,0,0]
[null,null,null,null,null,null,null,14,"",null,null,null,null,null,null,null,0,0,0,0,0,0,null,0,7,0,0,null,null,null,0,0,0,0,0,0,null,0,7,0,0,null,null,null,0,0,0,0,0,0,null,0,4,0,0,null,null,null,0,0,0,0,0,0,null,0,4,0,0,null,null,null,null,0,0,0,0,0,0,null,0,4,0,0]
[null,null,null,null,null,null,null,15,"",null,null,null,null,null,null,null,0,0,0,0,0,0,null,0,7,0,0,null,null,null,0,0,0,0,0,0,null,0,7,0,0,null,null,null,0,0,0,0,0,0,null,0,4,0,0,null,null,null,0,0,0,0,0,0,null,0,4,0,0,null,null,null,null,0,0,0,0,0,0,null,0,4,0,0]
[null,null,null,null,null,null,null,16,"",null,null,null,null,null,null,null,0,0,0,0,0,0,null,0,7,0,0,null,null,null,0,0,0,0,0,0,null,0,7,0,0,null,null,null,0,0,0,0,0,0,null,0,4,0,0,null,null,null,0,0,0,0,0,0,null,0,4,0,0,null,null,null,null,0,0,0,0,0,0,null,0,4,0,0]
[null,null,null,null,null,null,null,17,"",null,null,null,null,null,null,null,0,0,0,0,0,0,null,0,7,0,0,null,null,null,0,0,0,0,0,0,null,0,7,0,0,null,null,null,0,0,0,0,0,0,null,0,4,0,0,null,null,null,0,0,0,0,0,0,null,0,4,0,0,null,null,null,null,0,0,0,0,0,0,null,0,4,0,0]
[null,null,null,null,null,null,null,18,"",null,null,null,null,null,null,null,0,0,0,0,0,0,null,0,7,0,0,null,null,null,{"$f":"IF($I129<>\"\",AE128+AG129,0)","v":0},0,0,0,0,0,null,0,7,0,0,null,null,null,{"$f":"IF($I129<>\"\",AS128+AU129,0)","v":0},0,0,0,0,0,null,0,4,0,0,null,null,null,{"$f":"IF($I129<>\"\",BG128+BI129,0)","v":0},0,0,0,0,0,null,0,4,0,0,null,null,null,null,{"$f":"IF($I129<>\"\",BV128+BX129,0)","v":0},0,0,0,0,0,null,0,4,0,0]
[null,null,null,null,null,null,null,19,"",null,null,null,null,null,null,null,{"$f":"IF($I130<>\"\",Q129+S130,0)","v":0},0,0,0,0,0,null,0,7,0,0,null,null,null,0,0,0,0,0,0,null,0,7,0,0,null,null,null,0,0,0,0,0,0,null,0,4,0,0,null,null,null,0,0,{"$f":"IF($I130<>\"\",VLOOKUP($I130,$F$89:$AOK$107,8,FALSE),0)","v":0},0,0,0,null,0,4,0,0,null,null,null,null,0,0,0,0,0,0,null,0,4,0,0]
[null,null,null,null,null,null,null,null,null,null,null,null,null,null,null,null,{"$f":"MAX(Q112:Q129)","v":0},{"$f":"MAX(R112:R129)","v":0},{"$f":"SUM(S112:S130)","v":0},{"$f":"SUM(T112:T130)","v":0},{"$f":"X131-V131","v":0},{"$f":"SUM(V112:V130)","v":0},null,null,null,null,null,null,null,null,{"$f":"MAX(AE112:AE129)","v":0},{"$f":"MAX(AF112:AF129)","v":0},{"$f":"SUM(AG112:AG130)","v":0},{"$f":"SUM(AH112:AH130)","v":0},{"$f":"AL131-AJ131","v":0},{"$f":"SUM(AJ112:AJ130)","v":0},null,null,null,null,null,null,null,null,{"$f":"MAX(AS112:AS129)","v":0},{"$f":"MAX(AT112:AT129)","v":0},{"$f":"SUM(AU112:AU130)","v":0},{"$f":"SUM(AV112:AV130)","v":0},{"$f":"AZ131-AX131","v":0},{"$f":"SUM(AX112:AX130)","v":0},null,null,null,null,null,null,null,null,{"$f":"MAX(BG112:BG129)","v":0},{"$f":"MAX(BH112:BH129)","v":0},{"$f":"SUM(BI112:BI130)","v":0},{"$f":"SUM(BJ112:BJ130)","v":0},{"$f":"BN131-BL131","v":0},{"$f":"SUM(BL112:BL130)","v":0},null,null,null,null,null,null,null,null,null,{"$f":"MAX(BV112:BV129)","v":0},{"$f":"MAX(BW112:BW129)","v":0},{"$f":"SUM(BX112:BX130)","v":0},{"$f":"SUM(BY112:BY130)","v":0},{"$f":"CC131-CA131","v":0},{"$f":"SUM(CA112:CA130)","v":0}]
[]
[null,null,null,null,null,null,null,null,null,null,null,null,null,null,null,null,null,null,null,null,null,null,null,null,null,null,null,null,null,null,null,null,null,null,null,null,"I.ÖĞRETİM",null,null,null,null,null,null,null,null,null,null,null,null,null,null,null,null,null,null,null,null,null,null,"II.ÖĞRETİM",null,null,null,null,null,null,null,null,null,null,null,null,null,null,null,null,null,null,null,null,"G. TOPLAM"]
[null,null,null,"HAFTALIK DERS PROGRAMI",null,null,null,null,null,null,null,null,null,null,null,null,null,null,null,null,null,null,null,null,null,null,null,null,null,null,null,null,null,null,null,"ÜCRETLİ DERS YÜKÜNÜN HESAPLANMASI","HAFTA",null,{"$f":"TRANSPOSE(I55:S73)","v":"Lisansüstü Eğitim Ens."},"Orman F.","","","","","","","","","","","","","","","","","","TOPLAM (1)",null,{"$f":"TRANSPOSE(I112:I130)","v":""},"","","","","","","","","","","","","","","","","","","TOPLAM (2)"]
[null,null,null,null,null,null,"Pazartesi","T/D","Salı","T/D","Çarşamba",null,"T/D","Perşembe",null,null,"T/D","Cuma",null,null,null,"T/D","Cumartesi",null,null,null,null,"T/D","Pazar",null,null,null,null,"T/D",null,null,1,"T",14,4,0,0,0,0,0,0,0,0,0,0,0,0,0,0,0,0,0,{"$f":"SUM(AM135:BE135)","v":18},{"$f":"BF135+BF136","v":18},{"$f":"TRANSPOSE(U112:U130)","v":0},0,0,0,0,0,0,0,0,0,0,0,0,0,0,0,0,0,0,{"$f":"SUM(BH135:BZ135)","v":0},{"$f":"CA135+CA136","v":0},{"$f":"SUM(BF135,CA135)","v":18},{"$f":"CC135+CC136","v":18}]
[null,null,null,"8:00-8:45",null,null,"ORM800","T","ORM900","T",null,null,null,null,null,null,null,null,null,null,null,null,null,null,null,null,null,null,null,null,null,null,null,null,null,null,null,"D",0,0,0,0,0,0,0,0,0,0,0,0,0,0,0,0,0,0,0,0,null,{"$f":"TRANSPOSE(V112:V130)","v":0},0,0,0,0,0,0,0,0,0,0,0,0,0,0,0,0,0,0,0,null,0]
[null,null,null,"9:00-9:45",null,null,"ORM800","T","ORM900","T",null,null,null,"OM206",null,null,"T","ORM535",null,null,null,"T",null,null,null,null,null,null,null,null,null,null,null,null,null,null,2,"T",14,4,0,0,0,0,0,0,0,0,0,0,0,0,0,0,0,0,0,18,{"$f":"BF137+BF138","v":18},{"$f":"TRANSPOSE(AI112:AJ130)","v":0},0,0,0,0,0,0,0,0,0,0,0,0,0,0,0,0,0,0,0,{"$f":"CA137+CA138","v":0},18,{"$f":"CC137+CC138","v":18}]
[null,null,null,"10:00-10:45",null,null,"ORM800","T","ORM900","T",null,null,null,"OM206",null,null,"T","ORM535",null,null,null,"T",null,null,null,null,null,null,null,null,null,null,null,null,null,null,null,"D",0,0,0,0,0,0,0,0,0,0,0,0,0,0,0,0,0,0,0,0,null,{"$f":"TRANSPOSE(AJ112:AJ130)","v":0},0,0,0,0,0,0,0,0,0,0,0,0,0,0,0,0,0,0,0,null,0]
[null,null,null,"11:00-11:45",null,null,"ORM800","T","ORM900","T",null,null,null,"OM206",null,null,"D","ORM535",null,null,null,"T",null,null,null,null,null,null,null,null,null,null,null,null,null,null,3,"T",8,0,0,0,0,0,0,0,0,0,0,0,0,0,0,0,0,0,0,8,{"$f":"BF139+BF140","v":12},{"$f":"TRANSPOSE(AW112:AW130)","v":0},0,0,0,0,0,0,0,0,0,0,0,0,0,0,0,0,0,0,0,{"$f":"CA139+CA140","v":0},8,{"$f":"CC139+CC140","v":12}]
[null,null,null,"12:00-12:45",null,null,null,null,null,null,null,null,null,null,null,null,null,null,null,null,null,null,null,null,null,null,null,null,null,null,null,null,null,null,null,null,null,"D",4,0,0,0,0,0,0,0,0,0,0,0,0,0,0,0,0,0,0,4,null,{"$f":"TRANSPOSE(AX112:AX130)","v":0},0,0,0,0,0,0,0,0,0,0,0,0,0,0,0,0,0,0,0,null,4]
[null,null,null,"13:00-13:45",null,null,"ORMYD","D","ORMYD","D","OM112",null,"T","OEM308",null,null,"T",null,null,null,null,null,null,null,null,null,null,null,null,null,null,null,null,null,null,null,4,"T",8,0,0,0,0,0,0,0,0,0,0,0,0,0,0,0,0,0,0,8,{"$f":"BF141+BF142","v":12},{"$f":"TRANSPOSE(BK112:BK130)","v":0},0,0,0,0,0,0,0,0,0,0,0,0,0,0,0,0,0,0,0,{"$f":"CA141+CA142","v":0},8,{"$f":"CC141+CC142","v":12}]
[null,null,null,"14:00-14:45",null,null,"ORMYD","D","ORMYD","D","OM112",null,"T","OEM308",null,null,"T","ORM543",null,null,null,"T",null,null,null,null,null,null,null,null,null,null,null,null,null,null,null,"D",4,0,0,0,0,0,0,0,0,0,0,0,0,0,0,0,0,0,0,4,null,{"$f":"TRANSPOSE(BL112:BL130)","v":0},0,0,0,0,0,0,0,0,0,0,0,0,0,0,0,0,0,0,0,null,4]
[null,null,null,"15:00-15:45",null,null,null,null,null,null,"OM112",null,"D","OEM308",null,null,"T","ORM543",null,null,null,"T",null,null,null,null,null,null,null,null,null,null,null,null,null,null,5,"T",0,0,0,0,0,0,0,0,0,0,0,0,0,0,0,0,0,0,0,0,{"$f":"BF143+BF144","v":0},{"$f":"TRANSPOSE(BZ112:BZ130)","v":0},0,0,0,0,0,0,0,0,0,0,0,0,0,0,0,0,0,0,0,{"$f":"CA143+CA144","v":0},0,{"$f":"CC143+CC144","v":0}]
[null,null,null,"16:00-16.45",null,null,null,null,null,null,"OM112",null,"D",null,null,null,null,"ORM543",null,null,null,"T",null,null,null,null,null,null,null,null,null,null,null,null,null,null,null,"D",0,0,0,0,0,0,0,0,0,0,0,0,0,0,0,0,0,0,0,0,null,{"$f":"TRANSPOSE(CA112:CA130)","v":0},0,0,0,0,0,0,0,0,0,0,0,0,0,0,0,0,0,0,0,null,0]
[null,null,null,null,null,null,{"$f":"9-COUNTIF(G136:G144,\"\")","v":6},null,{"$f":"9-COUNTIF(I136:I144,\"\")","v":6},null,{"$f":"9-COUNTIF(K136:K144,\"\")","v":4},0,null,{"$f":"9-COUNTIF(N136:N144,\"\")","v":6},{"$f":"9-COUNTIF(O136:O144,\"\")","v":0},0,null,{"$f":"9-COUNTIF(R136:R144,\"\")","v":6},null,null,null,null,{"$f":"9-COUNTIF(W136:W144,\"\")","v":0},0,0,0,0,null,{"$f":"9-COUNTIF(AC136:AC144,\"\")","v":0},{"$f":"9-COUNTIF(AD136:AD144,\"\")","v":0},{"$f":"9-COUNTIF(AE136:AE144,\"\")","v":0},{"$f":"9-COUNTIF(AF136:AF144,\"\")","v":0},{"$f":"9-COUNTIF(AG136:AG144,\"\")","v":0},null,null,null,"TOPLAM","T",{"$f":"SUM(AM135,AM137,AM139,AM141,AM143)","v":44},8,{"$f":"SUM(AO135,AO137,AO139,AO141,AO143)","v":0},0,0,0,0,0,0,0,0,0,0,0,0,0,0,0,0,{"$f":"SUM(BF135,BF137,BF139,BF141,BF143)","v":52},{"$f":"BF145+BF146","v":60},{"$f":"SUM(BH135,BH137,BH139,BH141,BH143)","v":0},0,0,0,0,0,0,0,0,0,0,0,0,0,0,0,null,null,0,0,{"$f":"CA145+CA146","v":0},52,{"$f":"CC145+CC146","v":60}]
[null,null,null,"17:00-17:45",null,null,null,null,null,null,null,null,null,null,null,null,null,null,null,null,null,null,null,null,null,null,null,null,null,null,null,null,null,null,null,null,null,"D",{"$f":"SUM(AM136,AM138,AM140,AM142,AM144)","v":8},0,{"$f":"SUM(AO136,AO138,AO140,AO142,AO144)","v":0},0,0,0,0,0,0,0,0,0,0,0,0,0,0,0,0,{"$f":"SUM(BF136,BF138,BF140,BF142,BF144)","v":8},null,0,0,0,0,0,0,0,0,0,0,0,0,0,0,0,0,null,null,0,0,null,8]
[null,null,null,"18:00-18:45",null,null,null,null,null,null,null,null,null,null,null,null,null,null,null,null,null,null,null,null,null,null,null,null,null,null,null,null,null,null,null,null,"Genel",null,{"$f":"SUM(AM145:AM146)","v":52},{"$f":"SUM(AN145:AN146)","v":8},0,0,0,0,0,0,0,0,0,0,0,0,0,0,0,0,0,60,null,0,0,0,0,0,0,0,0,0,0,0,0,0,0,0,0,0,0,0,0]
["T",null,null,"19:00-19:45"]
["D",null,null,"20:00-20:45",null,null,null,null,null,null,null,null,null,null,null,null,null,null,null,null,null,null,null,null,null,null,null,null,null,null,null,null,null,null,null,null,null,null,null,null,null,null,null,null,null,null,null,null,null,null,null,null,null,null,null,null,null,null,null,null,null,null,null,null,null,null,null,null,null,null,null,null,null,null,null,null,null,{"$f":"CE149*CE150*BG145-CE173-CE174","v":1200.4395300000001},null,null,null,null,{"$f":"VLOOKUP(H3,A45:C49,3)","v":200}]
[null,null,null,"21:00-21:45",null,null,null,null,null,null,null,null,null,null,null,null,null,null,null,null,null,null,null,null,null,null,null,null,null,null,null,null,null,null,null,null,null,null,null,null,null,null,null,null,null,null,null,null,null,null,null,null,null,null,null,null,null,null,null,null,null,null,null,null,null,null,null,null,null,null,null,null,null,null,null,null,null,null,null,null,null,null,0.138459]
[null,null,null,"22:00-22:45",null,null,null,null,null,null,null,null,null,null,null,null,null,null,null,null,null,null,null,null,null,null,null,null,null,null,null,null,null,null,null,null,null,null,null,null,null,null,null,null,null,null,null,null,null,null,null,null,null,null,null,null,null,null,null,null,null,null,null,null,null,null,null,null,null,null,null,null,null,null,null,null,null,null,null,null,null,null,27]
[]
[]
[]
[]
[]
[]
[]
[]
[]
[]
[]
[]
[]
[]
[]
[]
[]
[]
[null,null,null,null,null,null,{"$f":"6-COUNTIF(G146:G151,\"\")","v":0},null,{"$f":"6-COUNTIF(I146:I151,\"\")","v":0},null,{"$f":"6-COUNTIF(K146:K151,\"\")","v":0},null,null,{"$f":"6-COUNTIF(N146:N151,\"\")","v":0},null,null,null,{"$f":"6-COUNTIF(R146:R151,\"\")","v":0},null,null,null,null,{"$f":"6-COUNTIF(W146:W151,\"\")","v":0}]
[]
[]
[null,null,null,null,"Yukarıdaki bilgilerimin doğru olduğunu onaylıyorum.",null,null,null,null,null,null,null,null,null,null,null,null,null,null,null,null,null,null,null,null,null,null,null,null,null,null,null,null,null,null,null,null,null,null,null,null,null,null,null,null,null,null,null,null,null,null,null,null,null,null,null,null,null,null,null,null,null,null,null,null,null,null,null,null,null,null,null,null,null,null,null,null,null,null,null,null,null,{"$f":"CE149*CE150*BG145*CE151/100","v":448.60716000000002}]
[null,null,null,null,null,null,null,null,null,null,null,null,null,null,null,null,null,null,null,null,null,null,null,null,null,null,null,null,null,null,null,null,null,null,null,null,null,null,null,null,null,null,null,null,null,null,null,null,null,null,null,null,null,null,null,null,null,null,null,null,null,null,null,null,null,null,null,null,null,null,null,null,null,null,null,null,null,null,null,null,null,null,{"$f":"CE149*CE150*BG145*0.0075","v":12.461309999999999}]
[null,null,null,null,null,null,null,null,null,null,null,null,null,null,null,null,null,null,null,null,null,null,null,"İLGİLİ MAKAMA"]
[]
[null,null,null,"Yukarıda ünvanı, adı, soyadı yazılı öğretim elemanının formda beyanı yapılan öğretim çalışmalarını gerçekleştirme ve ders yükü çalışmaları karşılığında kendisine ek ders ücreti ödenmesini 2914 sayılı kanunun 11. maddesi gereğince onaylarınıza arz ederim."]
[null,null,null,{"$f":"IF(RIGHT(P3,4)=\"Ens.\",\"İkinci öğretim ek ders ücreti ödemelerinin tamamı\",\"Ek ders ücreti ödemelerinin tamamı (ikinci öğretim hariç)\")","v":"Ek ders ücreti ödemelerinin tamamı (ikinci öğretim hariç)"},null,null,null,null,null,null,null,{"$f":"P3","v":"Orman F."},null,null,null,"tarafından yapılacaktır."]
[]
[null,null,null,null,null,null,null,null,null,null,null,null,null,null,null,null,null,null,null,null,null,null,null,null,null,null,null,null,null,null,null,null,null,null,null,null,null,null,null,null,null,null,null,null,null,null,null,null,null,null,null,null,null,null,null,null,null,null,null,null,null,null,null,null,"UYGUNDUR"]
[null,null,null,null,null,null,null,null,"(e-imzalıdır)",null,null,null,null,null,null,null,null,null,null,null,null,null,null,null,null,null,null,null,null,null,null,null,null,null,null,null,null,null,null,null,null,null,null,null,null,null,null,null,null,null,null,null,null,null,null,null,null,null,null,null,null,null,null,null,"(e-imzalıdır)"]
[]
[null,null,null,null,null,null,null,null,"Bölüm Başkanı",null,null,null,null,null,null,null,null,null,null,null,null,null,null,null,null,null,null,null,null,null,null,null,null,null,null,null,null,null,null,null,null,null,null,null,null,null,null,null,null,null,null,null,null,null,null,null,null,null,null,null,null,null,"DEKAN"]
[]
[]
[]
[]
[]
[null,null,null,null,null,null,null,null,"Bölüm Başkanı"]
[null,null,null,null,null,null,null,null,"Anabilim Dalı Başkanı",null,null,null,null,null,null,null,null,null,null,null,null,null,null,null,null,null,null,null,null,null,null,null,null,null,null,null,null,null,null,null,null,null,null,null,null,null,null,null,null,null,null,null,null,null,null,null,null,null,null,null,null,null,null,null,"DEKAN"]
[null,null,null,null,null,null,null,null,null,null,null,null,null,null,null,null,null,null,null,null,null,null,null,null,null,null,null,null,null,null,null,null,null,null,null,null,null,null,null,null,null,null,null,null,null,null,null,null,null,null,null,null,null,null,null,null,null,null,null,null,null,null,null,null,"DEKAN V."]
[null,null,null,null,null,null,null,null,null,null,null,null,null,null,null,null,null,null,null,null,null,null,null,null,null,null,null,null,null,null,null,null,null,null,null,null,null,null,null,null,null,null,null,null,null,null,null,null,null,null,null,null,null,null,null,null,null,null,null,null,null,null,null,null,"DEKAN YRD."]
[null,null,null,null,null,null,null,null,null,null,null,null,null,null,null,null,null,null,null,null,null,null,null,null,null,null,null,null,null,null,null,null,null,null,null,null,null,null,null,null,null,null,null,null,null,null,null,null,null,null,null,null,null,null,null,null,null,null,null,null,null,null,null,null,"MÜDÜR"]
[null,null,null,null,null,null,null,null,null,null,null,null,null,null,null,null,null,null,null,null,null,null,null,null,null,null,null,null,null,null,null,null,null,null,null,null,null,null,null,null,null,null,null,null,null,null,null,null,null,null,null,null,null,null,null,null,null,null,null,null,null,null,null,null,"MÜDÜR V."]
[null,null,null,null,null,null,null,null,null,null,null,null,null,null,null,null,null,null,null,null,null,null,null,null,null,null,null,null,null,null,null,null,null,null,null,null,null,null,null,null,null,null,null,null,null,null,null,null,null,null,null,null,null,null,null,null,null,null,null,null,null,null,null,null,"MÜDÜR YRD."]
[]
[null,null,null,4,5,6,7,8,9,10,11,12,13,14,15,16,17,18,19,20,21,22,23,24,25,26,27]
[null,null,3,null,null,null,null,null,null,null,null,null,null,null,null,null,null,null,null,null,null,null,null,null,null,null,null,28,29,30,31,32,33,34,35,36,37,38,39,40,41,42,43,44,45,46,47,48,49,50,51,52,53,54,55,56,57,58,59,60,61,62,63,64,65,66,67,68,69,70,71,72,73,74,75,76,77,78,79,80,81,82,83,84,85,86,87,88,89,90,91,92,93,94,95,96,97,98,99,100,101,102,103,104,105,106,107,108,109,110,111,112,113,114,115,116,117,118,119,120,121,122,123,124,125,126,127,128,129,130,131,132,133,134,135,136,137,138,139,140,141,142,143,144,145,146,147,148,149,150,151,152,153,154,155,156,157,158,159,160,161,162,163,164,165]
[]
[]
[]
[]
[]
[]
[]
[]
[]
[]
[]
[]
[]
[]
[]
[]
[]
[]
[null,null,null,4,5,6,7,8,9,10,11,12,13,14,15,16,17,18,19,20,21,22,23,24,25,26,27,28,29,30,31,32,33,34,35,36,37,38,39,40,41,42,43,44,45,46,47,48,49,50,51,52,53,54,55,56,57,58,59,60,61,62,63,64,65,66,67,68,69,70,71,72,73,74,75,76,77,78,79,80,81,82,83,84,85,86,87,88,89,90,91,92,93,94,95,96,97,98,99,100,101,102,103,104,105,106,107,108,109,110,111,112,113,114,115,116,117,118,119,120,121,122,123,124,125,126,127,128,129,130,131,132,133,134,135,136,137,138,139,140,141,142,143,144,145,146,147,148,149,150,151,152,153,154,155,156,157,158,159,160,161,162,163,164,165,166,167,168,169,170,171,172,173,174]

{"sheet":"X","index":2,"n_rows":22,"n_cols":5,"rows_kept":22,"cut":false,"hidden":true,"merged":[]}
["A","B",null,"D","E"]
[]
[{"$f":"IF(B3<>\"\",1,0)","v":1},"Müh. ve Doğa Bil. F.",null,{"$f":"IF(E3<>\"\",1,0)","v":1},"Lisansüstü Eğitim Ens."]
[1,"Denizcilik F.",null,0]
[1,"Lisansüstü Eğitim Ens.",null,0]
[1,"İletişim F.",null,0]
[1,"İnsan ve Toplum Bil. F.",null,0]
[1,"Meslek Yüksekokulu",null,0]
[1,"Orman F.",null,0]
[1,"Mimarlık ve Tasarım F.",null,0]
[1,"Sosyal Bil. Ens.",null,0]
[1,"YDYO",null,0]
[1,"Rektörlük ODB",null,0]
[0,null,null,0]
[0,null,null,0]
[0,null,null,0]
[0,null,null,0]
[0,null,null,0]
[0,null,null,0]
[0,null,null,0]
[0,null,null,0]
[{"$f":"COUNTIF(A3:A21,1)","v":11},null,null,{"$f":"COUNTIF(D3:D21,1)","v":1}]

{"sheet":"Dersler","index":3,"n_rows":25,"n_cols":26,"rows_kept":25,"cut":false,"hidden":false,"merged":[[0,9,0,17],[0,6,0,7],[0,5,1,5],[0,0,1,0],[0,4,1,4],[0,3,1,3],[0,2,1,2],[0,1,1,1]]}
["SIRA NO","ÖĞRETİM TÜRÜ","KODU","ADI","ÖĞRENCİ SAYISI","FAKÜLTE\nENSTİTÜ\nYO\nMYO","OKUTULAN DERS",null,null,"Aynı gün peşpeşe yapılan dersler için sadece gün ve başlangıç saatini seçmeniz yeterlidir. Farklı günlerde yada aynı gün peşpeşe olmayan dersler için diğer girişleri kullanabilirsiniz."]
[null,null,null,null,null,null,"TEORİK","DİĞER FAALİYETLER","DERS YÜKÜ","GÜN","SAAT","DERS SAYISI","GÜN","SAAT","DERS SAYISI","GÜN","SAAT","DERS SAYISI"]
[1,"I","OM112","Ders-1",77,"Orman F.",2,2,{"$f":"IF(OR(G3<>\"\",H3<>\"\"),SUM(G3:H3),0)","v":4},"Çarşamba","13:00:00",4,null,null,null,null,null,null,null,null,null,"Denizcilik F.",null,"I","Pazartesi","08:00:00"]
[2,"I","OM206","Ders-2",93,"Orman F.",2,1,3,"Perşembe","09:00:00",3,null,null,null,null,null,null,null,null,null,"Fen Bil. Ens.",null,"II","Salı","09:00:00"]
[3,"I","OEM308","Ders-3",32,"Orman F.",3,null,3,"Perşembe","13:00:00",3,null,null,null,null,null,null,null,null,null,"İletişim F.",null,null,"Çarşamba","10:00:00"]
[4,"I","ORM543","Ders-4",5,"Lisansüstü Eğitim Ens.",3,null,3,"Cuma","14:00:00",3,null,null,null,null,null,null,null,null,null,"İnsan ve Toplum Bil. F.",null,null,"Perşembe","11:00:00"]
[5,"I","ORM535","Ders-5",8,"Lisansüstü Eğitim Ens.",3,null,3,"Cuma","09:00:00",3,null,null,null,null,null,null,null,null,null,"Meslek Yüksekokulu",null,null,"Cuma","12:00:00"]
[6,"I","ORM800","Uzmanlık Alan Dersi ",2,"Lisansüstü Eğitim Ens.",4,null,4,"Pazartesi","08:00:00",4,null,null,null,null,null,null,null,null,null,"Mimarlık ve Tasarım F.",null,null,"Cumartesi","13:00:00"]
[7,"I","ORM900","Uzmanlık Alan Dersi ",2,"Lisansüstü Eğitim Ens.",4,null,4,"Salı","08:00:00",4,null,null,null,null,null,null,null,null,null,"Müh. ve Doğa Bil. F.",null,null,"Pazar","14:00:00"]
[8,"I","ORMYD","Danışmanlık",4,"Lisansüstü Eğitim Ens.",null,4,4,"Pazartesi","13:00:00",2,"Salı","13:00:00",2,null,null,null,null,null,null,"Orman F.",null,null,null,"15:00:00"]
[9,null,null,null,null,null,null,null,0,null,null,null,null,null,null,null,null,null,null,null,null,"Sosyal Bilimler Ens.",null,null,null,"16:00:00"]
[10,null,null,null,null,null,null,null,0,null,null,null,null,null,null,null,null,null,null,null,null,null,null,null,null,"17:00:00"]
[11,null,null,null,null,null,null,null,0,null,null,null,null,null,null,null,null,null,null,null,null,null,null,null,null,"18:00:00"]
[12,null,null,null,null,null,null,null,0,null,null,null,null,null,null,null,null,null,null,null,null,null,null,null,null,"19:00:00"]
[13,null,null,null,null,null,null,null,0,null,null,null,null,null,null,null,null,null,null,null,null,null,null,null,null,"20:00:00"]
[14,null,null,null,null,null,null,null,0,null,null,null,null,null,null,null,null,null,null,null,null,null,null,null,null,"21:00:00"]
[15,null,null,null,null,null,null,null,0,null,null,null,null,null,null,null,null,null,null,null,null,null,null,null,null,"22:00:00"]
[16,null,null,null,null,null,null,null,0]
[17,null,null,null,null,null,null,null,0]
[18,null,null,null,null,null,null,null,0]
[19,null,null,null,null,null,null,null,0]
[20,null,null,null,null,null,null,null,0]
[21,null,null,null,null,null,null,null,0]
[22,null,null,null,null,null,null,null,0]
[23,null,null,null,null,null,null,null,0]